{"text_format":"3","workbook":"xlsx","n_sheets":5,"sheets":["Anleitung","Laufliste","Rangliste","Notentabellen","Hilfsregister"],"read":"whole","date_system":"1900"}

{"sheet":"Anleitung","index":0,"n_rows":7,"n_cols":1,"rows_kept":7,"merged":[[0,0,0,11],[1,0,1,18],[2,0,2,18],[3,0,3,18],[4,0,4,18],[5,0,5,18],[6,0,6,18]]}
["12-Minuten-Lauf-Messtool Anleitung\nerstellt von Roman Marxer (romanmarxer@hotmail.com)"]
["Zweck und Beschreibung des Programms:"]
["Dieses Programm dient der effizienteren Durchführung und Auswertung von 12-Minuten-Läufen. Das Programm wurde an verschiedenen Klassen getestet und hat sich aus folgenden Gründen bewährt:\n- Errechnet automatisch Laufdistanzen, Ranglisten, Noten und Notendurchschnitte\n- Länge der Laufstrecke (Rundbahn, Halle) kann eingestellt werden\n- Zeiten, Noten und Notendurchschnitte sind ausblendbar; Notenskalen können angepasst werden\n- Einfügen von Schülerdaten direkt aus bestehenden Listen und dem Lehreroffice\n- Export der Daten in Leheroffice, etc. möglich"]
["Gebrauchsanleitung:"]
["Vorbereitung:\n1. Füge zuerst im Registerblatt \"Laufliste\" die Liste der LäuferInnen ein.\n2. Wähle die Sekundarstufe und das Geschlecht, damit die richtige Notenskala aktiviert wird.\n3. Wähle, ob du den 12-Minuten-Lauf auf einer Rundbahn oder in der Turnhalle machst.\nTipp: Falls die Eingabefelder (Wählen der Sekundarstufe, des Geschlechts, der Art der Laufstrecke) nicht funktionieren, klicke auf das Registerblatt \"Anleitung\", kehre danach wieder zurück zum Registerblatt \"Laufliste\" und versuche es nochmals.\n4. Notiere die Strecke der Rundlaufbahn (Zelle E4) bzw. die Hallenlängen (Zelle E4) und Breiten (Zelle F4) in Metern.\n\nDurchführung:\n5. Führe den Test mit den LäuferInnen wie gewohnt durch.\n6. Trage für jede/n LäuferIn die folgenden Werte direkt in das Programm ein:\n          - Falls du den Test auf einer Rundbahn gemacht hast: Anzahl Runden mit Kommastelle in Spalte C (bspw. bei zehneinhalb gelaufenen Runden 10.5)\n          - Falls du in der Halle gemacht hast: Anzahl Runden ohne Kommastelle in Spalte C plus Anzahl zusätzlicher Hallenlängen in Spalte D und Anzahl zusätzlicher Hallenbreiten in Spalte E\n\nAuswertung:\n7. Das Programm berechnet aus den eingegebenen Werten automatisch die gelaufenen Strecken, Noten und Notendurchschnitte sowie eine Rangliste. Die Noten- und Streckenspalten können ausgeblendet werden. Du kannst die Noten direkt aus dem Programm ins Lehreroffice kopieren.\n8.  Im Registerblatt \"Rangliste\" kann die LäuferInnen-Rangliste eingesehen werden.\n\nDieses Programm wurde von mir in meiner Freizeit entwickelt und hat mich einige Zeit und Nerven gekostet. Falls dir das Programm bei der Durchführung von 12-Minuten-Läufen hilft und du es regelmässig einsetzt, würde ich mich über eine kleine Spende von dir, deiner Schule oder deinem Verein freuen! Vielen Dank!\n\n"]
["Roman Marxer, IBAN: CH74 0070 0112 3000 7491 9, Konto-Nr.: 1123-0074.919 , Zahlungszweck: Spende 12-Minuten-Lauf-Messtool\n\nBei Fragen, Anmerkungen und Verbesserungsvorschlägen kannst du mich gerne per Mail kontaktieren: romanmarxer@hotmail.com"]
["Version 2.0, Juni 2017"]

{"sheet":"Laufliste","index":1,"n_rows":105,"n_cols":14,"rows_kept":105,"merged":[[0,0,0,3]]}
["Laufliste\nerstellt von Roman Marxer (romanmarxer@hotmail.com)"]
[null,"Sekundarstufe durch anklicken wählen","Geschlecht durch anklicken wählen","Wähle die Art der Laufstrecke",{"$f":"IF(N6=1, \"Gib in der Zelle unten die Strecke der Rundbahn in Meter an!\",\"Gib in der Zelle unten die Hallenlänge in Meter an!\")","v":"Gib in der Zelle unten die Strecke der Rundbahn in Meter an!"},{"$f":"IF(N6=1, \"\",\"Gib in der Zelle unten die Hallenbreite in Meter an!\")","v":""}]
[{"$nulls":4},400]
[]
["Nr.","LäuferIn",{"$f":"IF(N6=1, \"Anzahl Runden insgesamt (Teilstrecken mit Kommazahl angeben!)\", \"Anzahl Runden insgesamt\")","v":"Anzahl Runden insgesamt (Teilstrecken mit Kommazahl angeben!)"},{"$f":"IF(N6=1, \"\", \"Anzahl zusätzlicher Hallelängen\")","v":""},{"$f":"IF(N6=1, \"\", \"Anzahl zusätzlicher Hallebreiten\")","v":""},"Gelaufene Strecke in Meter","Note","Notendurchschnitt aller LäuferInnen",{"$nulls":4},"Hilfsfelder"]
[1,{"$nulls":4},{"$f":"IF(C6<=0,\"\",IF(N6=1,C6*$E$3,C6*($E$3+$F$3)+D6*$E$3+E6*$F$3))","v":""},{"$f":"IF(F6 = \"\", \" \", IF(AND(Notentabellen!$J$3=1,Notentabellen!$L$3=1),INDEX(Notentabellen!A:A,MATCH(F:F,Notentabellen!B:B,1)),IF(AND(Notentabellen!$J$3=1,Notentabellen!$L$3=2),INDEX(Notentabellen!A:A,MATCH(F:F,Notentabellen!C:C,1)),IF(AND(Notentabellen!$J$3=2,Notentabellen!$L$3=1),INDEX(Notentabellen!A:A,MATCH(F:F,Notentabellen!D:D,1)),IF(AND(Notentabellen!$J$3=2,Notentabellen!$L$3=2),INDEX(Notentabellen!A:A,MATCH(F:F,Notentabellen!E:E,1)),IF(AND(Notentabellen!$J$3 =3,Notentabellen!$L$3=1), INDEX(Notentabellen!A:A,MATCH(F:F,Notentabellen!F:F,1)), IF(AND(Notentabellen!$J$3 =3,Notentabellen!$L$3=2), INDEX(Notentabellen!A:A,MATCH(F:F,Notentabellen!G:G,1)))))))))","v":" "},{"$f":"AVERAGE(G6:G105)","v":{"$error":"#DIV/0!"}},{"$nulls":4},"Rundbahn",1]
[2,{"$nulls":4},"",{"$f":"IF(F7 = \"\", \" \", IF(AND(Notentabellen!$J$3=1,Notentabellen!$L$3=1),INDEX(Notentabellen!A:A,MATCH(F:F,Notentabellen!B:B,1)),IF(AND(Notentabellen!$J$3=1,Notentabellen!$L$3=2),INDEX(Notentabellen!A:A,MATCH(F:F,Notentabellen!C:C,1)),IF(AND(Notentabellen!$J$3=2,Notentabellen!$L$3=1),INDEX(Notentabellen!A:A,MATCH(F:F,Notentabellen!D:D,1)),IF(AND(Notentabellen!$J$3=2,Notentabellen!$L$3=2),INDEX(Notentabellen!A:A,MATCH(F:F,Notentabellen!E:E,1)),IF(AND(Notentabellen!$J$3 =3,Notentabellen!$L$3=1), INDEX(Notentabellen!A:A,MATCH(F:F,Notentabellen!F:F,1)), IF(AND(Notentabellen!$J$3 =3,Notentabellen!$L$3=2), INDEX(Notentabellen!A:A,MATCH(F:F,Notentabellen!G:G,1)))))))))","v":" "},{"$nulls":5},"Turnhalle"]
[3,{"$nulls":4},"",{"$f":"IF(F8 = \"\", \" \", IF(AND(Notentabellen!$J$3=1,Notentabellen!$L$3=1),INDEX(Notentabellen!A:A,MATCH(F:F,Notentabellen!B:B,1)),IF(AND(Notentabellen!$J$3=1,Notentabellen!$L$3=2),INDEX(Notentabellen!A:A,MATCH(F:F,Notentabellen!C:C,1)),IF(AND(Notentabellen!$J$3=2,Notentabellen!$L$3=1),INDEX(Notentabellen!A:A,MATCH(F:F,Notentabellen!D:D,1)),IF(AND(Notentabellen!$J$3=2,Notentabellen!$L$3=2),INDEX(Notentabellen!A:A,MATCH(F:F,Notentabellen!E:E,1)),IF(AND(Notentabellen!$J$3 =3,Notentabellen!$L$3=1), INDEX(Notentabellen!A:A,MATCH(F:F,Notentabellen!F:F,1)), IF(AND(Notentabellen!$J$3 =3,Notentabellen!$L$3=2), INDEX(Notentabellen!A:A,MATCH(F:F,Notentabellen!G:G,1)))))))))","v":" "}]
[4,{"$nulls":4},"",{"$f":"IF(F9 = \"\", \" \", IF(AND(Notentabellen!$J$3=1,Notentabellen!$L$3=1),INDEX(Notentabellen!A:A,MATCH(F:F,Notentabellen!B:B,1)),IF(AND(Notentabellen!$J$3=1,Notentabellen!$L$3=2),INDEX(Notentabellen!A:A,MATCH(F:F,Notentabellen!C:C,1)),IF(AND(Notentabellen!$J$3=2,Notentabellen!$L$3=1),INDEX(Notentabellen!A:A,MATCH(F:F,Notentabellen!D:D,1)),IF(AND(Notentabellen!$J$3=2,Notentabellen!$L$3=2),INDEX(Notentabellen!A:A,MATCH(F:F,Notentabellen!E:E,1)),IF(AND(Notentabellen!$J$3 =3,Notentabellen!$L$3=1), INDEX(Notentabellen!A:A,MATCH(F:F,Notentabellen!F:F,1)), IF(AND(Notentabellen!$J$3 =3,Notentabellen!$L$3=2), INDEX(Notentabellen!A:A,MATCH(F:F,Notentabellen!G:G,1)))))))))","v":" "}]
[5,{"$nulls":4},"",{"$f":"IF(F10 = \"\", \" \", IF(AND(Notentabellen!$J$3=1,Notentabellen!$L$3=1),INDEX(Notentabellen!A:A,MATCH(F:F,Notentabellen!B:B,1)),IF(AND(Notentabellen!$J$3=1,Notentabellen!$L$3=2),INDEX(Notentabellen!A:A,MATCH(F:F,Notentabellen!C:C,1)),IF(AND(Notentabellen!$J$3=2,Notentabellen!$L$3=1),INDEX(Notentabellen!A:A,MATCH(F:F,Notentabellen!D:D,1)),IF(AND(Notentabellen!$J$3=2,Notentabellen!$L$3=2),INDEX(Notentabellen!A:A,MATCH(F:F,Notentabellen!E:E,1)),IF(AND(Notentabellen!$J$3 =3,Notentabellen!$L$3=1), INDEX(Notentabellen!A:A,MATCH(F:F,Notentabellen!F:F,1)), IF(AND(Notentabellen!$J$3 =3,Notentabellen!$L$3=2), INDEX(Notentabellen!A:A,MATCH(F:F,Notentabellen!G:G,1)))))))))","v":" "}]
[6,{"$nulls":4},"",{"$f":"IF(F11 = \"\", \" \", IF(AND(Notentabellen!$J$3=1,Notentabellen!$L$3=1),INDEX(Notentabellen!A:A,MATCH(F:F,Notentabellen!B:B,1)),IF(AND(Notentabellen!$J$3=1,Notentabellen!$L$3=2),INDEX(Notentabellen!A:A,MATCH(F:F,Notentabellen!C:C,1)),IF(AND(Notentabellen!$J$3=2,Notentabellen!$L$3=1),INDEX(Notentabellen!A:A,MATCH(F:F,Notentabellen!D:D,1)),IF(AND(Notentabellen!$J$3=2,Notentabellen!$L$3=2),INDEX(Notentabellen!A:A,MATCH(F:F,Notentabellen!E:E,1)),IF(AND(Notentabellen!$J$3 =3,Notentabellen!$L$3=1), INDEX(Notentabellen!A:A,MATCH(F:F,Notentabellen!F:F,1)), IF(AND(Notentabellen!$J$3 =3,Notentabellen!$L$3=2), INDEX(Notentabellen!A:A,MATCH(F:F,Notentabellen!G:G,1)))))))))","v":" "}]
[7,{"$nulls":4},"",{"$f":"IF(F12 = \"\", \" \", IF(AND(Notentabellen!$J$3=1,Notentabellen!$L$3=1),INDEX(Notentabellen!A:A,MATCH(F:F,Notentabellen!B:B,1)),IF(AND(Notentabellen!$J$3=1,Notentabellen!$L$3=2),INDEX(Notentabellen!A:A,MATCH(F:F,Notentabellen!C:C,1)),IF(AND(Notentabellen!$J$3=2,Notentabellen!$L$3=1),INDEX(Notentabellen!A:A,MATCH(F:F,Notentabellen!D:D,1)),IF(AND(Notentabellen!$J$3=2,Notentabellen!$L$3=2),INDEX(Notentabellen!A:A,MATCH(F:F,Notentabellen!E:E,1)),IF(AND(Notentabellen!$J$3 =3,Notentabellen!$L$3=1), INDEX(Notentabellen!A:A,MATCH(F:F,Notentabellen!F:F,1)), IF(AND(Notentabellen!$J$3 =3,Notentabellen!$L$3=2), INDEX(Notentabellen!A:A,MATCH(F:F,Notentabellen!G:G,1)))))))))","v":" "}]
[8,{"$nulls":4},"",{"$f":"IF(F13 = \"\", \" \", IF(AND(Notentabellen!$J$3=1,Notentabellen!$L$3=1),INDEX(Notentabellen!A:A,MATCH(F:F,Notentabellen!B:B,1)),IF(AND(Notentabellen!$J$3=1,Notentabellen!$L$3=2),INDEX(Notentabellen!A:A,MATCH(F:F,Notentabellen!C:C,1)),IF(AND(Notentabellen!$J$3=2,Notentabellen!$L$3=1),INDEX(Notentabellen!A:A,MATCH(F:F,Notentabellen!D:D,1)),IF(AND(Notentabellen!$J$3=2,Notentabellen!$L$3=2),INDEX(Notentabellen!A:A,MATCH(F:F,Notentabellen!E:E,1)),IF(AND(Notentabellen!$J$3 =3,Notentabellen!$L$3=1), INDEX(Notentabellen!A:A,MATCH(F:F,Notentabellen!F:F,1)), IF(AND(Notentabellen!$J$3 =3,Notentabellen!$L$3=2), INDEX(Notentabellen!A:A,MATCH(F:F,Notentabellen!G:G,1)))))))))","v":" "}]
[9,{"$nulls":4},"",{"$f":"IF(F14 = \"\", \" \", IF(AND(Notentabellen!$J$3=1,Notentabellen!$L$3=1),INDEX(Notentabellen!A:A,MATCH(F:F,Notentabellen!B:B,1)),IF(AND(Notentabellen!$J$3=1,Notentabellen!$L$3=2),INDEX(Notentabellen!A:A,MATCH(F:F,Notentabellen!C:C,1)),IF(AND(Notentabellen!$J$3=2,Notentabellen!$L$3=1),INDEX(Notentabellen!A:A,MATCH(F:F,Notentabellen!D:D,1)),IF(AND(Notentabellen!$J$3=2,Notentabellen!$L$3=2),INDEX(Notentabellen!A:A,MATCH(F:F,Notentabellen!E:E,1)),IF(AND(Notentabellen!$J$3 =3,Notentabellen!$L$3=1), INDEX(Notentabellen!A:A,MATCH(F:F,Notentabellen!F:F,1)), IF(AND(Notentabellen!$J$3 =3,Notentabellen!$L$3=2), INDEX(Notentabellen!A:A,MATCH(F:F,Notentabellen!G:G,1)))))))))","v":" "}]
[10,{"$nulls":4},"",{"$f":"IF(F15 = \"\", \" \", IF(AND(Notentabellen!$J$3=1,Notentabellen!$L$3=1),INDEX(Notentabellen!A:A,MATCH(F:F,Notentabellen!B:B,1)),IF(AND(Notentabellen!$J$3=1,Notentabellen!$L$3=2),INDEX(Notentabellen!A:A,MATCH(F:F,Notentabellen!C:C,1)),IF(AND(Notentabellen!$J$3=2,Notentabellen!$L$3=1),INDEX(Notentabellen!A:A,MATCH(F:F,Notentabellen!D:D,1)),IF(AND(Notentabellen!$J$3=2,Notentabellen!$L$3=2),INDEX(Notentabellen!A:A,MATCH(F:F,Notentabellen!E:E,1)),IF(AND(Notentabellen!$J$3 =3,Notentabellen!$L$3=1), INDEX(Notentabellen!A:A,MATCH(F:F,Notentabellen!F:F,1)), IF(AND(Notentabellen!$J$3 =3,Notentabellen!$L$3=2), INDEX(Notentabellen!A:A,MATCH(F:F,Notentabellen!G:G,1)))))))))","v":" "}]
[11,{"$nulls":4},"",{"$f":"IF(F16 = \"\", \" \", IF(AND(Notentabellen!$J$3=1,Notentabellen!$L$3=1),INDEX(Notentabellen!A:A,MATCH(F:F,Notentabellen!B:B,1)),IF(AND(Notentabellen!$J$3=1,Notentabellen!$L$3=2),INDEX(Notentabellen!A:A,MATCH(F:F,Notentabellen!C:C,1)),IF(AND(Notentabellen!$J$3=2,Notentabellen!$L$3=1),INDEX(Notentabellen!A:A,MATCH(F:F,Notentabellen!D:D,1)),IF(AND(Notentabellen!$J$3=2,Notentabellen!$L$3=2),INDEX(Notentabellen!A:A,MATCH(F:F,Notentabellen!E:E,1)),IF(AND(Notentabellen!$J$3 =3,Notentabellen!$L$3=1), INDEX(Notentabellen!A:A,MATCH(F:F,Notentabellen!F:F,1)), IF(AND(Notentabellen!$J$3 =3,Notentabellen!$L$3=2), INDEX(Notentabellen!A:A,MATCH(F:F,Notentabellen!G:G,1)))))))))","v":" "}]
[12,{"$nulls":4},"",{"$f":"IF(F17 = \"\", \" \", IF(AND(Notentabellen!$J$3=1,Notentabellen!$L$3=1),INDEX(Notentabellen!A:A,MATCH(F:F,Notentabellen!B:B,1)),IF(AND(Notentabellen!$J$3=1,Notentabellen!$L$3=2),INDEX(Notentabellen!A:A,MATCH(F:F,Notentabellen!C:C,1)),IF(AND(Notentabellen!$J$3=2,Notentabellen!$L$3=1),INDEX(Notentabellen!A:A,MATCH(F:F,Notentabellen!D:D,1)),IF(AND(Notentabellen!$J$3=2,Notentabellen!$L$3=2),INDEX(Notentabellen!A:A,MATCH(F:F,Notentabellen!E:E,1)),IF(AND(Notentabellen!$J$3 =3,Notentabellen!$L$3=1), INDEX(Notentabellen!A:A,MATCH(F:F,Notentabellen!F:F,1)), IF(AND(Notentabellen!$J$3 =3,Notentabellen!$L$3=2), INDEX(Notentabellen!A:A,MATCH(F:F,Notentabellen!G:G,1)))))))))","v":" "}]
[13,{"$nulls":4},"",{"$f":"IF(F18 = \"\", \" \", IF(AND(Notentabellen!$J$3=1,Notentabellen!$L$3=1),INDEX(Notentabellen!A:A,MATCH(F:F,Notentabellen!B:B,1)),IF(AND(Notentabellen!$J$3=1,Notentabellen!$L$3=2),INDEX(Notentabellen!A:A,MATCH(F:F,Notentabellen!C:C,1)),IF(AND(Notentabellen!$J$3=2,Notentabellen!$L$3=1),INDEX(Notentabellen!A:A,MATCH(F:F,Notentabellen!D:D,1)),IF(AND(Notentabellen!$J$3=2,Notentabellen!$L$3=2),INDEX(Notentabellen!A:A,MATCH(F:F,Notentabellen!E:E,1)),IF(AND(Notentabellen!$J$3 =3,Notentabellen!$L$3=1), INDEX(Notentabellen!A:A,MATCH(F:F,Notentabellen!F:F,1)), IF(AND(Notentabellen!$J$3 =3,Notentabellen!$L$3=2), INDEX(Notentabellen!A:A,MATCH(F:F,Notentabellen!G:G,1)))))))))","v":" "}]
[14,{"$nulls":4},"",{"$f":"IF(F19 = \"\", \" \", IF(AND(Notentabellen!$J$3=1,Notentabellen!$L$3=1),INDEX(Notentabellen!A:A,MATCH(F:F,Notentabellen!B:B,1)),IF(AND(Notentabellen!$J$3=1,Notentabellen!$L$3=2),INDEX(Notentabellen!A:A,MATCH(F:F,Notentabellen!C:C,1)),IF(AND(Notentabellen!$J$3=2,Notentabellen!$L$3=1),INDEX(Notentabellen!A:A,MATCH(F:F,Notentabellen!D:D,1)),IF(AND(Notentabellen!$J$3=2,Notentabellen!$L$3=2),INDEX(Notentabellen!A:A,MATCH(F:F,Notentabellen!E:E,1)),IF(AND(Notentabellen!$J$3 =3,Notentabellen!$L$3=1), INDEX(Notentabellen!A:A,MATCH(F:F,Notentabellen!F:F,1)), IF(AND(Notentabellen!$J$3 =3,Notentabellen!$L$3=2), INDEX(Notentabellen!A:A,MATCH(F:F,Notentabellen!G:G,1)))))))))","v":" "}]
[15,{"$nulls":4},"",{"$f":"IF(F20 = \"\", \" \", IF(AND(Notentabellen!$J$3=1,Notentabellen!$L$3=1),INDEX(Notentabellen!A:A,MATCH(F:F,Notentabellen!B:B,1)),IF(AND(Notentabellen!$J$3=1,Notentabellen!$L$3=2),INDEX(Notentabellen!A:A,MATCH(F:F,Notentabellen!C:C,1)),IF(AND(Notentabellen!$J$3=2,Notentabellen!$L$3=1),INDEX(Notentabellen!A:A,MATCH(F:F,Notentabellen!D:D,1)),IF(AND(Notentabellen!$J$3=2,Notentabellen!$L$3=2),INDEX(Notentabellen!A:A,MATCH(F:F,Notentabellen!E:E,1)),IF(AND(Notentabellen!$J$3 =3,Notentabellen!$L$3=1), INDEX(Notentabellen!A:A,MATCH(F:F,Notentabellen!F:F,1)), IF(AND(Notentabellen!$J$3 =3,Notentabellen!$L$3=2), INDEX(Notentabellen!A:A,MATCH(F:F,Notentabellen!G:G,1)))))))))","v":" "}]
[16,{"$nulls":4},"",{"$f":"IF(F21 = \"\", \" \", IF(AND(Notentabellen!$J$3=1,Notentabellen!$L$3=1),INDEX(Notentabellen!A:A,MATCH(F:F,Notentabellen!B:B,1)),IF(AND(Notentabellen!$J$3=1,Notentabellen!$L$3=2),INDEX(Notentabellen!A:A,MATCH(F:F,Notentabellen!C:C,1)),IF(AND(Notentabellen!$J$3=2,Notentabellen!$L$3=1),INDEX(Notentabellen!A:A,MATCH(F:F,Notentabellen!D:D,1)),IF(AND(Notentabellen!$J$3=2,Notentabellen!$L$3=2),INDEX(Notentabellen!A:A,MATCH(F:F,Notentabellen!E:E,1)),IF(AND(Notentabellen!$J$3 =3,Notentabellen!$L$3=1), INDEX(Notentabellen!A:A,MATCH(F:F,Notentabellen!F:F,1)), IF(AND(Notentabellen!$J$3 =3,Notentabellen!$L$3=2), INDEX(Notentabellen!A:A,MATCH(F:F,Notentabellen!G:G,1)))))))))","v":" "}]
[17,{"$nulls":4},"",{"$f":"IF(F22 = \"\", \" \", IF(AND(Notentabellen!$J$3=1,Notentabellen!$L$3=1),INDEX(Notentabellen!A:A,MATCH(F:F,Notentabellen!B:B,1)),IF(AND(Notentabellen!$J$3=1,Notentabellen!$L$3=2),INDEX(Notentabellen!A:A,MATCH(F:F,Notentabellen!C:C,1)),IF(AND(Notentabellen!$J$3=2,Notentabellen!$L$3=1),INDEX(Notentabellen!A:A,MATCH(F:F,Notentabellen!D:D,1)),IF(AND(Notentabellen!$J$3=2,Notentabellen!$L$3=2),INDEX(Notentabellen!A:A,MATCH(F:F,Notentabellen!E:E,1)),IF(AND(Notentabellen!$J$3 =3,Notentabellen!$L$3=1), INDEX(Notentabellen!A:A,MATCH(F:F,Notentabellen!F:F,1)), IF(AND(Notentabellen!$J$3 =3,Notentabellen!$L$3=2), INDEX(Notentabellen!A:A,MATCH(F:F,Notentabellen!G:G,1)))))))))","v":" "}]
[18,{"$nulls":4},"",{"$f":"IF(F23 = \"\", \" \", IF(AND(Notentabellen!$J$3=1,Notentabellen!$L$3=1),INDEX(Notentabellen!A:A,MATCH(F:F,Notentabellen!B:B,1)),IF(AND(Notentabellen!$J$3=1,Notentabellen!$L$3=2),INDEX(Notentabellen!A:A,MATCH(F:F,Notentabellen!C:C,1)),IF(AND(Notentabellen!$J$3=2,Notentabellen!$L$3=1),INDEX(Notentabellen!A:A,MATCH(F:F,Notentabellen!D:D,1)),IF(AND(Notentabellen!$J$3=2,Notentabellen!$L$3=2),INDEX(Notentabellen!A:A,MATCH(F:F,Notentabellen!E:E,1)),IF(AND(Notentabellen!$J$3 =3,Notentabellen!$L$3=1), INDEX(Notentabellen!A:A,MATCH(F:F,Notentabellen!F:F,1)), IF(AND(Notentabellen!$J$3 =3,Notentabellen!$L$3=2), INDEX(Notentabellen!A:A,MATCH(F:F,Notentabellen!G:G,1)))))))))","v":" "}]
[19,{"$nulls":4},"",{"$f":"IF(F24 = \"\", \" \", IF(AND(Notentabellen!$J$3=1,Notentabellen!$L$3=1),INDEX(Notentabellen!A:A,MATCH(F:F,Notentabellen!B:B,1)),IF(AND(Notentabellen!$J$3=1,Notentabellen!$L$3=2),INDEX(Notentabellen!A:A,MATCH(F:F,Notentabellen!C:C,1)),IF(AND(Notentabellen!$J$3=2,Notentabellen!$L$3=1),INDEX(Notentabellen!A:A,MATCH(F:F,Notentabellen!D:D,1)),IF(AND(Notentabellen!$J$3=2,Notentabellen!$L$3=2),INDEX(Notentabellen!A:A,MATCH(F:F,Notentabellen!E:E,1)),IF(AND(Notentabellen!$J$3 =3,Notentabellen!$L$3=1), INDEX(Notentabellen!A:A,MATCH(F:F,Notentabellen!F:F,1)), IF(AND(Notentabellen!$J$3 =3,Notentabellen!$L$3=2), INDEX(Notentabellen!A:A,MATCH(F:F,Notentabellen!G:G,1)))))))))","v":" "}]
[20,{"$nulls":4},"",{"$f":"IF(F25 = \"\", \" \", IF(AND(Notentabellen!$J$3=1,Notentabellen!$L$3=1),INDEX(Notentabellen!A:A,MATCH(F:F,Notentabellen!B:B,1)),IF(AND(Notentabellen!$J$3=1,Notentabellen!$L$3=2),INDEX(Notentabellen!A:A,MATCH(F:F,Notentabellen!C:C,1)),IF(AND(Notentabellen!$J$3=2,Notentabellen!$L$3=1),INDEX(Notentabellen!A:A,MATCH(F:F,Notentabellen!D:D,1)),IF(AND(Notentabellen!$J$3=2,Notentabellen!$L$3=2),INDEX(Notentabellen!A:A,MATCH(F:F,Notentabellen!E:E,1)),IF(AND(Notentabellen!$J$3 =3,Notentabellen!$L$3=1), INDEX(Notentabellen!A:A,MATCH(F:F,Notentabellen!F:F,1)), IF(AND(Notentabellen!$J$3 =3,Notentabellen!$L$3=2), INDEX(Notentabellen!A:A,MATCH(F:F,Notentabellen!G:G,1)))))))))","v":" "}]
[21,{"$nulls":4},"",{"$f":"IF(F26 = \"\", \" \", IF(AND(Notentabellen!$J$3=1,Notentabellen!$L$3=1),INDEX(Notentabellen!A:A,MATCH(F:F,Notentabellen!B:B,1)),IF(AND(Notentabellen!$J$3=1,Notentabellen!$L$3=2),INDEX(Notentabellen!A:A,MATCH(F:F,Notentabellen!C:C,1)),IF(AND(Notentabellen!$J$3=2,Notentabellen!$L$3=1),INDEX(Notentabellen!A:A,MATCH(F:F,Notentabellen!D:D,1)),IF(AND(Notentabellen!$J$3=2,Notentabellen!$L$3=2),INDEX(Notentabellen!A:A,MATCH(F:F,Notentabellen!E:E,1)),IF(AND(Notentabellen!$J$3 =3,Notentabellen!$L$3=1), INDEX(Notentabellen!A:A,MATCH(F:F,Notentabellen!F:F,1)), IF(AND(Notentabellen!$J$3 =3,Notentabellen!$L$3=2), INDEX(Notentabellen!A:A,MATCH(F:F,Notentabellen!G:G,1)))))))))","v":" "}]
[22,{"$nulls":4},"",{"$f":"IF(F27 = \"\", \" \", IF(AND(Notentabellen!$J$3=1,Notentabellen!$L$3=1),INDEX(Notentabellen!A:A,MATCH(F:F,Notentabellen!B:B,1)),IF(AND(Notentabellen!$J$3=1,Notentabellen!$L$3=2),INDEX(Notentabellen!A:A,MATCH(F:F,Notentabellen!C:C,1)),IF(AND(Notentabellen!$J$3=2,Notentabellen!$L$3=1),INDEX(Notentabellen!A:A,MATCH(F:F,Notentabellen!D:D,1)),IF(AND(Notentabellen!$J$3=2,Notentabellen!$L$3=2),INDEX(Notentabellen!A:A,MATCH(F:F,Notentabellen!E:E,1)),IF(AND(Notentabellen!$J$3 =3,Notentabellen!$L$3=1), INDEX(Notentabellen!A:A,MATCH(F:F,Notentabellen!F:F,1)), IF(AND(Notentabellen!$J$3 =3,Notentabellen!$L$3=2), INDEX(Notentabellen!A:A,MATCH(F:F,Notentabellen!G:G,1)))))))))","v":" "}]
[23,{"$nulls":4},"",{"$f":"IF(F28 = \"\", \" \", IF(AND(Notentabellen!$J$3=1,Notentabellen!$L$3=1),INDEX(Notentabellen!A:A,MATCH(F:F,Notentabellen!B:B,1)),IF(AND(Notentabellen!$J$3=1,Notentabellen!$L$3=2),INDEX(Notentabellen!A:A,MATCH(F:F,Notentabellen!C:C,1)),IF(AND(Notentabellen!$J$3=2,Notentabellen!$L$3=1),INDEX(Notentabellen!A:A,MATCH(F:F,Notentabellen!D:D,1)),IF(AND(Notentabellen!$J$3=2,Notentabellen!$L$3=2),INDEX(Notentabellen!A:A,MATCH(F:F,Notentabellen!E:E,1)),IF(AND(Notentabellen!$J$3 =3,Notentabellen!$L$3=1), INDEX(Notentabellen!A:A,MATCH(F:F,Notentabellen!F:F,1)), IF(AND(Notentabellen!$J$3 =3,Notentabellen!$L$3=2), INDEX(Notentabellen!A:A,MATCH(F:F,Notentabellen!G:G,1)))))))))","v":" "}]
[24,{"$nulls":4},"",{"$f":"IF(F29 = \"\", \" \", IF(AND(Notentabellen!$J$3=1,Notentabellen!$L$3=1),INDEX(Notentabellen!A:A,MATCH(F:F,Notentabellen!B:B,1)),IF(AND(Notentabellen!$J$3=1,Notentabellen!$L$3=2),INDEX(Notentabellen!A:A,MATCH(F:F,Notentabellen!C:C,1)),IF(AND(Notentabellen!$J$3=2,Notentabellen!$L$3=1),INDEX(Notentabellen!A:A,MATCH(F:F,Notentabellen!D:D,1)),IF(AND(Notentabellen!$J$3=2,Notentabellen!$L$3=2),INDEX(Notentabellen!A:A,MATCH(F:F,Notentabellen!E:E,1)),IF(AND(Notentabellen!$J$3 =3,Notentabellen!$L$3=1), INDEX(Notentabellen!A:A,MATCH(F:F,Notentabellen!F:F,1)), IF(AND(Notentabellen!$J$3 =3,Notentabellen!$L$3=2), INDEX(Notentabellen!A:A,MATCH(F:F,Notentabellen!G:G,1)))))))))","v":" "}]
[25,{"$nulls":4},"",{"$f":"IF(F30 = \"\", \" \", IF(AND(Notentabellen!$J$3=1,Notentabellen!$L$3=1),INDEX(Notentabellen!A:A,MATCH(F:F,Notentabellen!B:B,1)),IF(AND(Notentabellen!$J$3=1,Notentabellen!$L$3=2),INDEX(Notentabellen!A:A,MATCH(F:F,Notentabellen!C:C,1)),IF(AND(Notentabellen!$J$3=2,Notentabellen!$L$3=1),INDEX(Notentabellen!A:A,MATCH(F:F,Notentabellen!D:D,1)),IF(AND(Notentabellen!$J$3=2,Notentabellen!$L$3=2),INDEX(Notentabellen!A:A,MATCH(F:F,Notentabellen!E:E,1)),IF(AND(Notentabellen!$J$3 =3,Notentabellen!$L$3=1), INDEX(Notentabellen!A:A,MATCH(F:F,Notentabellen!F:F,1)), IF(AND(Notentabellen!$J$3 =3,Notentabellen!$L$3=2), INDEX(Notentabellen!A:A,MATCH(F:F,Notentabellen!G:G,1)))))))))","v":" "}]
[26,{"$nulls":4},"",{"$f":"IF(F31 = \"\", \" \", IF(AND(Notentabellen!$J$3=1,Notentabellen!$L$3=1),INDEX(Notentabellen!A:A,MATCH(F:F,Notentabellen!B:B,1)),IF(AND(Notentabellen!$J$3=1,Notentabellen!$L$3=2),INDEX(Notentabellen!A:A,MATCH(F:F,Notentabellen!C:C,1)),IF(AND(Notentabellen!$J$3=2,Notentabellen!$L$3=1),INDEX(Notentabellen!A:A,MATCH(F:F,Notentabellen!D:D,1)),IF(AND(Notentabellen!$J$3=2,Notentabellen!$L$3=2),INDEX(Notentabellen!A:A,MATCH(F:F,Notentabellen!E:E,1)),IF(AND(Notentabellen!$J$3 =3,Notentabellen!$L$3=1), INDEX(Notentabellen!A:A,MATCH(F:F,Notentabellen!F:F,1)), IF(AND(Notentabellen!$J$3 =3,Notentabellen!$L$3=2), INDEX(Notentabellen!A:A,MATCH(F:F,Notentabellen!G:G,1)))))))))","v":" "}]
[27,{"$nulls":4},"",{"$f":"IF(F32 = \"\", \" \", IF(AND(Notentabellen!$J$3=1,Notentabellen!$L$3=1),INDEX(Notentabellen!A:A,MATCH(F:F,Notentabellen!B:B,1)),IF(AND(Notentabellen!$J$3=1,Notentabellen!$L$3=2),INDEX(Notentabellen!A:A,MATCH(F:F,Notentabellen!C:C,1)),IF(AND(Notentabellen!$J$3=2,Notentabellen!$L$3=1),INDEX(Notentabellen!A:A,MATCH(F:F,Notentabellen!D:D,1)),IF(AND(Notentabellen!$J$3=2,Notentabellen!$L$3=2),INDEX(Notentabellen!A:A,MATCH(F:F,Notentabellen!E:E,1)),IF(AND(Notentabellen!$J$3 =3,Notentabellen!$L$3=1), INDEX(Notentabellen!A:A,MATCH(F:F,Notentabellen!F:F,1)), IF(AND(Notentabellen!$J$3 =3,Notentabellen!$L$3=2), INDEX(Notentabellen!A:A,MATCH(F:F,Notentabellen!G:G,1)))))))))","v":" "}]
[28,{"$nulls":4},"",{"$f":"IF(F33 = \"\", \" \", IF(AND(Notentabellen!$J$3=1,Notentabellen!$L$3=1),INDEX(Notentabellen!A:A,MATCH(F:F,Notentabellen!B:B,1)),IF(AND(Notentabellen!$J$3=1,Notentabellen!$L$3=2),INDEX(Notentabellen!A:A,MATCH(F:F,Notentabellen!C:C,1)),IF(AND(Notentabellen!$J$3=2,Notentabellen!$L$3=1),INDEX(Notentabellen!A:A,MATCH(F:F,Notentabellen!D:D,1)),IF(AND(Notentabellen!$J$3=2,Notentabellen!$L$3=2),INDEX(Notentabellen!A:A,MATCH(F:F,Notentabellen!E:E,1)),IF(AND(Notentabellen!$J$3 =3,Notentabellen!$L$3=1), INDEX(Notentabellen!A:A,MATCH(F:F,Notentabellen!F:F,1)), IF(AND(Notentabellen!$J$3 =3,Notentabellen!$L$3=2), INDEX(Notentabellen!A:A,MATCH(F:F,Notentabellen!G:G,1)))))))))","v":" "}]
[29,{"$nulls":4},"",{"$f":"IF(F34 = \"\", \" \", IF(AND(Notentabellen!$J$3=1,Notentabellen!$L$3=1),INDEX(Notentabellen!A:A,MATCH(F:F,Notentabellen!B:B,1)),IF(AND(Notentabellen!$J$3=1,Notentabellen!$L$3=2),INDEX(Notentabellen!A:A,MATCH(F:F,Notentabellen!C:C,1)),IF(AND(Notentabellen!$J$3=2,Notentabellen!$L$3=1),INDEX(Notentabellen!A:A,MATCH(F:F,Notentabellen!D:D,1)),IF(AND(Notentabellen!$J$3=2,Notentabellen!$L$3=2),INDEX(Notentabellen!A:A,MATCH(F:F,Notentabellen!E:E,1)),IF(AND(Notentabellen!$J$3 =3,Notentabellen!$L$3=1), INDEX(Notentabellen!A:A,MATCH(F:F,Notentabellen!F:F,1)), IF(AND(Notentabellen!$J$3 =3,Notentabellen!$L$3=2), INDEX(Notentabellen!A:A,MATCH(F:F,Notentabellen!G:G,1)))))))))","v":" "}]
[30,{"$nulls":4},"",{"$f":"IF(F35 = \"\", \" \", IF(AND(Notentabellen!$J$3=1,Notentabellen!$L$3=1),INDEX(Notentabellen!A:A,MATCH(F:F,Notentabellen!B:B,1)),IF(AND(Notentabellen!$J$3=1,Notentabellen!$L$3=2),INDEX(Notentabellen!A:A,MATCH(F:F,Notentabellen!C:C,1)),IF(AND(Notentabellen!$J$3=2,Notentabellen!$L$3=1),INDEX(Notentabellen!A:A,MATCH(F:F,Notentabellen!D:D,1)),IF(AND(Notentabellen!$J$3=2,Notentabellen!$L$3=2),INDEX(Notentabellen!A:A,MATCH(F:F,Notentabellen!E:E,1)),IF(AND(Notentabellen!$J$3 =3,Notentabellen!$L$3=1), INDEX(Notentabellen!A:A,MATCH(F:F,Notentabellen!F:F,1)), IF(AND(Notentabellen!$J$3 =3,Notentabellen!$L$3=2), INDEX(Notentabellen!A:A,MATCH(F:F,Notentabellen!G:G,1)))))))))","v":" "}]
[31,{"$nulls":4},"",{"$f":"IF(F36 = \"\", \" \", IF(AND(Notentabellen!$J$3=1,Notentabellen!$L$3=1),INDEX(Notentabellen!A:A,MATCH(F:F,Notentabellen!B:B,1)),IF(AND(Notentabellen!$J$3=1,Notentabellen!$L$3=2),INDEX(Notentabellen!A:A,MATCH(F:F,Notentabellen!C:C,1)),IF(AND(Notentabellen!$J$3=2,Notentabellen!$L$3=1),INDEX(Notentabellen!A:A,MATCH(F:F,Notentabellen!D:D,1)),IF(AND(Notentabellen!$J$3=2,Notentabellen!$L$3=2),INDEX(Notentabellen!A:A,MATCH(F:F,Notentabellen!E:E,1)),IF(AND(Notentabellen!$J$3 =3,Notentabellen!$L$3=1), INDEX(Notentabellen!A:A,MATCH(F:F,Notentabellen!F:F,1)), IF(AND(Notentabellen!$J$3 =3,Notentabellen!$L$3=2), INDEX(Notentabellen!A:A,MATCH(F:F,Notentabellen!G:G,1)))))))))","v":" "}]
[32,{"$nulls":4},"",{"$f":"IF(F37 = \"\", \" \", IF(AND(Notentabellen!$J$3=1,Notentabellen!$L$3=1),INDEX(Notentabellen!A:A,MATCH(F:F,Notentabellen!B:B,1)),IF(AND(Notentabellen!$J$3=1,Notentabellen!$L$3=2),INDEX(Notentabellen!A:A,MATCH(F:F,Notentabellen!C:C,1)),IF(AND(Notentabellen!$J$3=2,Notentabellen!$L$3=1),INDEX(Notentabellen!A:A,MATCH(F:F,Notentabellen!D:D,1)),IF(AND(Notentabellen!$J$3=2,Notentabellen!$L$3=2),INDEX(Notentabellen!A:A,MATCH(F:F,Notentabellen!E:E,1)),IF(AND(Notentabellen!$J$3 =3,Notentabellen!$L$3=1), INDEX(Notentabellen!A:A,MATCH(F:F,Notentabellen!F:F,1)), IF(AND(Notentabellen!$J$3 =3,Notentabellen!$L$3=2), INDEX(Notentabellen!A:A,MATCH(F:F,Notentabellen!G:G,1)))))))))","v":" "}]
[33,{"$nulls":4},"",{"$f":"IF(F38 = \"\", \" \", IF(AND(Notentabellen!$J$3=1,Notentabellen!$L$3=1),INDEX(Notentabellen!A:A,MATCH(F:F,Notentabellen!B:B,1)),IF(AND(Notentabellen!$J$3=1,Notentabellen!$L$3=2),INDEX(Notentabellen!A:A,MATCH(F:F,Notentabellen!C:C,1)),IF(AND(Notentabellen!$J$3=2,Notentabellen!$L$3=1),INDEX(Notentabellen!A:A,MATCH(F:F,Notentabellen!D:D,1)),IF(AND(Notentabellen!$J$3=2,Notentabellen!$L$3=2),INDEX(Notentabellen!A:A,MATCH(F:F,Notentabellen!E:E,1)),IF(AND(Notentabellen!$J$3 =3,Notentabellen!$L$3=1), INDEX(Notentabellen!A:A,MATCH(F:F,Notentabellen!F:F,1)), IF(AND(Notentabellen!$J$3 =3,Notentabellen!$L$3=2), INDEX(Notentabellen!A:A,MATCH(F:F,Notentabellen!G:G,1)))))))))","v":" "}]
[34,{"$nulls":4},"",{"$f":"IF(F39 = \"\", \" \", IF(AND(Notentabellen!$J$3=1,Notentabellen!$L$3=1),INDEX(Notentabellen!A:A,MATCH(F:F,Notentabellen!B:B,1)),IF(AND(Notentabellen!$J$3=1,Notentabellen!$L$3=2),INDEX(Notentabellen!A:A,MATCH(F:F,Notentabellen!C:C,1)),IF(AND(Notentabellen!$J$3=2,Notentabellen!$L$3=1),INDEX(Notentabellen!A:A,MATCH(F:F,Notentabellen!D:D,1)),IF(AND(Notentabellen!$J$3=2,Notentabellen!$L$3=2),INDEX(Notentabellen!A:A,MATCH(F:F,Notentabellen!E:E,1)),IF(AND(Notentabellen!$J$3 =3,Notentabellen!$L$3=1), INDEX(Notentabellen!A:A,MATCH(F:F,Notentabellen!F:F,1)), IF(AND(Notentabellen!$J$3 =3,Notentabellen!$L$3=2), INDEX(Notentabellen!A:A,MATCH(F:F,Notentabellen!G:G,1)))))))))","v":" "}]
[35,{"$nulls":4},"",{"$f":"IF(F40 = \"\", \" \", IF(AND(Notentabellen!$J$3=1,Notentabellen!$L$3=1),INDEX(Notentabellen!A:A,MATCH(F:F,Notentabellen!B:B,1)),IF(AND(Notentabellen!$J$3=1,Notentabellen!$L$3=2),INDEX(Notentabellen!A:A,MATCH(F:F,Notentabellen!C:C,1)),IF(AND(Notentabellen!$J$3=2,Notentabellen!$L$3=1),INDEX(Notentabellen!A:A,MATCH(F:F,Notentabellen!D:D,1)),IF(AND(Notentabellen!$J$3=2,Notentabellen!$L$3=2),INDEX(Notentabellen!A:A,MATCH(F:F,Notentabellen!E:E,1)),IF(AND(Notentabellen!$J$3 =3,Notentabellen!$L$3=1), INDEX(Notentabellen!A:A,MATCH(F:F,Notentabellen!F:F,1)), IF(AND(Notentabellen!$J$3 =3,Notentabellen!$L$3=2), INDEX(Notentabellen!A:A,MATCH(F:F,Notentabellen!G:G,1)))))))))","v":" "}]
[36,{"$nulls":4},"",{"$f":"IF(F41 = \"\", \" \", IF(AND(Notentabellen!$J$3=1,Notentabellen!$L$3=1),INDEX(Notentabellen!A:A,MATCH(F:F,Notentabellen!B:B,1)),IF(AND(Notentabellen!$J$3=1,Notentabellen!$L$3=2),INDEX(Notentabellen!A:A,MATCH(F:F,Notentabellen!C:C,1)),IF(AND(Notentabellen!$J$3=2,Notentabellen!$L$3=1),INDEX(Notentabellen!A:A,MATCH(F:F,Notentabellen!D:D,1)),IF(AND(Notentabellen!$J$3=2,Notentabellen!$L$3=2),INDEX(Notentabellen!A:A,MATCH(F:F,Notentabellen!E:E,1)),IF(AND(Notentabellen!$J$3 =3,Notentabellen!$L$3=1), INDEX(Notentabellen!A:A,MATCH(F:F,Notentabellen!F:F,1)), IF(AND(Notentabellen!$J$3 =3,Notentabellen!$L$3=2), INDEX(Notentabellen!A:A,MATCH(F:F,Notentabellen!G:G,1)))))))))","v":" "}]
[37,{"$nulls":4},"",{"$f":"IF(F42 = \"\", \" \", IF(AND(Notentabellen!$J$3=1,Notentabellen!$L$3=1),INDEX(Notentabellen!A:A,MATCH(F:F,Notentabellen!B:B,1)),IF(AND(Notentabellen!$J$3=1,Notentabellen!$L$3=2),INDEX(Notentabellen!A:A,MATCH(F:F,Notentabellen!C:C,1)),IF(AND(Notentabellen!$J$3=2,Notentabellen!$L$3=1),INDEX(Notentabellen!A:A,MATCH(F:F,Notentabellen!D:D,1)),IF(AND(Notentabellen!$J$3=2,Notentabellen!$L$3=2),INDEX(Notentabellen!A:A,MATCH(F:F,Notentabellen!E:E,1)),IF(AND(Notentabellen!$J$3 =3,Notentabellen!$L$3=1), INDEX(Notentabellen!A:A,MATCH(F:F,Notentabellen!F:F,1)), IF(AND(Notentabellen!$J$3 =3,Notentabellen!$L$3=2), INDEX(Notentabellen!A:A,MATCH(F:F,Notentabellen!G:G,1)))))))))","v":" "}]
[38,{"$nulls":4},"",{"$f":"IF(F43 = \"\", \" \", IF(AND(Notentabellen!$J$3=1,Notentabellen!$L$3=1),INDEX(Notentabellen!A:A,MATCH(F:F,Notentabellen!B:B,1)),IF(AND(Notentabellen!$J$3=1,Notentabellen!$L$3=2),INDEX(Notentabellen!A:A,MATCH(F:F,Notentabellen!C:C,1)),IF(AND(Notentabellen!$J$3=2,Notentabellen!$L$3=1),INDEX(Notentabellen!A:A,MATCH(F:F,Notentabellen!D:D,1)),IF(AND(Notentabellen!$J$3=2,Notentabellen!$L$3=2),INDEX(Notentabellen!A:A,MATCH(F:F,Notentabellen!E:E,1)),IF(AND(Notentabellen!$J$3 =3,Notentabellen!$L$3=1), INDEX(Notentabellen!A:A,MATCH(F:F,Notentabellen!F:F,1)), IF(AND(Notentabellen!$J$3 =3,Notentabellen!$L$3=2), INDEX(Notentabellen!A:A,MATCH(F:F,Notentabellen!G:G,1)))))))))","v":" "}]
[39,{"$nulls":4},"",{"$f":"IF(F44 = \"\", \" \", IF(AND(Notentabellen!$J$3=1,Notentabellen!$L$3=1),INDEX(Notentabellen!A:A,MATCH(F:F,Notentabellen!B:B,1)),IF(AND(Notentabellen!$J$3=1,Notentabellen!$L$3=2),INDEX(Notentabellen!A:A,MATCH(F:F,Notentabellen!C:C,1)),IF(AND(Notentabellen!$J$3=2,Notentabellen!$L$3=1),INDEX(Notentabellen!A:A,MATCH(F:F,Notentabellen!D:D,1)),IF(AND(Notentabellen!$J$3=2,Notentabellen!$L$3=2),INDEX(Notentabellen!A:A,MATCH(F:F,Notentabellen!E:E,1)),IF(AND(Notentabellen!$J$3 =3,Notentabellen!$L$3=1), INDEX(Notentabellen!A:A,MATCH(F:F,Notentabellen!F:F,1)), IF(AND(Notentabellen!$J$3 =3,Notentabellen!$L$3=2), INDEX(Notentabellen!A:A,MATCH(F:F,Notentabellen!G:G,1)))))))))","v":" "}]
[40,{"$nulls":4},"",{"$f":"IF(F45 = \"\", \" \", IF(AND(Notentabellen!$J$3=1,Notentabellen!$L$3=1),INDEX(Notentabellen!A:A,MATCH(F:F,Notentabellen!B:B,1)),IF(AND(Notentabellen!$J$3=1,Notentabellen!$L$3=2),INDEX(Notentabellen!A:A,MATCH(F:F,Notentabellen!C:C,1)),IF(AND(Notentabellen!$J$3=2,Notentabellen!$L$3=1),INDEX(Notentabellen!A:A,MATCH(F:F,Notentabellen!D:D,1)),IF(AND(Notentabellen!$J$3=2,Notentabellen!$L$3=2),INDEX(Notentabellen!A:A,MATCH(F:F,Notentabellen!E:E,1)),IF(AND(Notentabellen!$J$3 =3,Notentabellen!$L$3=1), INDEX(Notentabellen!A:A,MATCH(F:F,Notentabellen!F:F,1)), IF(AND(Notentabellen!$J$3 =3,Notentabellen!$L$3=2), INDEX(Notentabellen!A:A,MATCH(F:F,Notentabellen!G:G,1)))))))))","v":" "}]
[41,{"$nulls":4},"",{"$f":"IF(F46 = \"\", \" \", IF(AND(Notentabellen!$J$3=1,Notentabellen!$L$3=1),INDEX(Notentabellen!A:A,MATCH(F:F,Notentabellen!B:B,1)),IF(AND(Notentabellen!$J$3=1,Notentabellen!$L$3=2),INDEX(Notentabellen!A:A,MATCH(F:F,Notentabellen!C:C,1)),IF(AND(Notentabellen!$J$3=2,Notentabellen!$L$3=1),INDEX(Notentabellen!A:A,MATCH(F:F,Notentabellen!D:D,1)),IF(AND(Notentabellen!$J$3=2,Notentabellen!$L$3=2),INDEX(Notentabellen!A:A,MATCH(F:F,Notentabellen!E:E,1)),IF(AND(Notentabellen!$J$3 =3,Notentabellen!$L$3=1), INDEX(Notentabellen!A:A,MATCH(F:F,Notentabellen!F:F,1)), IF(AND(Notentabellen!$J$3 =3,Notentabellen!$L$3=2), INDEX(Notentabellen!A:A,MATCH(F:F,Notentabellen!G:G,1)))))))))","v":" "}]
[42,{"$nulls":4},"",{"$f":"IF(F47 = \"\", \" \", IF(AND(Notentabellen!$J$3=1,Notentabellen!$L$3=1),INDEX(Notentabellen!A:A,MATCH(F:F,Notentabellen!B:B,1)),IF(AND(Notentabellen!$J$3=1,Notentabellen!$L$3=2),INDEX(Notentabellen!A:A,MATCH(F:F,Notentabellen!C:C,1)),IF(AND(Notentabellen!$J$3=2,Notentabellen!$L$3=1),INDEX(Notentabellen!A:A,MATCH(F:F,Notentabellen!D:D,1)),IF(AND(Notentabellen!$J$3=2,Notentabellen!$L$3=2),INDEX(Notentabellen!A:A,MATCH(F:F,Notentabellen!E:E,1)),IF(AND(Notentabellen!$J$3 =3,Notentabellen!$L$3=1), INDEX(Notentabellen!A:A,MATCH(F:F,Notentabellen!F:F,1)), IF(AND(Notentabellen!$J$3 =3,Notentabellen!$L$3=2), INDEX(Notentabellen!A:A,MATCH(F:F,Notentabellen!G:G,1)))))))))","v":" "}]
[43,{"$nulls":4},"",{"$f":"IF(F48 = \"\", \" \", IF(AND(Notentabellen!$J$3=1,Notentabellen!$L$3=1),INDEX(Notentabellen!A:A,MATCH(F:F,Notentabellen!B:B,1)),IF(AND(Notentabellen!$J$3=1,Notentabellen!$L$3=2),INDEX(Notentabellen!A:A,MATCH(F:F,Notentabellen!C:C,1)),IF(AND(Notentabellen!$J$3=2,Notentabellen!$L$3=1),INDEX(Notentabellen!A:A,MATCH(F:F,Notentabellen!D:D,1)),IF(AND(Notentabellen!$J$3=2,Notentabellen!$L$3=2),INDEX(Notentabellen!A:A,MATCH(F:F,Notentabellen!E:E,1)),IF(AND(Notentabellen!$J$3 =3,Notentabellen!$L$3=1), INDEX(Notentabellen!A:A,MATCH(F:F,Notentabellen!F:F,1)), IF(AND(Notentabellen!$J$3 =3,Notentabellen!$L$3=2), INDEX(Notentabellen!A:A,MATCH(F:F,Notentabellen!G:G,1)))))))))","v":" "}]
[44,{"$nulls":4},"",{"$f":"IF(F49 = \"\", \" \", IF(AND(Notentabellen!$J$3=1,Notentabellen!$L$3=1),INDEX(Notentabellen!A:A,MATCH(F:F,Notentabellen!B:B,1)),IF(AND(Notentabellen!$J$3=1,Notentabellen!$L$3=2),INDEX(Notentabellen!A:A,MATCH(F:F,Notentabellen!C:C,1)),IF(AND(Notentabellen!$J$3=2,Notentabellen!$L$3=1),INDEX(Notentabellen!A:A,MATCH(F:F,Notentabellen!D:D,1)),IF(AND(Notentabellen!$J$3=2,Notentabellen!$L$3=2),INDEX(Notentabellen!A:A,MATCH(F:F,Notentabellen!E:E,1)),IF(AND(Notentabellen!$J$3 =3,Notentabellen!$L$3=1), INDEX(Notentabellen!A:A,MATCH(F:F,Notentabellen!F:F,1)), IF(AND(Notentabellen!$J$3 =3,Notentabellen!$L$3=2), INDEX(Notentabellen!A:A,MATCH(F:F,Notentabellen!G:G,1)))))))))","v":" "}]
[45,{"$nulls":4},"",{"$f":"IF(F50 = \"\", \" \", IF(AND(Notentabellen!$J$3=1,Notentabellen!$L$3=1),INDEX(Notentabellen!A:A,MATCH(F:F,Notentabellen!B:B,1)),IF(AND(Notentabellen!$J$3=1,Notentabellen!$L$3=2),INDEX(Notentabellen!A:A,MATCH(F:F,Notentabellen!C:C,1)),IF(AND(Notentabellen!$J$3=2,Notentabellen!$L$3=1),INDEX(Notentabellen!A:A,MATCH(F:F,Notentabellen!D:D,1)),IF(AND(Notentabellen!$J$3=2,Notentabellen!$L$3=2),INDEX(Notentabellen!A:A,MATCH(F:F,Notentabellen!E:E,1)),IF(AND(Notentabellen!$J$3 =3,Notentabellen!$L$3=1), INDEX(Notentabellen!A:A,MATCH(F:F,Notentabellen!F:F,1)), IF(AND(Notentabellen!$J$3 =3,Notentabellen!$L$3=2), INDEX(Notentabellen!A:A,MATCH(F:F,Notentabellen!G:G,1)))))))))","v":" "}]
[46,{"$nulls":4},"",{"$f":"IF(F51 = \"\", \" \", IF(AND(Notentabellen!$J$3=1,Notentabellen!$L$3=1),INDEX(Notentabellen!A:A,MATCH(F:F,Notentabellen!B:B,1)),IF(AND(Notentabellen!$J$3=1,Notentabellen!$L$3=2),INDEX(Notentabellen!A:A,MATCH(F:F,Notentabellen!C:C,1)),IF(AND(Notentabellen!$J$3=2,Notentabellen!$L$3=1),INDEX(Notentabellen!A:A,MATCH(F:F,Notentabellen!D:D,1)),IF(AND(Notentabellen!$J$3=2,Notentabellen!$L$3=2),INDEX(Notentabellen!A:A,MATCH(F:F,Notentabellen!E:E,1)),IF(AND(Notentabellen!$J$3 =3,Notentabellen!$L$3=1), INDEX(Notentabellen!A:A,MATCH(F:F,Notentabellen!F:F,1)), IF(AND(Notentabellen!$J$3 =3,Notentabellen!$L$3=2), INDEX(Notentabellen!A:A,MATCH(F:F,Notentabellen!G:G,1)))))))))","v":" "}]
[47,{"$nulls":4},"",{"$f":"IF(F52 = \"\", \" \", IF(AND(Notentabellen!$J$3=1,Notentabellen!$L$3=1),INDEX(Notentabellen!A:A,MATCH(F:F,Notentabellen!B:B,1)),IF(AND(Notentabellen!$J$3=1,Notentabellen!$L$3=2),INDEX(Notentabellen!A:A,MATCH(F:F,Notentabellen!C:C,1)),IF(AND(Notentabellen!$J$3=2,Notentabellen!$L$3=1),INDEX(Notentabellen!A:A,MATCH(F:F,Notentabellen!D:D,1)),IF(AND(Notentabellen!$J$3=2,Notentabellen!$L$3=2),INDEX(Notentabellen!A:A,MATCH(F:F,Notentabellen!E:E,1)),IF(AND(Notentabellen!$J$3 =3,Notentabellen!$L$3=1), INDEX(Notentabellen!A:A,MATCH(F:F,Notentabellen!F:F,1)), IF(AND(Notentabellen!$J$3 =3,Notentabellen!$L$3=2), INDEX(Notentabellen!A:A,MATCH(F:F,Notentabellen!G:G,1)))))))))","v":" "}]
[48,{"$nulls":4},"",{"$f":"IF(F53 = \"\", \" \", IF(AND(Notentabellen!$J$3=1,Notentabellen!$L$3=1),INDEX(Notentabellen!A:A,MATCH(F:F,Notentabellen!B:B,1)),IF(AND(Notentabellen!$J$3=1,Notentabellen!$L$3=2),INDEX(Notentabellen!A:A,MATCH(F:F,Notentabellen!C:C,1)),IF(AND(Notentabellen!$J$3=2,Notentabellen!$L$3=1),INDEX(Notentabellen!A:A,MATCH(F:F,Notentabellen!D:D,1)),IF(AND(Notentabellen!$J$3=2,Notentabellen!$L$3=2),INDEX(Notentabellen!A:A,MATCH(F:F,Notentabellen!E:E,1)),IF(AND(Notentabellen!$J$3 =3,Notentabellen!$L$3=1), INDEX(Notentabellen!A:A,MATCH(F:F,Notentabellen!F:F,1)), IF(AND(Notentabellen!$J$3 =3,Notentabellen!$L$3=2), INDEX(Notentabellen!A:A,MATCH(F:F,Notentabellen!G:G,1)))))))))","v":" "}]
[49,{"$nulls":4},"",{"$f":"IF(F54 = \"\", \" \", IF(AND(Notentabellen!$J$3=1,Notentabellen!$L$3=1),INDEX(Notentabellen!A:A,MATCH(F:F,Notentabellen!B:B,1)),IF(AND(Notentabellen!$J$3=1,Notentabellen!$L$3=2),INDEX(Notentabellen!A:A,MATCH(F:F,Notentabellen!C:C,1)),IF(AND(Notentabellen!$J$3=2,Notentabellen!$L$3=1),INDEX(Notentabellen!A:A,MATCH(F:F,Notentabellen!D:D,1)),IF(AND(Notentabellen!$J$3=2,Notentabellen!$L$3=2),INDEX(Notentabellen!A:A,MATCH(F:F,Notentabellen!E:E,1)),IF(AND(Notentabellen!$J$3 =3,Notentabellen!$L$3=1), INDEX(Notentabellen!A:A,MATCH(F:F,Notentabellen!F:F,1)), IF(AND(Notentabellen!$J$3 =3,Notentabellen!$L$3=2), INDEX(Notentabellen!A:A,MATCH(F:F,Notentabellen!G:G,1)))))))))","v":" "}]
[50,{"$nulls":4},"",{"$f":"IF(F55 = \"\", \" \", IF(AND(Notentabellen!$J$3=1,Notentabellen!$L$3=1),INDEX(Notentabellen!A:A,MATCH(F:F,Notentabellen!B:B,1)),IF(AND(Notentabellen!$J$3=1,Notentabellen!$L$3=2),INDEX(Notentabellen!A:A,MATCH(F:F,Notentabellen!C:C,1)),IF(AND(Notentabellen!$J$3=2,Notentabellen!$L$3=1),INDEX(Notentabellen!A:A,MATCH(F:F,Notentabellen!D:D,1)),IF(AND(Notentabellen!$J$3=2,Notentabellen!$L$3=2),INDEX(Notentabellen!A:A,MATCH(F:F,Notentabellen!E:E,1)),IF(AND(Notentabellen!$J$3 =3,Notentabellen!$L$3=1), INDEX(Notentabellen!A:A,MATCH(F:F,Notentabellen!F:F,1)), IF(AND(Notentabellen!$J$3 =3,Notentabellen!$L$3=2), INDEX(Notentabellen!A:A,MATCH(F:F,Notentabellen!G:G,1)))))))))","v":" "}]
[51,{"$nulls":4},"",{"$f":"IF(F56 = \"\", \" \", IF(AND(Notentabellen!$J$3=1,Notentabellen!$L$3=1),INDEX(Notentabellen!A:A,MATCH(F:F,Notentabellen!B:B,1)),IF(AND(Notentabellen!$J$3=1,Notentabellen!$L$3=2),INDEX(Notentabellen!A:A,MATCH(F:F,Notentabellen!C:C,1)),IF(AND(Notentabellen!$J$3=2,Notentabellen!$L$3=1),INDEX(Notentabellen!A:A,MATCH(F:F,Notentabellen!D:D,1)),IF(AND(Notentabellen!$J$3=2,Notentabellen!$L$3=2),INDEX(Notentabellen!A:A,MATCH(F:F,Notentabellen!E:E,1)),IF(AND(Notentabellen!$J$3 =3,Notentabellen!$L$3=1), INDEX(Notentabellen!A:A,MATCH(F:F,Notentabellen!F:F,1)), IF(AND(Notentabellen!$J$3 =3,Notentabellen!$L$3=2), INDEX(Notentabellen!A:A,MATCH(F:F,Notentabellen!G:G,1)))))))))","v":" "}]
[52,{"$nulls":4},"",{"$f":"IF(F57 = \"\", \" \", IF(AND(Notentabellen!$J$3=1,Notentabellen!$L$3=1),INDEX(Notentabellen!A:A,MATCH(F:F,Notentabellen!B:B,1)),IF(AND(Notentabellen!$J$3=1,Notentabellen!$L$3=2),INDEX(Notentabellen!A:A,MATCH(F:F,Notentabellen!C:C,1)),IF(AND(Notentabellen!$J$3=2,Notentabellen!$L$3=1),INDEX(Notentabellen!A:A,MATCH(F:F,Notentabellen!D:D,1)),IF(AND(Notentabellen!$J$3=2,Notentabellen!$L$3=2),INDEX(Notentabellen!A:A,MATCH(F:F,Notentabellen!E:E,1)),IF(AND(Notentabellen!$J$3 =3,Notentabellen!$L$3=1), INDEX(Notentabellen!A:A,MATCH(F:F,Notentabellen!F:F,1)), IF(AND(Notentabellen!$J$3 =3,Notentabellen!$L$3=2), INDEX(Notentabellen!A:A,MATCH(F:F,Notentabellen!G:G,1)))))))))","v":" "}]
[53,{"$nulls":4},"",{"$f":"IF(F58 = \"\", \" \", IF(AND(Notentabellen!$J$3=1,Notentabellen!$L$3=1),INDEX(Notentabellen!A:A,MATCH(F:F,Notentabellen!B:B,1)),IF(AND(Notentabellen!$J$3=1,Notentabellen!$L$3=2),INDEX(Notentabellen!A:A,MATCH(F:F,Notentabellen!C:C,1)),IF(AND(Notentabellen!$J$3=2,Notentabellen!$L$3=1),INDEX(Notentabellen!A:A,MATCH(F:F,Notentabellen!D:D,1)),IF(AND(Notentabellen!$J$3=2,Notentabellen!$L$3=2),INDEX(Notentabellen!A:A,MATCH(F:F,Notentabellen!E:E,1)),IF(AND(Notentabellen!$J$3 =3,Notentabellen!$L$3=1), INDEX(Notentabellen!A:A,MATCH(F:F,Notentabellen!F:F,1)), IF(AND(Notentabellen!$J$3 =3,Notentabellen!$L$3=2), INDEX(Notentabellen!A:A,MATCH(F:F,Notentabellen!G:G,1)))))))))","v":" "}]
[54,{"$nulls":4},"",{"$f":"IF(F59 = \"\", \" \", IF(AND(Notentabellen!$J$3=1,Notentabellen!$L$3=1),INDEX(Notentabellen!A:A,MATCH(F:F,Notentabellen!B:B,1)),IF(AND(Notentabellen!$J$3=1,Notentabellen!$L$3=2),INDEX(Notentabellen!A:A,MATCH(F:F,Notentabellen!C:C,1)),IF(AND(Notentabellen!$J$3=2,Notentabellen!$L$3=1),INDEX(Notentabellen!A:A,MATCH(F:F,Notentabellen!D:D,1)),IF(AND(Notentabellen!$J$3=2,Notentabellen!$L$3=2),INDEX(Notentabellen!A:A,MATCH(F:F,Notentabellen!E:E,1)),IF(AND(Notentabellen!$J$3 =3,Notentabellen!$L$3=1), INDEX(Notentabellen!A:A,MATCH(F:F,Notentabellen!F:F,1)), IF(AND(Notentabellen!$J$3 =3,Notentabellen!$L$3=2), INDEX(Notentabellen!A:A,MATCH(F:F,Notentabellen!G:G,1)))))))))","v":" "}]
[55,{"$nulls":4},"",{"$f":"IF(F60 = \"\", \" \", IF(AND(Notentabellen!$J$3=1,Notentabellen!$L$3=1),INDEX(Notentabellen!A:A,MATCH(F:F,Notentabellen!B:B,1)),IF(AND(Notentabellen!$J$3=1,Notentabellen!$L$3=2),INDEX(Notentabellen!A:A,MATCH(F:F,Notentabellen!C:C,1)),IF(AND(Notentabellen!$J$3=2,Notentabellen!$L$3=1),INDEX(Notentabellen!A:A,MATCH(F:F,Notentabellen!D:D,1)),IF(AND(Notentabellen!$J$3=2,Notentabellen!$L$3=2),INDEX(Notentabellen!A:A,MATCH(F:F,Notentabellen!E:E,1)),IF(AND(Notentabellen!$J$3 =3,Notentabellen!$L$3=1), INDEX(Notentabellen!A:A,MATCH(F:F,Notentabellen!F:F,1)), IF(AND(Notentabellen!$J$3 =3,Notentabellen!$L$3=2), INDEX(Notentabellen!A:A,MATCH(F:F,Notentabellen!G:G,1)))))))))","v":" "}]
[56,{"$nulls":4},"",{"$f":"IF(F61 = \"\", \" \", IF(AND(Notentabellen!$J$3=1,Notentabellen!$L$3=1),INDEX(Notentabellen!A:A,MATCH(F:F,Notentabellen!B:B,1)),IF(AND(Notentabellen!$J$3=1,Notentabellen!$L$3=2),INDEX(Notentabellen!A:A,MATCH(F:F,Notentabellen!C:C,1)),IF(AND(Notentabellen!$J$3=2,Notentabellen!$L$3=1),INDEX(Notentabellen!A:A,MATCH(F:F,Notentabellen!D:D,1)),IF(AND(Notentabellen!$J$3=2,Notentabellen!$L$3=2),INDEX(Notentabellen!A:A,MATCH(F:F,Notentabellen!E:E,1)),IF(AND(Notentabellen!$J$3 =3,Notentabellen!$L$3=1), INDEX(Notentabellen!A:A,MATCH(F:F,Notentabellen!F:F,1)), IF(AND(Notentabellen!$J$3 =3,Notentabellen!$L$3=2), INDEX(Notentabellen!A:A,MATCH(F:F,Notentabellen!G:G,1)))))))))","v":" "}]
[57,{"$nulls":4},"",{"$f":"IF(F62 = \"\", \" \", IF(AND(Notentabellen!$J$3=1,Notentabellen!$L$3=1),INDEX(Notentabellen!A:A,MATCH(F:F,Notentabellen!B:B,1)),IF(AND(Notentabellen!$J$3=1,Notentabellen!$L$3=2),INDEX(Notentabellen!A:A,MATCH(F:F,Notentabellen!C:C,1)),IF(AND(Notentabellen!$J$3=2,Notentabellen!$L$3=1),INDEX(Notentabellen!A:A,MATCH(F:F,Notentabellen!D:D,1)),IF(AND(Notentabellen!$J$3=2,Notentabellen!$L$3=2),INDEX(Notentabellen!A:A,MATCH(F:F,Notentabellen!E:E,1)),IF(AND(Notentabellen!$J$3 =3,Notentabellen!$L$3=1), INDEX(Notentabellen!A:A,MATCH(F:F,Notentabellen!F:F,1)), IF(AND(Notentabellen!$J$3 =3,Notentabellen!$L$3=2), INDEX(Notentabellen!A:A,MATCH(F:F,Notentabellen!G:G,1)))))))))","v":" "}]
[58,{"$nulls":4},"",{"$f":"IF(F63 = \"\", \" \", IF(AND(Notentabellen!$J$3=1,Notentabellen!$L$3=1),INDEX(Notentabellen!A:A,MATCH(F:F,Notentabellen!B:B,1)),IF(AND(Notentabellen!$J$3=1,Notentabellen!$L$3=2),INDEX(Notentabellen!A:A,MATCH(F:F,Notentabellen!C:C,1)),IF(AND(Notentabellen!$J$3=2,Notentabellen!$L$3=1),INDEX(Notentabellen!A:A,MATCH(F:F,Notentabellen!D:D,1)),IF(AND(Notentabellen!$J$3=2,Notentabellen!$L$3=2),INDEX(Notentabellen!A:A,MATCH(F:F,Notentabellen!E:E,1)),IF(AND(Notentabellen!$J$3 =3,Notentabellen!$L$3=1), INDEX(Notentabellen!A:A,MATCH(F:F,Notentabellen!F:F,1)), IF(AND(Notentabellen!$J$3 =3,Notentabellen!$L$3=2), INDEX(Notentabellen!A:A,MATCH(F:F,Notentabellen!G:G,1)))))))))","v":" "}]
[59,{"$nulls":4},"",{"$f":"IF(F64 = \"\", \" \", IF(AND(Notentabellen!$J$3=1,Notentabellen!$L$3=1),INDEX(Notentabellen!A:A,MATCH(F:F,Notentabellen!B:B,1)),IF(AND(Notentabellen!$J$3=1,Notentabellen!$L$3=2),INDEX(Notentabellen!A:A,MATCH(F:F,Notentabellen!C:C,1)),IF(AND(Notentabellen!$J$3=2,Notentabellen!$L$3=1),INDEX(Notentabellen!A:A,MATCH(F:F,Notentabellen!D:D,1)),IF(AND(Notentabellen!$J$3=2,Notentabellen!$L$3=2),INDEX(Notentabellen!A:A,MATCH(F:F,Notentabellen!E:E,1)),IF(AND(Notentabellen!$J$3 =3,Notentabellen!$L$3=1), INDEX(Notentabellen!A:A,MATCH(F:F,Notentabellen!F:F,1)), IF(AND(Notentabellen!$J$3 =3,Notentabellen!$L$3=2), INDEX(Notentabellen!A:A,MATCH(F:F,Notentabellen!G:G,1)))))))))","v":" "}]
[60,{"$nulls":4},"",{"$f":"IF(F65 = \"\", \" \", IF(AND(Notentabellen!$J$3=1,Notentabellen!$L$3=1),INDEX(Notentabellen!A:A,MATCH(F:F,Notentabellen!B:B,1)),IF(AND(Notentabellen!$J$3=1,Notentabellen!$L$3=2),INDEX(Notentabellen!A:A,MATCH(F:F,Notentabellen!C:C,1)),IF(AND(Notentabellen!$J$3=2,Notentabellen!$L$3=1),INDEX(Notentabellen!A:A,MATCH(F:F,Notentabellen!D:D,1)),IF(AND(Notentabellen!$J$3=2,Notentabellen!$L$3=2),INDEX(Notentabellen!A:A,MATCH(F:F,Notentabellen!E:E,1)),IF(AND(Notentabellen!$J$3 =3,Notentabellen!$L$3=1), INDEX(Notentabellen!A:A,MATCH(F:F,Notentabellen!F:F,1)), IF(AND(Notentabellen!$J$3 =3,Notentabellen!$L$3=2), INDEX(Notentabellen!A:A,MATCH(F:F,Notentabellen!G:G,1)))))))))","v":" "}]
[61,{"$nulls":4},"",{"$f":"IF(F66 = \"\", \" \", IF(AND(Notentabellen!$J$3=1,Notentabellen!$L$3=1),INDEX(Notentabellen!A:A,MATCH(F:F,Notentabellen!B:B,1)),IF(AND(Notentabellen!$J$3=1,Notentabellen!$L$3=2),INDEX(Notentabellen!A:A,MATCH(F:F,Notentabellen!C:C,1)),IF(AND(Notentabellen!$J$3=2,Notentabellen!$L$3=1),INDEX(Notentabellen!A:A,MATCH(F:F,Notentabellen!D:D,1)),IF(AND(Notentabellen!$J$3=2,Notentabellen!$L$3=2),INDEX(Notentabellen!A:A,MATCH(F:F,Notentabellen!E:E,1)),IF(AND(Notentabellen!$J$3 =3,Notentabellen!$L$3=1), INDEX(Notentabellen!A:A,MATCH(F:F,Notentabellen!F:F,1)), IF(AND(Notentabellen!$J$3 =3,Notentabellen!$L$3=2), INDEX(Notentabellen!A:A,MATCH(F:F,Notentabellen!G:G,1)))))))))","v":" "}]
[62,{"$nulls":4},"",{"$f":"IF(F67 = \"\", \" \", IF(AND(Notentabellen!$J$3=1,Notentabellen!$L$3=1),INDEX(Notentabellen!A:A,MATCH(F:F,Notentabellen!B:B,1)),IF(AND(Notentabellen!$J$3=1,Notentabellen!$L$3=2),INDEX(Notentabellen!A:A,MATCH(F:F,Notentabellen!C:C,1)),IF(AND(Notentabellen!$J$3=2,Notentabellen!$L$3=1),INDEX(Notentabellen!A:A,MATCH(F:F,Notentabellen!D:D,1)),IF(AND(Notentabellen!$J$3=2,Notentabellen!$L$3=2),INDEX(Notentabellen!A:A,MATCH(F:F,Notentabellen!E:E,1)),IF(AND(Notentabellen!$J$3 =3,Notentabellen!$L$3=1), INDEX(Notentabellen!A:A,MATCH(F:F,Notentabellen!F:F,1)), IF(AND(Notentabellen!$J$3 =3,Notentabellen!$L$3=2), INDEX(Notentabellen!A:A,MATCH(F:F,Notentabellen!G:G,1)))))))))","v":" "}]
[63,{"$nulls":4},"",{"$f":"IF(F68 = \"\", \" \", IF(AND(Notentabellen!$J$3=1,Notentabellen!$L$3=1),INDEX(Notentabellen!A:A,MATCH(F:F,Notentabellen!B:B,1)),IF(AND(Notentabellen!$J$3=1,Notentabellen!$L$3=2),INDEX(Notentabellen!A:A,MATCH(F:F,Notentabellen!C:C,1)),IF(AND(Notentabellen!$J$3=2,Notentabellen!$L$3=1),INDEX(Notentabellen!A:A,MATCH(F:F,Notentabellen!D:D,1)),IF(AND(Notentabellen!$J$3=2,Notentabellen!$L$3=2),INDEX(Notentabellen!A:A,MATCH(F:F,Notentabellen!E:E,1)),IF(AND(Notentabellen!$J$3 =3,Notentabellen!$L$3=1), INDEX(Notentabellen!A:A,MATCH(F:F,Notentabellen!F:F,1)), IF(AND(Notentabellen!$J$3 =3,Notentabellen!$L$3=2), INDEX(Notentabellen!A:A,MATCH(F:F,Notentabellen!G:G,1)))))))))","v":" "}]
[64,{"$nulls":4},"",{"$f":"IF(F69 = \"\", \" \", IF(AND(Notentabellen!$J$3=1,Notentabellen!$L$3=1),INDEX(Notentabellen!A:A,MATCH(F:F,Notentabellen!B:B,1)),IF(AND(Notentabellen!$J$3=1,Notentabellen!$L$3=2),INDEX(Notentabellen!A:A,MATCH(F:F,Notentabellen!C:C,1)),IF(AND(Notentabellen!$J$3=2,Notentabellen!$L$3=1),INDEX(Notentabellen!A:A,MATCH(F:F,Notentabellen!D:D,1)),IF(AND(Notentabellen!$J$3=2,Notentabellen!$L$3=2),INDEX(Notentabellen!A:A,MATCH(F:F,Notentabellen!E:E,1)),IF(AND(Notentabellen!$J$3 =3,Notentabellen!$L$3=1), INDEX(Notentabellen!A:A,MATCH(F:F,Notentabellen!F:F,1)), IF(AND(Notentabellen!$J$3 =3,Notentabellen!$L$3=2), INDEX(Notentabellen!A:A,MATCH(F:F,Notentabellen!G:G,1)))))))))","v":" "}]
[65,{"$nulls":4},"",{"$f":"IF(F70 = \"\", \" \", IF(AND(Notentabellen!$J$3=1,Notentabellen!$L$3=1),INDEX(Notentabellen!A:A,MATCH(F:F,Notentabellen!B:B,1)),IF(AND(Notentabellen!$J$3=1,Notentabellen!$L$3=2),INDEX(Notentabellen!A:A,MATCH(F:F,Notentabellen!C:C,1)),IF(AND(Notentabellen!$J$3=2,Notentabellen!$L$3=1),INDEX(Notentabellen!A:A,MATCH(F:F,Notentabellen!D:D,1)),IF(AND(Notentabellen!$J$3=2,Notentabellen!$L$3=2),INDEX(Notentabellen!A:A,MATCH(F:F,Notentabellen!E:E,1)),IF(AND(Notentabellen!$J$3 =3,Notentabellen!$L$3=1), INDEX(Notentabellen!A:A,MATCH(F:F,Notentabellen!F:F,1)), IF(AND(Notentabellen!$J$3 =3,Notentabellen!$L$3=2), INDEX(Notentabellen!A:A,MATCH(F:F,Notentabellen!G:G,1)))))))))","v":" "}]
[66,{"$nulls":4},{"$f":"IF(C71<=0,\"\",IF(N71=1,C71*$E$3,C71*($E$3+$F$3)+D71*$E$3+E71*$F$3))","v":""},{"$f":"IF(F71 = \"\", \" \", IF(AND(Notentabellen!$J$3=1,Notentabellen!$L$3=1),INDEX(Notentabellen!A:A,MATCH(F:F,Notentabellen!B:B,1)),IF(AND(Notentabellen!$J$3=1,Notentabellen!$L$3=2),INDEX(Notentabellen!A:A,MATCH(F:F,Notentabellen!C:C,1)),IF(AND(Notentabellen!$J$3=2,Notentabellen!$L$3=1),INDEX(Notentabellen!A:A,MATCH(F:F,Notentabellen!D:D,1)),IF(AND(Notentabellen!$J$3=2,Notentabellen!$L$3=2),INDEX(Notentabellen!A:A,MATCH(F:F,Notentabellen!E:E,1)),IF(AND(Notentabellen!$J$3 =3,Notentabellen!$L$3=1), INDEX(Notentabellen!A:A,MATCH(F:F,Notentabellen!F:F,1)), IF(AND(Notentabellen!$J$3 =3,Notentabellen!$L$3=2), INDEX(Notentabellen!A:A,MATCH(F:F,Notentabellen!G:G,1)))))))))","v":" "}]
[67,{"$nulls":4},"",{"$f":"IF(F72 = \"\", \" \", IF(AND(Notentabellen!$J$3=1,Notentabellen!$L$3=1),INDEX(Notentabellen!A:A,MATCH(F:F,Notentabellen!B:B,1)),IF(AND(Notentabellen!$J$3=1,Notentabellen!$L$3=2),INDEX(Notentabellen!A:A,MATCH(F:F,Notentabellen!C:C,1)),IF(AND(Notentabellen!$J$3=2,Notentabellen!$L$3=1),INDEX(Notentabellen!A:A,MATCH(F:F,Notentabellen!D:D,1)),IF(AND(Notentabellen!$J$3=2,Notentabellen!$L$3=2),INDEX(Notentabellen!A:A,MATCH(F:F,Notentabellen!E:E,1)),IF(AND(Notentabellen!$J$3 =3,Notentabellen!$L$3=1), INDEX(Notentabellen!A:A,MATCH(F:F,Notentabellen!F:F,1)), IF(AND(Notentabellen!$J$3 =3,Notentabellen!$L$3=2), INDEX(Notentabellen!A:A,MATCH(F:F,Notentabellen!G:G,1)))))))))","v":" "}]
[68,{"$nulls":4},"",{"$f":"IF(F73 = \"\", \" \", IF(AND(Notentabellen!$J$3=1,Notentabellen!$L$3=1),INDEX(Notentabellen!A:A,MATCH(F:F,Notentabellen!B:B,1)),IF(AND(Notentabellen!$J$3=1,Notentabellen!$L$3=2),INDEX(Notentabellen!A:A,MATCH(F:F,Notentabellen!C:C,1)),IF(AND(Notentabellen!$J$3=2,Notentabellen!$L$3=1),INDEX(Notentabellen!A:A,MATCH(F:F,Notentabellen!D:D,1)),IF(AND(Notentabellen!$J$3=2,Notentabellen!$L$3=2),INDEX(Notentabellen!A:A,MATCH(F:F,Notentabellen!E:E,1)),IF(AND(Notentabellen!$J$3 =3,Notentabellen!$L$3=1), INDEX(Notentabellen!A:A,MATCH(F:F,Notentabellen!F:F,1)), IF(AND(Notentabellen!$J$3 =3,Notentabellen!$L$3=2), INDEX(Notentabellen!A:A,MATCH(F:F,Notentabellen!G:G,1)))))))))","v":" "}]
[69,{"$nulls":4},"",{"$f":"IF(F74 = \"\", \" \", IF(AND(Notentabellen!$J$3=1,Notentabellen!$L$3=1),INDEX(Notentabellen!A:A,MATCH(F:F,Notentabellen!B:B,1)),IF(AND(Notentabellen!$J$3=1,Notentabellen!$L$3=2),INDEX(Notentabellen!A:A,MATCH(F:F,Notentabellen!C:C,1)),IF(AND(Notentabellen!$J$3=2,Notentabellen!$L$3=1),INDEX(Notentabellen!A:A,MATCH(F:F,Notentabellen!D:D,1)),IF(AND(Notentabellen!$J$3=2,Notentabellen!$L$3=2),INDEX(Notentabellen!A:A,MATCH(F:F,Notentabellen!E:E,1)),IF(AND(Notentabellen!$J$3 =3,Notentabellen!$L$3=1), INDEX(Notentabellen!A:A,MATCH(F:F,Notentabellen!F:F,1)), IF(AND(Notentabellen!$J$3 =3,Notentabellen!$L$3=2), INDEX(Notentabellen!A:A,MATCH(F:F,Notentabellen!G:G,1)))))))))","v":" "}]
[70,{"$nulls":4},"",{"$f":"IF(F75 = \"\", \" \", IF(AND(Notentabellen!$J$3=1,Notentabellen!$L$3=1),INDEX(Notentabellen!A:A,MATCH(F:F,Notentabellen!B:B,1)),IF(AND(Notentabellen!$J$3=1,Notentabellen!$L$3=2),INDEX(Notentabellen!A:A,MATCH(F:F,Notentabellen!C:C,1)),IF(AND(Notentabellen!$J$3=2,Notentabellen!$L$3=1),INDEX(Notentabellen!A:A,MATCH(F:F,Notentabellen!D:D,1)),IF(AND(Notentabellen!$J$3=2,Notentabellen!$L$3=2),INDEX(Notentabellen!A:A,MATCH(F:F,Notentabellen!E:E,1)),IF(AND(Notentabellen!$J$3 =3,Notentabellen!$L$3=1), INDEX(Notentabellen!A:A,MATCH(F:F,Notentabellen!F:F,1)), IF(AND(Notentabellen!$J$3 =3,Notentabellen!$L$3=2), INDEX(Notentabellen!A:A,MATCH(F:F,Notentabellen!G:G,1)))))))))","v":" "}]
[71,{"$nulls":4},"",{"$f":"IF(F76 = \"\", \" \", IF(AND(Notentabellen!$J$3=1,Notentabellen!$L$3=1),INDEX(Notentabellen!A:A,MATCH(F:F,Notentabellen!B:B,1)),IF(AND(Notentabellen!$J$3=1,Notentabellen!$L$3=2),INDEX(Notentabellen!A:A,MATCH(F:F,Notentabellen!C:C,1)),IF(AND(Notentabellen!$J$3=2,Notentabellen!$L$3=1),INDEX(Notentabellen!A:A,MATCH(F:F,Notentabellen!D:D,1)),IF(AND(Notentabellen!$J$3=2,Notentabellen!$L$3=2),INDEX(Notentabellen!A:A,MATCH(F:F,Notentabellen!E:E,1)),IF(AND(Notentabellen!$J$3 =3,Notentabellen!$L$3=1), INDEX(Notentabellen!A:A,MATCH(F:F,Notentabellen!F:F,1)), IF(AND(Notentabellen!$J$3 =3,Notentabellen!$L$3=2), INDEX(Notentabellen!A:A,MATCH(F:F,Notentabellen!G:G,1)))))))))","v":" "}]
[72,{"$nulls":4},"",{"$f":"IF(F77 = \"\", \" \", IF(AND(Notentabellen!$J$3=1,Notentabellen!$L$3=1),INDEX(Notentabellen!A:A,MATCH(F:F,Notentabellen!B:B,1)),IF(AND(Notentabellen!$J$3=1,Notentabellen!$L$3=2),INDEX(Notentabellen!A:A,MATCH(F:F,Notentabellen!C:C,1)),IF(AND(Notentabellen!$J$3=2,Notentabellen!$L$3=1),INDEX(Notentabellen!A:A,MATCH(F:F,Notentabellen!D:D,1)),IF(AND(Notentabellen!$J$3=2,Notentabellen!$L$3=2),INDEX(Notentabellen!A:A,MATCH(F:F,Notentabellen!E:E,1)),IF(AND(Notentabellen!$J$3 =3,Notentabellen!$L$3=1), INDEX(Notentabellen!A:A,MATCH(F:F,Notentabellen!F:F,1)), IF(AND(Notentabellen!$J$3 =3,Notentabellen!$L$3=2), INDEX(Notentabellen!A:A,MATCH(F:F,Notentabellen!G:G,1)))))))))","v":" "}]
[73,{"$nulls":4},"",{"$f":"IF(F78 = \"\", \" \", IF(AND(Notentabellen!$J$3=1,Notentabellen!$L$3=1),INDEX(Notentabellen!A:A,MATCH(F:F,Notentabellen!B:B,1)),IF(AND(Notentabellen!$J$3=1,Notentabellen!$L$3=2),INDEX(Notentabellen!A:A,MATCH(F:F,Notentabellen!C:C,1)),IF(AND(Notentabellen!$J$3=2,Notentabellen!$L$3=1),INDEX(Notentabellen!A:A,MATCH(F:F,Notentabellen!D:D,1)),IF(AND(Notentabellen!$J$3=2,Notentabellen!$L$3=2),INDEX(Notentabellen!A:A,MATCH(F:F,Notentabellen!E:E,1)),IF(AND(Notentabellen!$J$3 =3,Notentabellen!$L$3=1), INDEX(Notentabellen!A:A,MATCH(F:F,Notentabellen!F:F,1)), IF(AND(Notentabellen!$J$3 =3,Notentabellen!$L$3=2), INDEX(Notentabellen!A:A,MATCH(F:F,Notentabellen!G:G,1)))))))))","v":" "}]
[74,{"$nulls":4},"",{"$f":"IF(F79 = \"\", \" \", IF(AND(Notentabellen!$J$3=1,Notentabellen!$L$3=1),INDEX(Notentabellen!A:A,MATCH(F:F,Notentabellen!B:B,1)),IF(AND(Notentabellen!$J$3=1,Notentabellen!$L$3=2),INDEX(Notentabellen!A:A,MATCH(F:F,Notentabellen!C:C,1)),IF(AND(Notentabellen!$J$3=2,Notentabellen!$L$3=1),INDEX(Notentabellen!A:A,MATCH(F:F,Notentabellen!D:D,1)),IF(AND(Notentabellen!$J$3=2,Notentabellen!$L$3=2),INDEX(Notentabellen!A:A,MATCH(F:F,Notentabellen!E:E,1)),IF(AND(Notentabellen!$J$3 =3,Notentabellen!$L$3=1), INDEX(Notentabellen!A:A,MATCH(F:F,Notentabellen!F:F,1)), IF(AND(Notentabellen!$J$3 =3,Notentabellen!$L$3=2), INDEX(Notentabellen!A:A,MATCH(F:F,Notentabellen!G:G,1)))))))))","v":" "}]
[75,{"$nulls":4},"",{"$f":"IF(F80 = \"\", \" \", IF(AND(Notentabellen!$J$3=1,Notentabellen!$L$3=1),INDEX(Notentabellen!A:A,MATCH(F:F,Notentabellen!B:B,1)),IF(AND(Notentabellen!$J$3=1,Notentabellen!$L$3=2),INDEX(Notentabellen!A:A,MATCH(F:F,Notentabellen!C:C,1)),IF(AND(Notentabellen!$J$3=2,Notentabellen!$L$3=1),INDEX(Notentabellen!A:A,MATCH(F:F,Notentabellen!D:D,1)),IF(AND(Notentabellen!$J$3=2,Notentabellen!$L$3=2),INDEX(Notentabellen!A:A,MATCH(F:F,Notentabellen!E:E,1)),IF(AND(Notentabellen!$J$3 =3,Notentabellen!$L$3=1), INDEX(Notentabellen!A:A,MATCH(F:F,Notentabellen!F:F,1)), IF(AND(Notentabellen!$J$3 =3,Notentabellen!$L$3=2), INDEX(Notentabellen!A:A,MATCH(F:F,Notentabellen!G:G,1)))))))))","v":" "}]
[76,{"$nulls":4},"",{"$f":"IF(F81 = \"\", \" \", IF(AND(Notentabellen!$J$3=1,Notentabellen!$L$3=1),INDEX(Notentabellen!A:A,MATCH(F:F,Notentabellen!B:B,1)),IF(AND(Notentabellen!$J$3=1,Notentabellen!$L$3=2),INDEX(Notentabellen!A:A,MATCH(F:F,Notentabellen!C:C,1)),IF(AND(Notentabellen!$J$3=2,Notentabellen!$L$3=1),INDEX(Notentabellen!A:A,MATCH(F:F,Notentabellen!D:D,1)),IF(AND(Notentabellen!$J$3=2,Notentabellen!$L$3=2),INDEX(Notentabellen!A:A,MATCH(F:F,Notentabellen!E:E,1)),IF(AND(Notentabellen!$J$3 =3,Notentabellen!$L$3=1), INDEX(Notentabellen!A:A,MATCH(F:F,Notentabellen!F:F,1)), IF(AND(Notentabellen!$J$3 =3,Notentabellen!$L$3=2), INDEX(Notentabellen!A:A,MATCH(F:F,Notentabellen!G:G,1)))))))))","v":" "}]
[77,{"$nulls":4},"",{"$f":"IF(F82 = \"\", \" \", IF(AND(Notentabellen!$J$3=1,Notentabellen!$L$3=1),INDEX(Notentabellen!A:A,MATCH(F:F,Notentabellen!B:B,1)),IF(AND(Notentabellen!$J$3=1,Notentabellen!$L$3=2),INDEX(Notentabellen!A:A,MATCH(F:F,Notentabellen!C:C,1)),IF(AND(Notentabellen!$J$3=2,Notentabellen!$L$3=1),INDEX(Notentabellen!A:A,MATCH(F:F,Notentabellen!D:D,1)),IF(AND(Notentabellen!$J$3=2,Notentabellen!$L$3=2),INDEX(Notentabellen!A:A,MATCH(F:F,Notentabellen!E:E,1)),IF(AND(Notentabellen!$J$3 =3,Notentabellen!$L$3=1), INDEX(Notentabellen!A:A,MATCH(F:F,Notentabellen!F:F,1)), IF(AND(Notentabellen!$J$3 =3,Notentabellen!$L$3=2), INDEX(Notentabellen!A:A,MATCH(F:F,Notentabellen!G:G,1)))))))))","v":" "}]
[78,{"$nulls":4},"",{"$f":"IF(F83 = \"\", \" \", IF(AND(Notentabellen!$J$3=1,Notentabellen!$L$3=1),INDEX(Notentabellen!A:A,MATCH(F:F,Notentabellen!B:B,1)),IF(AND(Notentabellen!$J$3=1,Notentabellen!$L$3=2),INDEX(Notentabellen!A:A,MATCH(F:F,Notentabellen!C:C,1)),IF(AND(Notentabellen!$J$3=2,Notentabellen!$L$3=1),INDEX(Notentabellen!A:A,MATCH(F:F,Notentabellen!D:D,1)),IF(AND(Notentabellen!$J$3=2,Notentabellen!$L$3=2),INDEX(Notentabellen!A:A,MATCH(F:F,Notentabellen!E:E,1)),IF(AND(Notentabellen!$J$3 =3,Notentabellen!$L$3=1), INDEX(Notentabellen!A:A,MATCH(F:F,Notentabellen!F:F,1)), IF(AND(Notentabellen!$J$3 =3,Notentabellen!$L$3=2), INDEX(Notentabellen!A:A,MATCH(F:F,Notentabellen!G:G,1)))))))))","v":" "}]
[79,{"$nulls":4},"",{"$f":"IF(F84 = \"\", \" \", IF(AND(Notentabellen!$J$3=1,Notentabellen!$L$3=1),INDEX(Notentabellen!A:A,MATCH(F:F,Notentabellen!B:B,1)),IF(AND(Notentabellen!$J$3=1,Notentabellen!$L$3=2),INDEX(Notentabellen!A:A,MATCH(F:F,Notentabellen!C:C,1)),IF(AND(Notentabellen!$J$3=2,Notentabellen!$L$3=1),INDEX(Notentabellen!A:A,MATCH(F:F,Notentabellen!D:D,1)),IF(AND(Notentabellen!$J$3=2,Notentabellen!$L$3=2),INDEX(Notentabellen!A:A,MATCH(F:F,Notentabellen!E:E,1)),IF(AND(Notentabellen!$J$3 =3,Notentabellen!$L$3=1), INDEX(Notentabellen!A:A,MATCH(F:F,Notentabellen!F:F,1)), IF(AND(Notentabellen!$J$3 =3,Notentabellen!$L$3=2), INDEX(Notentabellen!A:A,MATCH(F:F,Notentabellen!G:G,1)))))))))","v":" "}]
[80,{"$nulls":4},"",{"$f":"IF(F85 = \"\", \" \", IF(AND(Notentabellen!$J$3=1,Notentabellen!$L$3=1),INDEX(Notentabellen!A:A,MATCH(F:F,Notentabellen!B:B,1)),IF(AND(Notentabellen!$J$3=1,Notentabellen!$L$3=2),INDEX(Notentabellen!A:A,MATCH(F:F,Notentabellen!C:C,1)),IF(AND(Notentabellen!$J$3=2,Notentabellen!$L$3=1),INDEX(Notentabellen!A:A,MATCH(F:F,Notentabellen!D:D,1)),IF(AND(Notentabellen!$J$3=2,Notentabellen!$L$3=2),INDEX(Notentabellen!A:A,MATCH(F:F,Notentabellen!E:E,1)),IF(AND(Notentabellen!$J$3 =3,Notentabellen!$L$3=1), INDEX(Notentabellen!A:A,MATCH(F:F,Notentabellen!F:F,1)), IF(AND(Notentabellen!$J$3 =3,Notentabellen!$L$3=2), INDEX(Notentabellen!A:A,MATCH(F:F,Notentabellen!G:G,1)))))))))","v":" "}]
[81,{"$nulls":4},"",{"$f":"IF(F86 = \"\", \" \", IF(AND(Notentabellen!$J$3=1,Notentabellen!$L$3=1),INDEX(Notentabellen!A:A,MATCH(F:F,Notentabellen!B:B,1)),IF(AND(Notentabellen!$J$3=1,Notentabellen!$L$3=2),INDEX(Notentabellen!A:A,MATCH(F:F,Notentabellen!C:C,1)),IF(AND(Notentabellen!$J$3=2,Notentabellen!$L$3=1),INDEX(Notentabellen!A:A,MATCH(F:F,Notentabellen!D:D,1)),IF(AND(Notentabellen!$J$3=2,Notentabellen!$L$3=2),INDEX(Notentabellen!A:A,MATCH(F:F,Notentabellen!E:E,1)),IF(AND(Notentabellen!$J$3 =3,Notentabellen!$L$3=1), INDEX(Notentabellen!A:A,MATCH(F:F,Notentabellen!F:F,1)), IF(AND(Notentabellen!$J$3 =3,Notentabellen!$L$3=2), INDEX(Notentabellen!A:A,MATCH(F:F,Notentabellen!G:G,1)))))))))","v":" "}]
[82,{"$nulls":4},"",{"$f":"IF(F87 = \"\", \" \", IF(AND(Notentabellen!$J$3=1,Notentabellen!$L$3=1),INDEX(Notentabellen!A:A,MATCH(F:F,Notentabellen!B:B,1)),IF(AND(Notentabellen!$J$3=1,Notentabellen!$L$3=2),INDEX(Notentabellen!A:A,MATCH(F:F,Notentabellen!C:C,1)),IF(AND(Notentabellen!$J$3=2,Notentabellen!$L$3=1),INDEX(Notentabellen!A:A,MATCH(F:F,Notentabellen!D:D,1)),IF(AND(Notentabellen!$J$3=2,Notentabellen!$L$3=2),INDEX(Notentabellen!A:A,MATCH(F:F,Notentabellen!E:E,1)),IF(AND(Notentabellen!$J$3 =3,Notentabellen!$L$3=1), INDEX(Notentabellen!A:A,MATCH(F:F,Notentabellen!F:F,1)), IF(AND(Notentabellen!$J$3 =3,Notentabellen!$L$3=2), INDEX(Notentabellen!A:A,MATCH(F:F,Notentabellen!G:G,1)))))))))","v":" "}]
[83,{"$nulls":4},"",{"$f":"IF(F88 = \"\", \" \", IF(AND(Notentabellen!$J$3=1,Notentabellen!$L$3=1),INDEX(Notentabellen!A:A,MATCH(F:F,Notentabellen!B:B,1)),IF(AND(Notentabellen!$J$3=1,Notentabellen!$L$3=2),INDEX(Notentabellen!A:A,MATCH(F:F,Notentabellen!C:C,1)),IF(AND(Notentabellen!$J$3=2,Notentabellen!$L$3=1),INDEX(Notentabellen!A:A,MATCH(F:F,Notentabellen!D:D,1)),IF(AND(Notentabellen!$J$3=2,Notentabellen!$L$3=2),INDEX(Notentabellen!A:A,MATCH(F:F,Notentabellen!E:E,1)),IF(AND(Notentabellen!$J$3 =3,Notentabellen!$L$3=1), INDEX(Notentabellen!A:A,MATCH(F:F,Notentabellen!F:F,1)), IF(AND(Notentabellen!$J$3 =3,Notentabellen!$L$3=2), INDEX(Notentabellen!A:A,MATCH(F:F,Notentabellen!G:G,1)))))))))","v":" "}]
[84,{"$nulls":4},"",{"$f":"IF(F89 = \"\", \" \", IF(AND(Notentabellen!$J$3=1,Notentabellen!$L$3=1),INDEX(Notentabellen!A:A,MATCH(F:F,Notentabellen!B:B,1)),IF(AND(Notentabellen!$J$3=1,Notentabellen!$L$3=2),INDEX(Notentabellen!A:A,MATCH(F:F,Notentabellen!C:C,1)),IF(AND(Notentabellen!$J$3=2,Notentabellen!$L$3=1),INDEX(Notentabellen!A:A,MATCH(F:F,Notentabellen!D:D,1)),IF(AND(Notentabellen!$J$3=2,Notentabellen!$L$3=2),INDEX(Notentabellen!A:A,MATCH(F:F,Notentabellen!E:E,1)),IF(AND(Notentabellen!$J$3 =3,Notentabellen!$L$3=1), INDEX(Notentabellen!A:A,MATCH(F:F,Notentabellen!F:F,1)), IF(AND(Notentabellen!$J$3 =3,Notentabellen!$L$3=2), INDEX(Notentabellen!A:A,MATCH(F:F,Notentabellen!G:G,1)))))))))","v":" "}]
[85,{"$nulls":4},"",{"$f":"IF(F90 = \"\", \" \", IF(AND(Notentabellen!$J$3=1,Notentabellen!$L$3=1),INDEX(Notentabellen!A:A,MATCH(F:F,Notentabellen!B:B,1)),IF(AND(Notentabellen!$J$3=1,Notentabellen!$L$3=2),INDEX(Notentabellen!A:A,MATCH(F:F,Notentabellen!C:C,1)),IF(AND(Notentabellen!$J$3=2,Notentabellen!$L$3=1),INDEX(Notentabellen!A:A,MATCH(F:F,Notentabellen!D:D,1)),IF(AND(Notentabellen!$J$3=2,Notentabellen!$L$3=2),INDEX(Notentabellen!A:A,MATCH(F:F,Notentabellen!E:E,1)),IF(AND(Notentabellen!$J$3 =3,Notentabellen!$L$3=1), INDEX(Notentabellen!A:A,MATCH(F:F,Notentabellen!F:F,1)), IF(AND(Notentabellen!$J$3 =3,Notentabellen!$L$3=2), INDEX(Notentabellen!A:A,MATCH(F:F,Notentabellen!G:G,1)))))))))","v":" "}]
[86,{"$nulls":4},"",{"$f":"IF(F91 = \"\", \" \", IF(AND(Notentabellen!$J$3=1,Notentabellen!$L$3=1),INDEX(Notentabellen!A:A,MATCH(F:F,Notentabellen!B:B,1)),IF(AND(Notentabellen!$J$3=1,Notentabellen!$L$3=2),INDEX(Notentabellen!A:A,MATCH(F:F,Notentabellen!C:C,1)),IF(AND(Notentabellen!$J$3=2,Notentabellen!$L$3=1),INDEX(Notentabellen!A:A,MATCH(F:F,Notentabellen!D:D,1)),IF(AND(Notentabellen!$J$3=2,Notentabellen!$L$3=2),INDEX(Notentabellen!A:A,MATCH(F:F,Notentabellen!E:E,1)),IF(AND(Notentabellen!$J$3 =3,Notentabellen!$L$3=1), INDEX(Notentabellen!A:A,MATCH(F:F,Notentabellen!F:F,1)), IF(AND(Notentabellen!$J$3 =3,Notentabellen!$L$3=2), INDEX(Notentabellen!A:A,MATCH(F:F,Notentabellen!G:G,1)))))))))","v":" "}]
[87,{"$nulls":4},"",{"$f":"IF(F92 = \"\", \" \", IF(AND(Notentabellen!$J$3=1,Notentabellen!$L$3=1),INDEX(Notentabellen!A:A,MATCH(F:F,Notentabellen!B:B,1)),IF(AND(Notentabellen!$J$3=1,Notentabellen!$L$3=2),INDEX(Notentabellen!A:A,MATCH(F:F,Notentabellen!C:C,1)),IF(AND(Notentabellen!$J$3=2,Notentabellen!$L$3=1),INDEX(Notentabellen!A:A,MATCH(F:F,Notentabellen!D:D,1)),IF(AND(Notentabellen!$J$3=2,Notentabellen!$L$3=2),INDEX(Notentabellen!A:A,MATCH(F:F,Notentabellen!E:E,1)),IF(AND(Notentabellen!$J$3 =3,Notentabellen!$L$3=1), INDEX(Notentabellen!A:A,MATCH(F:F,Notentabellen!F:F,1)), IF(AND(Notentabellen!$J$3 =3,Notentabellen!$L$3=2), INDEX(Notentabellen!A:A,MATCH(F:F,Notentabellen!G:G,1)))))))))","v":" "}]
[88,{"$nulls":4},"",{"$f":"IF(F93 = \"\", \" \", IF(AND(Notentabellen!$J$3=1,Notentabellen!$L$3=1),INDEX(Notentabellen!A:A,MATCH(F:F,Notentabellen!B:B,1)),IF(AND(Notentabellen!$J$3=1,Notentabellen!$L$3=2),INDEX(Notentabellen!A:A,MATCH(F:F,Notentabellen!C:C,1)),IF(AND(Notentabellen!$J$3=2,Notentabellen!$L$3=1),INDEX(Notentabellen!A:A,MATCH(F:F,Notentabellen!D:D,1)),IF(AND(Notentabellen!$J$3=2,Notentabellen!$L$3=2),INDEX(Notentabellen!A:A,MATCH(F:F,Notentabellen!E:E,1)),IF(AND(Notentabellen!$J$3 =3,Notentabellen!$L$3=1), INDEX(Notentabellen!A:A,MATCH(F:F,Notentabellen!F:F,1)), IF(AND(Notentabellen!$J$3 =3,Notentabellen!$L$3=2), INDEX(Notentabellen!A:A,MATCH(F:F,Notentabellen!G:G,1)))))))))","v":" "}]
[89,{"$nulls":4},"",{"$f":"IF(F94 = \"\", \" \", IF(AND(Notentabellen!$J$3=1,Notentabellen!$L$3=1),INDEX(Notentabellen!A:A,MATCH(F:F,Notentabellen!B:B,1)),IF(AND(Notentabellen!$J$3=1,Notentabellen!$L$3=2),INDEX(Notentabellen!A:A,MATCH(F:F,Notentabellen!C:C,1)),IF(AND(Notentabellen!$J$3=2,Notentabellen!$L$3=1),INDEX(Notentabellen!A:A,MATCH(F:F,Notentabellen!D:D,1)),IF(AND(Notentabellen!$J$3=2,Notentabellen!$L$3=2),INDEX(Notentabellen!A:A,MATCH(F:F,Notentabellen!E:E,1)),IF(AND(Notentabellen!$J$3 =3,Notentabellen!$L$3=1), INDEX(Notentabellen!A:A,MATCH(F:F,Notentabellen!F:F,1)), IF(AND(Notentabellen!$J$3 =3,Notentabellen!$L$3=2), INDEX(Notentabellen!A:A,MATCH(F:F,Notentabellen!G:G,1)))))))))","v":" "}]
[90,{"$nulls":4},"",{"$f":"IF(F95 = \"\", \" \", IF(AND(Notentabellen!$J$3=1,Notentabellen!$L$3=1),INDEX(Notentabellen!A:A,MATCH(F:F,Notentabellen!B:B,1)),IF(AND(Notentabellen!$J$3=1,Notentabellen!$L$3=2),INDEX(Notentabellen!A:A,MATCH(F:F,Notentabellen!C:C,1)),IF(AND(Notentabellen!$J$3=2,Notentabellen!$L$3=1),INDEX(Notentabellen!A:A,MATCH(F:F,Notentabellen!D:D,1)),IF(AND(Notentabellen!$J$3=2,Notentabellen!$L$3=2),INDEX(Notentabellen!A:A,MATCH(F:F,Notentabellen!E:E,1)),IF(AND(Notentabellen!$J$3 =3,Notentabellen!$L$3=1), INDEX(Notentabellen!A:A,MATCH(F:F,Notentabellen!F:F,1)), IF(AND(Notentabellen!$J$3 =3,Notentabellen!$L$3=2), INDEX(Notentabellen!A:A,MATCH(F:F,Notentabellen!G:G,1)))))))))","v":" "}]
[91,{"$nulls":4},"",{"$f":"IF(F96 = \"\", \" \", IF(AND(Notentabellen!$J$3=1,Notentabellen!$L$3=1),INDEX(Notentabellen!A:A,MATCH(F:F,Notentabellen!B:B,1)),IF(AND(Notentabellen!$J$3=1,Notentabellen!$L$3=2),INDEX(Notentabellen!A:A,MATCH(F:F,Notentabellen!C:C,1)),IF(AND(Notentabellen!$J$3=2,Notentabellen!$L$3=1),INDEX(Notentabellen!A:A,MATCH(F:F,Notentabellen!D:D,1)),IF(AND(Notentabellen!$J$3=2,Notentabellen!$L$3=2),INDEX(Notentabellen!A:A,MATCH(F:F,Notentabellen!E:E,1)),IF(AND(Notentabellen!$J$3 =3,Notentabellen!$L$3=1), INDEX(Notentabellen!A:A,MATCH(F:F,Notentabellen!F:F,1)), IF(AND(Notentabellen!$J$3 =3,Notentabellen!$L$3=2), INDEX(Notentabellen!A:A,MATCH(F:F,Notentabellen!G:G,1)))))))))","v":" "}]
[92,{"$nulls":4},"",{"$f":"IF(F97 = \"\", \" \", IF(AND(Notentabellen!$J$3=1,Notentabellen!$L$3=1),INDEX(Notentabellen!A:A,MATCH(F:F,Notentabellen!B:B,1)),IF(AND(Notentabellen!$J$3=1,Notentabellen!$L$3=2),INDEX(Notentabellen!A:A,MATCH(F:F,Notentabellen!C:C,1)),IF(AND(Notentabellen!$J$3=2,Notentabellen!$L$3=1),INDEX(Notentabellen!A:A,MATCH(F:F,Notentabellen!D:D,1)),IF(AND(Notentabellen!$J$3=2,Notentabellen!$L$3=2),INDEX(Notentabellen!A:A,MATCH(F:F,Notentabellen!E:E,1)),IF(AND(Notentabellen!$J$3 =3,Notentabellen!$L$3=1), INDEX(Notentabellen!A:A,MATCH(F:F,Notentabellen!F:F,1)), IF(AND(Notentabellen!$J$3 =3,Notentabellen!$L$3=2), INDEX(Notentabellen!A:A,MATCH(F:F,Notentabellen!G:G,1)))))))))","v":" "}]
[93,{"$nulls":4},"",{"$f":"IF(F98 = \"\", \" \", IF(AND(Notentabellen!$J$3=1,Notentabellen!$L$3=1),INDEX(Notentabellen!A:A,MATCH(F:F,Notentabellen!B:B,1)),IF(AND(Notentabellen!$J$3=1,Notentabellen!$L$3=2),INDEX(Notentabellen!A:A,MATCH(F:F,Notentabellen!C:C,1)),IF(AND(Notentabellen!$J$3=2,Notentabellen!$L$3=1),INDEX(Notentabellen!A:A,MATCH(F:F,Notentabellen!D:D,1)),IF(AND(Notentabellen!$J$3=2,Notentabellen!$L$3=2),INDEX(Notentabellen!A:A,MATCH(F:F,Notentabellen!E:E,1)),IF(AND(Notentabellen!$J$3 =3,Notentabellen!$L$3=1), INDEX(Notentabellen!A:A,MATCH(F:F,Notentabellen!F:F,1)), IF(AND(Notentabellen!$J$3 =3,Notentabellen!$L$3=2), INDEX(Notentabellen!A:A,MATCH(F:F,Notentabellen!G:G,1)))))))))","v":" "}]
[94,{"$nulls":4},"",{"$f":"IF(F99 = \"\", \" \", IF(AND(Notentabellen!$J$3=1,Notentabellen!$L$3=1),INDEX(Notentabellen!A:A,MATCH(F:F,Notentabellen!B:B,1)),IF(AND(Notentabellen!$J$3=1,Notentabellen!$L$3=2),INDEX(Notentabellen!A:A,MATCH(F:F,Notentabellen!C:C,1)),IF(AND(Notentabellen!$J$3=2,Notentabellen!$L$3=1),INDEX(Notentabellen!A:A,MATCH(F:F,Notentabellen!D:D,1)),IF(AND(Notentabellen!$J$3=2,Notentabellen!$L$3=2),INDEX(Notentabellen!A:A,MATCH(F:F,Notentabellen!E:E,1)),IF(AND(Notentabellen!$J$3 =3,Notentabellen!$L$3=1), INDEX(Notentabellen!A:A,MATCH(F:F,Notentabellen!F:F,1)), IF(AND(Notentabellen!$J$3 =3,Notentabellen!$L$3=2), INDEX(Notentabellen!A:A,MATCH(F:F,Notentabellen!G:G,1)))))))))","v":" "}]
[95,{"$nulls":4},"",{"$f":"IF(F100 = \"\", \" \", IF(AND(Notentabellen!$J$3=1,Notentabellen!$L$3=1),INDEX(Notentabellen!A:A,MATCH(F:F,Notentabellen!B:B,1)),IF(AND(Notentabellen!$J$3=1,Notentabellen!$L$3=2),INDEX(Notentabellen!A:A,MATCH(F:F,Notentabellen!C:C,1)),IF(AND(Notentabellen!$J$3=2,Notentabellen!$L$3=1),INDEX(Notentabellen!A:A,MATCH(F:F,Notentabellen!D:D,1)),IF(AND(Notentabellen!$J$3=2,Notentabellen!$L$3=2),INDEX(Notentabellen!A:A,MATCH(F:F,Notentabellen!E:E,1)),IF(AND(Notentabellen!$J$3 =3,Notentabellen!$L$3=1), INDEX(Notentabellen!A:A,MATCH(F:F,Notentabellen!F:F,1)), IF(AND(Notentabellen!$J$3 =3,Notentabellen!$L$3=2), INDEX(Notentabellen!A:A,MATCH(F:F,Notentabellen!G:G,1)))))))))","v":" "}]
[96,{"$nulls":4},"",{"$f":"IF(F101 = \"\", \" \", IF(AND(Notentabellen!$J$3=1,Notentabellen!$L$3=1),INDEX(Notentabellen!A:A,MATCH(F:F,Notentabellen!B:B,1)),IF(AND(Notentabellen!$J$3=1,Notentabellen!$L$3=2),INDEX(Notentabellen!A:A,MATCH(F:F,Notentabellen!C:C,1)),IF(AND(Notentabellen!$J$3=2,Notentabellen!$L$3=1),INDEX(Notentabellen!A:A,MATCH(F:F,Notentabellen!D:D,1)),IF(AND(Notentabellen!$J$3=2,Notentabellen!$L$3=2),INDEX(Notentabellen!A:A,MATCH(F:F,Notentabellen!E:E,1)),IF(AND(Notentabellen!$J$3 =3,Notentabellen!$L$3=1), INDEX(Notentabellen!A:A,MATCH(F:F,Notentabellen!F:F,1)), IF(AND(Notentabellen!$J$3 =3,Notentabellen!$L$3=2), INDEX(Notentabellen!A:A,MATCH(F:F,Notentabellen!G:G,1)))))))))","v":" "}]
[97,{"$nulls":4},"",{"$f":"IF(F102 = \"\", \" \", IF(AND(Notentabellen!$J$3=1,Notentabellen!$L$3=1),INDEX(Notentabellen!A:A,MATCH(F:F,Notentabellen!B:B,1)),IF(AND(Notentabellen!$J$3=1,Notentabellen!$L$3=2),INDEX(Notentabellen!A:A,MATCH(F:F,Notentabellen!C:C,1)),IF(AND(Notentabellen!$J$3=2,Notentabellen!$L$3=1),INDEX(Notentabellen!A:A,MATCH(F:F,Notentabellen!D:D,1)),IF(AND(Notentabellen!$J$3=2,Notentabellen!$L$3=2),INDEX(Notentabellen!A:A,MATCH(F:F,Notentabellen!E:E,1)),IF(AND(Notentabellen!$J$3 =3,Notentabellen!$L$3=1), INDEX(Notentabellen!A:A,MATCH(F:F,Notentabellen!F:F,1)), IF(AND(Notentabellen!$J$3 =3,Notentabellen!$L$3=2), INDEX(Notentabellen!A:A,MATCH(F:F,Notentabellen!G:G,1)))))))))","v":" "}]
[98,{"$nulls":4},"",{"$f":"IF(F103 = \"\", \" \", IF(AND(Notentabellen!$J$3=1,Notentabellen!$L$3=1),INDEX(Notentabellen!A:A,MATCH(F:F,Notentabellen!B:B,1)),IF(AND(Notentabellen!$J$3=1,Notentabellen!$L$3=2),INDEX(Notentabellen!A:A,MATCH(F:F,Notentabellen!C:C,1)),IF(AND(Notentabellen!$J$3=2,Notentabellen!$L$3=1),INDEX(Notentabellen!A:A,MATCH(F:F,Notentabellen!D:D,1)),IF(AND(Notentabellen!$J$3=2,Notentabellen!$L$3=2),INDEX(Notentabellen!A:A,MATCH(F:F,Notentabellen!E:E,1)),IF(AND(Notentabellen!$J$3 =3,Notentabellen!$L$3=1), INDEX(Notentabellen!A:A,MATCH(F:F,Notentabellen!F:F,1)), IF(AND(Notentabellen!$J$3 =3,Notentabellen!$L$3=2), INDEX(Notentabellen!A:A,MATCH(F:F,Notentabellen!G:G,1)))))))))","v":" "}]
[99,{"$nulls":4},"",{"$f":"IF(F104 = \"\", \" \", IF(AND(Notentabellen!$J$3=1,Notentabellen!$L$3=1),INDEX(Notentabellen!A:A,MATCH(F:F,Notentabellen!B:B,1)),IF(AND(Notentabellen!$J$3=1,Notentabellen!$L$3=2),INDEX(Notentabellen!A:A,MATCH(F:F,Notentabellen!C:C,1)),IF(AND(Notentabellen!$J$3=2,Notentabellen!$L$3=1),INDEX(Notentabellen!A:A,MATCH(F:F,Notentabellen!D:D,1)),IF(AND(Notentabellen!$J$3=2,Notentabellen!$L$3=2),INDEX(Notentabellen!A:A,MATCH(F:F,Notentabellen!E:E,1)),IF(AND(Notentabellen!$J$3 =3,Notentabellen!$L$3=1), INDEX(Notentabellen!A:A,MATCH(F:F,Notentabellen!F:F,1)), IF(AND(Notentabellen!$J$3 =3,Notentabellen!$L$3=2), INDEX(Notentabellen!A:A,MATCH(F:F,Notentabellen!G:G,1)))))))))","v":" "}]
[100,{"$nulls":4},"",{"$f":"IF(F105 = \"\", \" \", IF(AND(Notentabellen!$J$3=1,Notentabellen!$L$3=1),INDEX(Notentabellen!A:A,MATCH(F:F,Notentabellen!B:B,1)),IF(AND(Notentabellen!$J$3=1,Notentabellen!$L$3=2),INDEX(Notentabellen!A:A,MATCH(F:F,Notentabellen!C:C,1)),IF(AND(Notentabellen!$J$3=2,Notentabellen!$L$3=1),INDEX(Notentabellen!A:A,MATCH(F:F,Notentabellen!D:D,1)),IF(AND(Notentabellen!$J$3=2,Notentabellen!$L$3=2),INDEX(Notentabellen!A:A,MATCH(F:F,Notentabellen!E:E,1)),IF(AND(Notentabellen!$J$3 =3,Notentabellen!$L$3=1), INDEX(Notentabellen!A:A,MATCH(F:F,Notentabellen!F:F,1)), IF(AND(Notentabellen!$J$3 =3,Notentabellen!$L$3=2), INDEX(Notentabellen!A:A,MATCH(F:F,Notentabellen!G:G,1)))))))))","v":" "}]

{"sheet":"Rangliste","index":2,"n_rows":103,"n_cols":5,"rows_kept":103,"merged":[[0,0,0,4],[1,0,1,4]]}
["Rangliste"]
["Anmerkung: Zeiten, Noten und Notenschnitt (und diese Bemerkung) können ausgeblendet werden, indem die entsprechenden Spalten (bzw. diese Zeile) ausgeblendet werden!"]
["Rang","Läufer/in","Strecke","Note","Notenschnitt"]
[{"$f":"IF(C4=\"\",\"\",_xlfn.RANK.EQ(C4,C:C,0))","v":""},{"$f":"IF(C4=\"\",\"\",INDEX(Laufliste!B:B,_xlfn.AGGREGATE(15,6,ROW(Laufliste!F:F)/(Laufliste!F:F=C4),COUNTIF($C$4:C4,C4)),1))","v":""},{"$f":"IF(ISERROR(_xlfn.AGGREGATE(14,6,Laufliste!F:F,ROW()-3)),\"\",IF(ROWS($A$4:A4)<=Hilfsregister!$C$2,_xlfn.AGGREGATE(14,6,Laufliste!F:F,ROW()-3),\"\"))","v":""},{"$f":"IF(C4 = \"\", \"\", IF(AND(Notentabellen!$J$3=1,Notentabellen!$L$3=1),INDEX(Notentabellen!A:A,MATCH(C:C,Notentabellen!B:B,1)),IF(AND(Notentabellen!$J$3=1,Notentabellen!$L$3=2),INDEX(Notentabellen!A:A,MATCH(C:C,Notentabellen!C:C,1)),IF(AND(Notentabellen!$J$3=2,Notentabellen!$L$3=1),INDEX(Notentabellen!A:A,MATCH(C:C,Notentabellen!D:D,1)),IF(AND(Notentabellen!$J$3=2,Notentabellen!$L$3=2),INDEX(Notentabellen!A:A,MATCH(C:C,Notentabellen!E:E,1)),IF(AND(Notentabellen!$J$3 =3,Notentabellen!$L$3=1), INDEX(Notentabellen!A:A,MATCH(C:C,Notentabellen!F:F,1)), IF(AND(Notentabellen!$J$3 =3,Notentabellen!$L$3=2), INDEX(Notentabellen!A:A,MATCH(C:C,Notentabellen!G:G,1)))))))))","v":""},{"$f":"AVERAGE(D4:D103)","v":{"$error":"#DIV/0!"}}]
[{"$f":"IF(C5=\"\",\"\",_xlfn.RANK.EQ(C5,C:C,0))","v":""},{"$f":"IF(C5=\"\",\"\",INDEX(Laufliste!B:B,_xlfn.AGGREGATE(15,6,ROW(Laufliste!F:F)/(Laufliste!F:F=C5),COUNTIF($C$4:C5,C5)),1))","v":""},{"$f":"IF(ISERROR(_xlfn.AGGREGATE(14,6,Laufliste!F:F,ROW()-3)),\"\",IF(ROWS($A$4:A5)<=Hilfsregister!$C$2,_xlfn.AGGREGATE(14,6,Laufliste!F:F,ROW()-3),\"\"))","v":""},{"$f":"IF(C5 = \"\", \"\", IF(AND(Notentabellen!$J$3=1,Notentabellen!$L$3=1),INDEX(Notentabellen!A:A,MATCH(C:C,Notentabellen!B:B,1)),IF(AND(Notentabellen!$J$3=1,Notentabellen!$L$3=2),INDEX(Notentabellen!A:A,MATCH(C:C,Notentabellen!C:C,1)),IF(AND(Notentabellen!$J$3=2,Notentabellen!$L$3=1),INDEX(Notentabellen!A:A,MATCH(C:C,Notentabellen!D:D,1)),IF(AND(Notentabellen!$J$3=2,Notentabellen!$L$3=2),INDEX(Notentabellen!A:A,MATCH(C:C,Notentabellen!E:E,1)),IF(AND(Notentabellen!$J$3 =3,Notentabellen!$L$3=1), INDEX(Notentabellen!A:A,MATCH(C:C,Notentabellen!F:F,1)), IF(AND(Notentabellen!$J$3 =3,Notentabellen!$L$3=2), INDEX(Notentabellen!A:A,MATCH(C:C,Notentabellen!G:G,1)))))))))","v":""}]
["",{"$f":"IF(C6=\"\",\"\",INDEX(Laufliste!B:B,_xlfn.AGGREGATE(15,6,ROW(Laufliste!F:F)/(Laufliste!F:F=C6),COUNTIF($C$4:C6,C6)),1))","v":""},{"$f":"IF(ISERROR(_xlfn.AGGREGATE(14,6,Laufliste!F:F,ROW()-3)),\"\",IF(ROWS($A$4:A6)<=Hilfsregister!$C$2,_xlfn.AGGREGATE(14,6,Laufliste!F:F,ROW()-3),\"\"))","v":""},{"$f":"IF(C6 = \"\", \"\", IF(AND(Notentabellen!$J$3=1,Notentabellen!$L$3=1),INDEX(Notentabellen!A:A,MATCH(C:C,Notentabellen!B:B,1)),IF(AND(Notentabellen!$J$3=1,Notentabellen!$L$3=2),INDEX(Notentabellen!A:A,MATCH(C:C,Notentabellen!C:C,1)),IF(AND(Notentabellen!$J$3=2,Notentabellen!$L$3=1),INDEX(Notentabellen!A:A,MATCH(C:C,Notentabellen!D:D,1)),IF(AND(Notentabellen!$J$3=2,Notentabellen!$L$3=2),INDEX(Notentabellen!A:A,MATCH(C:C,Notentabellen!E:E,1)),IF(AND(Notentabellen!$J$3 =3,Notentabellen!$L$3=1), INDEX(Notentabellen!A:A,MATCH(C:C,Notentabellen!F:F,1)), IF(AND(Notentabellen!$J$3 =3,Notentabellen!$L$3=2), INDEX(Notentabellen!A:A,MATCH(C:C,Notentabellen!G:G,1)))))))))","v":""}]
["",{"$f":"IF(C7=\"\",\"\",INDEX(Laufliste!B:B,_xlfn.AGGREGATE(15,6,ROW(Laufliste!F:F)/(Laufliste!F:F=C7),COUNTIF($C$4:C7,C7)),1))","v":""},{"$f":"IF(ISERROR(_xlfn.AGGREGATE(14,6,Laufliste!F:F,ROW()-3)),\"\",IF(ROWS($A$4:A7)<=Hilfsregister!$C$2,_xlfn.AGGREGATE(14,6,Laufliste!F:F,ROW()-3),\"\"))","v":""},{"$f":"IF(C7 = \"\", \"\", IF(AND(Notentabellen!$J$3=1,Notentabellen!$L$3=1),INDEX(Notentabellen!A:A,MATCH(C:C,Notentabellen!B:B,1)),IF(AND(Notentabellen!$J$3=1,Notentabellen!$L$3=2),INDEX(Notentabellen!A:A,MATCH(C:C,Notentabellen!C:C,1)),IF(AND(Notentabellen!$J$3=2,Notentabellen!$L$3=1),INDEX(Notentabellen!A:A,MATCH(C:C,Notentabellen!D:D,1)),IF(AND(Notentabellen!$J$3=2,Notentabellen!$L$3=2),INDEX(Notentabellen!A:A,MATCH(C:C,Notentabellen!E:E,1)),IF(AND(Notentabellen!$J$3 =3,Notentabellen!$L$3=1), INDEX(Notentabellen!A:A,MATCH(C:C,Notentabellen!F:F,1)), IF(AND(Notentabellen!$J$3 =3,Notentabellen!$L$3=2), INDEX(Notentabellen!A:A,MATCH(C:C,Notentabellen!G:G,1)))))))))","v":""}]
["",{"$f":"IF(C8=\"\",\"\",INDEX(Laufliste!B:B,_xlfn.AGGREGATE(15,6,ROW(Laufliste!F:F)/(Laufliste!F:F=C8),COUNTIF($C$4:C8,C8)),1))","v":""},{"$f":"IF(ISERROR(_xlfn.AGGREGATE(14,6,Laufliste!F:F,ROW()-3)),\"\",IF(ROWS($A$4:A8)<=Hilfsregister!$C$2,_xlfn.AGGREGATE(14,6,Laufliste!F:F,ROW()-3),\"\"))","v":""},{"$f":"IF(C8 = \"\", \"\", IF(AND(Notentabellen!$J$3=1,Notentabellen!$L$3=1),INDEX(Notentabellen!A:A,MATCH(C:C,Notentabellen!B:B,1)),IF(AND(Notentabellen!$J$3=1,Notentabellen!$L$3=2),INDEX(Notentabellen!A:A,MATCH(C:C,Notentabellen!C:C,1)),IF(AND(Notentabellen!$J$3=2,Notentabellen!$L$3=1),INDEX(Notentabellen!A:A,MATCH(C:C,Notentabellen!D:D,1)),IF(AND(Notentabellen!$J$3=2,Notentabellen!$L$3=2),INDEX(Notentabellen!A:A,MATCH(C:C,Notentabellen!E:E,1)),IF(AND(Notentabellen!$J$3 =3,Notentabellen!$L$3=1), INDEX(Notentabellen!A:A,MATCH(C:C,Notentabellen!F:F,1)), IF(AND(Notentabellen!$J$3 =3,Notentabellen!$L$3=2), INDEX(Notentabellen!A:A,MATCH(C:C,Notentabellen!G:G,1)))))))))","v":""}]
["",{"$f":"IF(C9=\"\",\"\",INDEX(Laufliste!B:B,_xlfn.AGGREGATE(15,6,ROW(Laufliste!F:F)/(Laufliste!F:F=C9),COUNTIF($C$4:C9,C9)),1))","v":""},{"$f":"IF(ISERROR(_xlfn.AGGREGATE(14,6,Laufliste!F:F,ROW()-3)),\"\",IF(ROWS($A$4:A9)<=Hilfsregister!$C$2,_xlfn.AGGREGATE(14,6,Laufliste!F:F,ROW()-3),\"\"))","v":""},{"$f":"IF(C9 = \"\", \"\", IF(AND(Notentabellen!$J$3=1,Notentabellen!$L$3=1),INDEX(Notentabellen!A:A,MATCH(C:C,Notentabellen!B:B,1)),IF(AND(Notentabellen!$J$3=1,Notentabellen!$L$3=2),INDEX(Notentabellen!A:A,MATCH(C:C,Notentabellen!C:C,1)),IF(AND(Notentabellen!$J$3=2,Notentabellen!$L$3=1),INDEX(Notentabellen!A:A,MATCH(C:C,Notentabellen!D:D,1)),IF(AND(Notentabellen!$J$3=2,Notentabellen!$L$3=2),INDEX(Notentabellen!A:A,MATCH(C:C,Notentabellen!E:E,1)),IF(AND(Notentabellen!$J$3 =3,Notentabellen!$L$3=1), INDEX(Notentabellen!A:A,MATCH(C:C,Notentabellen!F:F,1)), IF(AND(Notentabellen!$J$3 =3,Notentabellen!$L$3=2), INDEX(Notentabellen!A:A,MATCH(C:C,Notentabellen!G:G,1)))))))))","v":""}]
["",{"$f":"IF(C10=\"\",\"\",INDEX(Laufliste!B:B,_xlfn.AGGREGATE(15,6,ROW(Laufliste!F:F)/(Laufliste!F:F=C10),COUNTIF($C$4:C10,C10)),1))","v":""},{"$f":"IF(ISERROR(_xlfn.AGGREGATE(14,6,Laufliste!F:F,ROW()-3)),\"\",IF(ROWS($A$4:A10)<=Hilfsregister!$C$2,_xlfn.AGGREGATE(14,6,Laufliste!F:F,ROW()-3),\"\"))","v":""},{"$f":"IF(C10 = \"\", \"\", IF(AND(Notentabellen!$J$3=1,Notentabellen!$L$3=1),INDEX(Notentabellen!A:A,MATCH(C:C,Notentabellen!B:B,1)),IF(AND(Notentabellen!$J$3=1,Notentabellen!$L$3=2),INDEX(Notentabellen!A:A,MATCH(C:C,Notentabellen!C:C,1)),IF(AND(Notentabellen!$J$3=2,Notentabellen!$L$3=1),INDEX(Notentabellen!A:A,MATCH(C:C,Notentabellen!D:D,1)),IF(AND(Notentabellen!$J$3=2,Notentabellen!$L$3=2),INDEX(Notentabellen!A:A,MATCH(C:C,Notentabellen!E:E,1)),IF(AND(Notentabellen!$J$3 =3,Notentabellen!$L$3=1), INDEX(Notentabellen!A:A,MATCH(C:C,Notentabellen!F:F,1)), IF(AND(Notentabellen!$J$3 =3,Notentabellen!$L$3=2), INDEX(Notentabellen!A:A,MATCH(C:C,Notentabellen!G:G,1)))))))))","v":""}]
["",{"$f":"IF(C11=\"\",\"\",INDEX(Laufliste!B:B,_xlfn.AGGREGATE(15,6,ROW(Laufliste!F:F)/(Laufliste!F:F=C11),COUNTIF($C$4:C11,C11)),1))","v":""},{"$f":"IF(ISERROR(_xlfn.AGGREGATE(14,6,Laufliste!F:F,ROW()-3)),\"\",IF(ROWS($A$4:A11)<=Hilfsregister!$C$2,_xlfn.AGGREGATE(14,6,Laufliste!F:F,ROW()-3),\"\"))","v":""},{"$f":"IF(C11 = \"\", \"\", IF(AND(Notentabellen!$J$3=1,Notentabellen!$L$3=1),INDEX(Notentabellen!A:A,MATCH(C:C,Notentabellen!B:B,1)),IF(AND(Notentabellen!$J$3=1,Notentabellen!$L$3=2),INDEX(Notentabellen!A:A,MATCH(C:C,Notentabellen!C:C,1)),IF(AND(Notentabellen!$J$3=2,Notentabellen!$L$3=1),INDEX(Notentabellen!A:A,MATCH(C:C,Notentabellen!D:D,1)),IF(AND(Notentabellen!$J$3=2,Notentabellen!$L$3=2),INDEX(Notentabellen!A:A,MATCH(C:C,Notentabellen!E:E,1)),IF(AND(Notentabellen!$J$3 =3,Notentabellen!$L$3=1), INDEX(Notentabellen!A:A,MATCH(C:C,Notentabellen!F:F,1)), IF(AND(Notentabellen!$J$3 =3,Notentabellen!$L$3=2), INDEX(Notentabellen!A:A,MATCH(C:C,Notentabellen!G:G,1)))))))))","v":""}]
["",{"$f":"IF(C12=\"\",\"\",INDEX(Laufliste!B:B,_xlfn.AGGREGATE(15,6,ROW(Laufliste!F:F)/(Laufliste!F:F=C12),COUNTIF($C$4:C12,C12)),1))","v":""},{"$f":"IF(ISERROR(_xlfn.AGGREGATE(14,6,Laufliste!F:F,ROW()-3)),\"\",IF(ROWS($A$4:A12)<=Hilfsregister!$C$2,_xlfn.AGGREGATE(14,6,Laufliste!F:F,ROW()-3),\"\"))","v":""},{"$f":"IF(C12 = \"\", \"\", IF(AND(Notentabellen!$J$3=1,Notentabellen!$L$3=1),INDEX(Notentabellen!A:A,MATCH(C:C,Notentabellen!B:B,1)),IF(AND(Notentabellen!$J$3=1,Notentabellen!$L$3=2),INDEX(Notentabellen!A:A,MATCH(C:C,Notentabellen!C:C,1)),IF(AND(Notentabellen!$J$3=2,Notentabellen!$L$3=1),INDEX(Notentabellen!A:A,MATCH(C:C,Notentabellen!D:D,1)),IF(AND(Notentabellen!$J$3=2,Notentabellen!$L$3=2),INDEX(Notentabellen!A:A,MATCH(C:C,Notentabellen!E:E,1)),IF(AND(Notentabellen!$J$3 =3,Notentabellen!$L$3=1), INDEX(Notentabellen!A:A,MATCH(C:C,Notentabellen!F:F,1)), IF(AND(Notentabellen!$J$3 =3,Notentabellen!$L$3=2), INDEX(Notentabellen!A:A,MATCH(C:C,Notentabellen!G:G,1)))))))))","v":""}]
["",{"$f":"IF(C13=\"\",\"\",INDEX(Laufliste!B:B,_xlfn.AGGREGATE(15,6,ROW(Laufliste!F:F)/(Laufliste!F:F=C13),COUNTIF($C$4:C13,C13)),1))","v":""},{"$f":"IF(ISERROR(_xlfn.AGGREGATE(14,6,Laufliste!F:F,ROW()-3)),\"\",IF(ROWS($A$4:A13)<=Hilfsregister!$C$2,_xlfn.AGGREGATE(14,6,Laufliste!F:F,ROW()-3),\"\"))","v":""},{"$f":"IF(C13 = \"\", \"\", IF(AND(Notentabellen!$J$3=1,Notentabellen!$L$3=1),INDEX(Notentabellen!A:A,MATCH(C:C,Notentabellen!B:B,1)),IF(AND(Notentabellen!$J$3=1,Notentabellen!$L$3=2),INDEX(Notentabellen!A:A,MATCH(C:C,Notentabellen!C:C,1)),IF(AND(Notentabellen!$J$3=2,Notentabellen!$L$3=1),INDEX(Notentabellen!A:A,MATCH(C:C,Notentabellen!D:D,1)),IF(AND(Notentabellen!$J$3=2,Notentabellen!$L$3=2),INDEX(Notentabellen!A:A,MATCH(C:C,Notentabellen!E:E,1)),IF(AND(Notentabellen!$J$3 =3,Notentabellen!$L$3=1), INDEX(Notentabellen!A:A,MATCH(C:C,Notentabellen!F:F,1)), IF(AND(Notentabellen!$J$3 =3,Notentabellen!$L$3=2), INDEX(Notentabellen!A:A,MATCH(C:C,Notentabellen!G:G,1)))))))))","v":""}]
["",{"$f":"IF(C14=\"\",\"\",INDEX(Laufliste!B:B,_xlfn.AGGREGATE(15,6,ROW(Laufliste!F:F)/(Laufliste!F:F=C14),COUNTIF($C$4:C14,C14)),1))","v":""},{"$f":"IF(ISERROR(_xlfn.AGGREGATE(14,6,Laufliste!F:F,ROW()-3)),\"\",IF(ROWS($A$4:A14)<=Hilfsregister!$C$2,_xlfn.AGGREGATE(14,6,Laufliste!F:F,ROW()-3),\"\"))","v":""},{"$f":"IF(C14 = \"\", \"\", IF(AND(Notentabellen!$J$3=1,Notentabellen!$L$3=1),INDEX(Notentabellen!A:A,MATCH(C:C,Notentabellen!B:B,1)),IF(AND(Notentabellen!$J$3=1,Notentabellen!$L$3=2),INDEX(Notentabellen!A:A,MATCH(C:C,Notentabellen!C:C,1)),IF(AND(Notentabellen!$J$3=2,Notentabellen!$L$3=1),INDEX(Notentabellen!A:A,MATCH(C:C,Notentabellen!D:D,1)),IF(AND(Notentabellen!$J$3=2,Notentabellen!$L$3=2),INDEX(Notentabellen!A:A,MATCH(C:C,Notentabellen!E:E,1)),IF(AND(Notentabellen!$J$3 =3,Notentabellen!$L$3=1), INDEX(Notentabellen!A:A,MATCH(C:C,Notentabellen!F:F,1)), IF(AND(Notentabellen!$J$3 =3,Notentabellen!$L$3=2), INDEX(Notentabellen!A:A,MATCH(C:C,Notentabellen!G:G,1)))))))))","v":""}]
["",{"$f":"IF(C15=\"\",\"\",INDEX(Laufliste!B:B,_xlfn.AGGREGATE(15,6,ROW(Laufliste!F:F)/(Laufliste!F:F=C15),COUNTIF($C$4:C15,C15)),1))","v":""},{"$f":"IF(ISERROR(_xlfn.AGGREGATE(14,6,Laufliste!F:F,ROW()-3)),\"\",IF(ROWS($A$4:A15)<=Hilfsregister!$C$2,_xlfn.AGGREGATE(14,6,Laufliste!F:F,ROW()-3),\"\"))","v":""},{"$f":"IF(C15 = \"\", \"\", IF(AND(Notentabellen!$J$3=1,Notentabellen!$L$3=1),INDEX(Notentabellen!A:A,MATCH(C:C,Notentabellen!B:B,1)),IF(AND(Notentabellen!$J$3=1,Notentabellen!$L$3=2),INDEX(Notentabellen!A:A,MATCH(C:C,Notentabellen!C:C,1)),IF(AND(Notentabellen!$J$3=2,Notentabellen!$L$3=1),INDEX(Notentabellen!A:A,MATCH(C:C,Notentabellen!D:D,1)),IF(AND(Notentabellen!$J$3=2,Notentabellen!$L$3=2),INDEX(Notentabellen!A:A,MATCH(C:C,Notentabellen!E:E,1)),IF(AND(Notentabellen!$J$3 =3,Notentabellen!$L$3=1), INDEX(Notentabellen!A:A,MATCH(C:C,Notentabellen!F:F,1)), IF(AND(Notentabellen!$J$3 =3,Notentabellen!$L$3=2), INDEX(Notentabellen!A:A,MATCH(C:C,Notentabellen!G:G,1)))))))))","v":""}]
["",{"$f":"IF(C16=\"\",\"\",INDEX(Laufliste!B:B,_xlfn.AGGREGATE(15,6,ROW(Laufliste!F:F)/(Laufliste!F:F=C16),COUNTIF($C$4:C16,C16)),1))","v":""},{"$f":"IF(ISERROR(_xlfn.AGGREGATE(14,6,Laufliste!F:F,ROW()-3)),\"\",IF(ROWS($A$4:A16)<=Hilfsregister!$C$2,_xlfn.AGGREGATE(14,6,Laufliste!F:F,ROW()-3),\"\"))","v":""},{"$f":"IF(C16 = \"\", \"\", IF(AND(Notentabellen!$J$3=1,Notentabellen!$L$3=1),INDEX(Notentabellen!A:A,MATCH(C:C,Notentabellen!B:B,1)),IF(AND(Notentabellen!$J$3=1,Notentabellen!$L$3=2),INDEX(Notentabellen!A:A,MATCH(C:C,Notentabellen!C:C,1)),IF(AND(Notentabellen!$J$3=2,Notentabellen!$L$3=1),INDEX(Notentabellen!A:A,MATCH(C:C,Notentabellen!D:D,1)),IF(AND(Notentabellen!$J$3=2,Notentabellen!$L$3=2),INDEX(Notentabellen!A:A,MATCH(C:C,Notentabellen!E:E,1)),IF(AND(Notentabellen!$J$3 =3,Notentabellen!$L$3=1), INDEX(Notentabellen!A:A,MATCH(C:C,Notentabellen!F:F,1)), IF(AND(Notentabellen!$J$3 =3,Notentabellen!$L$3=2), INDEX(Notentabellen!A:A,MATCH(C:C,Notentabellen!G:G,1)))))))))","v":""}]
["",{"$f":"IF(C17=\"\",\"\",INDEX(Laufliste!B:B,_xlfn.AGGREGATE(15,6,ROW(Laufliste!F:F)/(Laufliste!F:F=C17),COUNTIF($C$4:C17,C17)),1))","v":""},{"$f":"IF(ISERROR(_xlfn.AGGREGATE(14,6,Laufliste!F:F,ROW()-3)),\"\",IF(ROWS($A$4:A17)<=Hilfsregister!$C$2,_xlfn.AGGREGATE(14,6,Laufliste!F:F,ROW()-3),\"\"))","v":""},{"$f":"IF(C17 = \"\", \"\", IF(AND(Notentabellen!$J$3=1,Notentabellen!$L$3=1),INDEX(Notentabellen!A:A,MATCH(C:C,Notentabellen!B:B,1)),IF(AND(Notentabellen!$J$3=1,Notentabellen!$L$3=2),INDEX(Notentabellen!A:A,MATCH(C:C,Notentabellen!C:C,1)),IF(AND(Notentabellen!$J$3=2,Notentabellen!$L$3=1),INDEX(Notentabellen!A:A,MATCH(C:C,Notentabellen!D:D,1)),IF(AND(Notentabellen!$J$3=2,Notentabellen!$L$3=2),INDEX(Notentabellen!A:A,MATCH(C:C,Notentabellen!E:E,1)),IF(AND(Notentabellen!$J$3 =3,Notentabellen!$L$3=1), INDEX(Notentabellen!A:A,MATCH(C:C,Notentabellen!F:F,1)), IF(AND(Notentabellen!$J$3 =3,Notentabellen!$L$3=2), INDEX(Notentabellen!A:A,MATCH(C:C,Notentabellen!G:G,1)))))))))","v":""}]
["",{"$f":"IF(C18=\"\",\"\",INDEX(Laufliste!B:B,_xlfn.AGGREGATE(15,6,ROW(Laufliste!F:F)/(Laufliste!F:F=C18),COUNTIF($C$4:C18,C18)),1))","v":""},{"$f":"IF(ISERROR(_xlfn.AGGREGATE(14,6,Laufliste!F:F,ROW()-3)),\"\",IF(ROWS($A$4:A18)<=Hilfsregister!$C$2,_xlfn.AGGREGATE(14,6,Laufliste!F:F,ROW()-3),\"\"))","v":""},{"$f":"IF(C18 = \"\", \"\", IF(AND(Notentabellen!$J$3=1,Notentabellen!$L$3=1),INDEX(Notentabellen!A:A,MATCH(C:C,Notentabellen!B:B,1)),IF(AND(Notentabellen!$J$3=1,Notentabellen!$L$3=2),INDEX(Notentabellen!A:A,MATCH(C:C,Notentabellen!C:C,1)),IF(AND(Notentabellen!$J$3=2,Notentabellen!$L$3=1),INDEX(Notentabellen!A:A,MATCH(C:C,Notentabellen!D:D,1)),IF(AND(Notentabellen!$J$3=2,Notentabellen!$L$3=2),INDEX(Notentabellen!A:A,MATCH(C:C,Notentabellen!E:E,1)),IF(AND(Notentabellen!$J$3 =3,Notentabellen!$L$3=1), INDEX(Notentabellen!A:A,MATCH(C:C,Notentabellen!F:F,1)), IF(AND(Notentabellen!$J$3 =3,Notentabellen!$L$3=2), INDEX(Notentabellen!A:A,MATCH(C:C,Notentabellen!G:G,1)))))))))","v":""}]
["",{"$f":"IF(C19=\"\",\"\",INDEX(Laufliste!B:B,_xlfn.AGGREGATE(15,6,ROW(Laufliste!F:F)/(Laufliste!F:F=C19),COUNTIF($C$4:C19,C19)),1))","v":""},{"$f":"IF(ISERROR(_xlfn.AGGREGATE(14,6,Laufliste!F:F,ROW()-3)),\"\",IF(ROWS($A$4:A19)<=Hilfsregister!$C$2,_xlfn.AGGREGATE(14,6,Laufliste!F:F,ROW()-3),\"\"))","v":""},{"$f":"IF(C19 = \"\", \"\", IF(AND(Notentabellen!$J$3=1,Notentabellen!$L$3=1),INDEX(Notentabellen!A:A,MATCH(C:C,Notentabellen!B:B,1)),IF(AND(Notentabellen!$J$3=1,Notentabellen!$L$3=2),INDEX(Notentabellen!A:A,MATCH(C:C,Notentabellen!C:C,1)),IF(AND(Notentabellen!$J$3=2,Notentabellen!$L$3=1),INDEX(Notentabellen!A:A,MATCH(C:C,Notentabellen!D:D,1)),IF(AND(Notentabellen!$J$3=2,Notentabellen!$L$3=2),INDEX(Notentabellen!A:A,MATCH(C:C,Notentabellen!E:E,1)),IF(AND(Notentabellen!$J$3 =3,Notentabellen!$L$3=1), INDEX(Notentabellen!A:A,MATCH(C:C,Notentabellen!F:F,1)), IF(AND(Notentabellen!$J$3 =3,Notentabellen!$L$3=2), INDEX(Notentabellen!A:A,MATCH(C:C,Notentabellen!G:G,1)))))))))","v":""}]
["",{"$f":"IF(C20=\"\",\"\",INDEX(Laufliste!B:B,_xlfn.AGGREGATE(15,6,ROW(Laufliste!F:F)/(Laufliste!F:F=C20),COUNTIF($C$4:C20,C20)),1))","v":""},{"$f":"IF(ISERROR(_xlfn.AGGREGATE(14,6,Laufliste!F:F,ROW()-3)),\"\",IF(ROWS($A$4:A20)<=Hilfsregister!$C$2,_xlfn.AGGREGATE(14,6,Laufliste!F:F,ROW()-3),\"\"))","v":""},{"$f":"IF(C20 = \"\", \"\", IF(AND(Notentabellen!$J$3=1,Notentabellen!$L$3=1),INDEX(Notentabellen!A:A,MATCH(C:C,Notentabellen!B:B,1)),IF(AND(Notentabellen!$J$3=1,Notentabellen!$L$3=2),INDEX(Notentabellen!A:A,MATCH(C:C,Notentabellen!C:C,1)),IF(AND(Notentabellen!$J$3=2,Notentabellen!$L$3=1),INDEX(Notentabellen!A:A,MATCH(C:C,Notentabellen!D:D,1)),IF(AND(Notentabellen!$J$3=2,Notentabellen!$L$3=2),INDEX(Notentabellen!A:A,MATCH(C:C,Notentabellen!E:E,1)),IF(AND(Notentabellen!$J$3 =3,Notentabellen!$L$3=1), INDEX(Notentabellen!A:A,MATCH(C:C,Notentabellen!F:F,1)), IF(AND(Notentabellen!$J$3 =3,Notentabellen!$L$3=2), INDEX(Notentabellen!A:A,MATCH(C:C,Notentabellen!G:G,1)))))))))","v":""}]
["",{"$f":"IF(C21=\"\",\"\",INDEX(Laufliste!B:B,_xlfn.AGGREGATE(15,6,ROW(Laufliste!F:F)/(Laufliste!F:F=C21),COUNTIF($C$4:C21,C21)),1))","v":""},{"$f":"IF(ISERROR(_xlfn.AGGREGATE(14,6,Laufliste!F:F,ROW()-3)),\"\",IF(ROWS($A$4:A21)<=Hilfsregister!$C$2,_xlfn.AGGREGATE(14,6,Laufliste!F:F,ROW()-3),\"\"))","v":""},{"$f":"IF(C21 = \"\", \"\", IF(AND(Notentabellen!$J$3=1,Notentabellen!$L$3=1),INDEX(Notentabellen!A:A,MATCH(C:C,Notentabellen!B:B,1)),IF(AND(Notentabellen!$J$3=1,Notentabellen!$L$3=2),INDEX(Notentabellen!A:A,MATCH(C:C,Notentabellen!C:C,1)),IF(AND(Notentabellen!$J$3=2,Notentabellen!$L$3=1),INDEX(Notentabellen!A:A,MATCH(C:C,Notentabellen!D:D,1)),IF(AND(Notentabellen!$J$3=2,Notentabellen!$L$3=2),INDEX(Notentabellen!A:A,MATCH(C:C,Notentabellen!E:E,1)),IF(AND(Notentabellen!$J$3 =3,Notentabellen!$L$3=1), INDEX(Notentabellen!A:A,MATCH(C:C,Notentabellen!F:F,1)), IF(AND(Notentabellen!$J$3 =3,Notentabellen!$L$3=2), INDEX(Notentabellen!A:A,MATCH(C:C,Notentabellen!G:G,1)))))))))","v":""}]
["",{"$f":"IF(C22=\"\",\"\",INDEX(Laufliste!B:B,_xlfn.AGGREGATE(15,6,ROW(Laufliste!F:F)/(Laufliste!F:F=C22),COUNTIF($C$4:C22,C22)),1))","v":""},{"$f":"IF(ISERROR(_xlfn.AGGREGATE(14,6,Laufliste!F:F,ROW()-3)),\"\",IF(ROWS($A$4:A22)<=Hilfsregister!$C$2,_xlfn.AGGREGATE(14,6,Laufliste!F:F,ROW()-3),\"\"))","v":""},{"$f":"IF(C22 = \"\", \"\", IF(AND(Notentabellen!$J$3=1,Notentabellen!$L$3=1),INDEX(Notentabellen!A:A,MATCH(C:C,Notentabellen!B:B,1)),IF(AND(Notentabellen!$J$3=1,Notentabellen!$L$3=2),INDEX(Notentabellen!A:A,MATCH(C:C,Notentabellen!C:C,1)),IF(AND(Notentabellen!$J$3=2,Notentabellen!$L$3=1),INDEX(Notentabellen!A:A,MATCH(C:C,Notentabellen!D:D,1)),IF(AND(Notentabellen!$J$3=2,Notentabellen!$L$3=2),INDEX(Notentabellen!A:A,MATCH(C:C,Notentabellen!E:E,1)),IF(AND(Notentabellen!$J$3 =3,Notentabellen!$L$3=1), INDEX(Notentabellen!A:A,MATCH(C:C,Notentabellen!F:F,1)), IF(AND(Notentabellen!$J$3 =3,Notentabellen!$L$3=2), INDEX(Notentabellen!A:A,MATCH(C:C,Notentabellen!G:G,1)))))))))","v":""}]
["",{"$f":"IF(C23=\"\",\"\",INDEX(Laufliste!B:B,_xlfn.AGGREGATE(15,6,ROW(Laufliste!F:F)/(Laufliste!F:F=C23),COUNTIF($C$4:C23,C23)),1))","v":""},{"$f":"IF(ISERROR(_xlfn.AGGREGATE(14,6,Laufliste!F:F,ROW()-3)),\"\",IF(ROWS($A$4:A23)<=Hilfsregister!$C$2,_xlfn.AGGREGATE(14,6,Laufliste!F:F,ROW()-3),\"\"))","v":""},{"$f":"IF(C23 = \"\", \"\", IF(AND(Notentabellen!$J$3=1,Notentabellen!$L$3=1),INDEX(Notentabellen!A:A,MATCH(C:C,Notentabellen!B:B,1)),IF(AND(Notentabellen!$J$3=1,Notentabellen!$L$3=2),INDEX(Notentabellen!A:A,MATCH(C:C,Notentabellen!C:C,1)),IF(AND(Notentabellen!$J$3=2,Notentabellen!$L$3=1),INDEX(Notentabellen!A:A,MATCH(C:C,Notentabellen!D:D,1)),IF(AND(Notentabellen!$J$3=2,Notentabellen!$L$3=2),INDEX(Notentabellen!A:A,MATCH(C:C,Notentabellen!E:E,1)),IF(AND(Notentabellen!$J$3 =3,Notentabellen!$L$3=1), INDEX(Notentabellen!A:A,MATCH(C:C,Notentabellen!F:F,1)), IF(AND(Notentabellen!$J$3 =3,Notentabellen!$L$3=2), INDEX(Notentabellen!A:A,MATCH(C:C,Notentabellen!G:G,1)))))))))","v":""}]
["",{"$f":"IF(C24=\"\",\"\",INDEX(Laufliste!B:B,_xlfn.AGGREGATE(15,6,ROW(Laufliste!F:F)/(Laufliste!F:F=C24),COUNTIF($C$4:C24,C24)),1))","v":""},{"$f":"IF(ISERROR(_xlfn.AGGREGATE(14,6,Laufliste!F:F,ROW()-3)),\"\",IF(ROWS($A$4:A24)<=Hilfsregister!$C$2,_xlfn.AGGREGATE(14,6,Laufliste!F:F,ROW()-3),\"\"))","v":""},{"$f":"IF(C24 = \"\", \"\", IF(AND(Notentabellen!$J$3=1,Notentabellen!$L$3=1),INDEX(Notentabellen!A:A,MATCH(C:C,Notentabellen!B:B,1)),IF(AND(Notentabellen!$J$3=1,Notentabellen!$L$3=2),INDEX(Notentabellen!A:A,MATCH(C:C,Notentabellen!C:C,1)),IF(AND(Notentabellen!$J$3=2,Notentabellen!$L$3=1),INDEX(Notentabellen!A:A,MATCH(C:C,Notentabellen!D:D,1)),IF(AND(Notentabellen!$J$3=2,Notentabellen!$L$3=2),INDEX(Notentabellen!A:A,MATCH(C:C,Notentabellen!E:E,1)),IF(AND(Notentabellen!$J$3 =3,Notentabellen!$L$3=1), INDEX(Notentabellen!A:A,MATCH(C:C,Notentabellen!F:F,1)), IF(AND(Notentabellen!$J$3 =3,Notentabellen!$L$3=2), INDEX(Notentabellen!A:A,MATCH(C:C,Notentabellen!G:G,1)))))))))","v":""}]
["",{"$f":"IF(C25=\"\",\"\",INDEX(Laufliste!B:B,_xlfn.AGGREGATE(15,6,ROW(Laufliste!F:F)/(Laufliste!F:F=C25),COUNTIF($C$4:C25,C25)),1))","v":""},{"$f":"IF(ISERROR(_xlfn.AGGREGATE(14,6,Laufliste!F:F,ROW()-3)),\"\",IF(ROWS($A$4:A25)<=Hilfsregister!$C$2,_xlfn.AGGREGATE(14,6,Laufliste!F:F,ROW()-3),\"\"))","v":""},{"$f":"IF(C25 = \"\", \"\", IF(AND(Notentabellen!$J$3=1,Notentabellen!$L$3=1),INDEX(Notentabellen!A:A,MATCH(C:C,Notentabellen!B:B,1)),IF(AND(Notentabellen!$J$3=1,Notentabellen!$L$3=2),INDEX(Notentabellen!A:A,MATCH(C:C,Notentabellen!C:C,1)),IF(AND(Notentabellen!$J$3=2,Notentabellen!$L$3=1),INDEX(Notentabellen!A:A,MATCH(C:C,Notentabellen!D:D,1)),IF(AND(Notentabellen!$J$3=2,Notentabellen!$L$3=2),INDEX(Notentabellen!A:A,MATCH(C:C,Notentabellen!E:E,1)),IF(AND(Notentabellen!$J$3 =3,Notentabellen!$L$3=1), INDEX(Notentabellen!A:A,MATCH(C:C,Notentabellen!F:F,1)), IF(AND(Notentabellen!$J$3 =3,Notentabellen!$L$3=2), INDEX(Notentabellen!A:A,MATCH(C:C,Notentabellen!G:G,1)))))))))","v":""}]
["",{"$f":"IF(C26=\"\",\"\",INDEX(Laufliste!B:B,_xlfn.AGGREGATE(15,6,ROW(Laufliste!F:F)/(Laufliste!F:F=C26),COUNTIF($C$4:C26,C26)),1))","v":""},{"$f":"IF(ISERROR(_xlfn.AGGREGATE(14,6,Laufliste!F:F,ROW()-3)),\"\",IF(ROWS($A$4:A26)<=Hilfsregister!$C$2,_xlfn.AGGREGATE(14,6,Laufliste!F:F,ROW()-3),\"\"))","v":""},{"$f":"IF(C26 = \"\", \"\", IF(AND(Notentabellen!$J$3=1,Notentabellen!$L$3=1),INDEX(Notentabellen!A:A,MATCH(C:C,Notentabellen!B:B,1)),IF(AND(Notentabellen!$J$3=1,Notentabellen!$L$3=2),INDEX(Notentabellen!A:A,MATCH(C:C,Notentabellen!C:C,1)),IF(AND(Notentabellen!$J$3=2,Notentabellen!$L$3=1),INDEX(Notentabellen!A:A,MATCH(C:C,Notentabellen!D:D,1)),IF(AND(Notentabellen!$J$3=2,Notentabellen!$L$3=2),INDEX(Notentabellen!A:A,MATCH(C:C,Notentabellen!E:E,1)),IF(AND(Notentabellen!$J$3 =3,Notentabellen!$L$3=1), INDEX(Notentabellen!A:A,MATCH(C:C,Notentabellen!F:F,1)), IF(AND(Notentabellen!$J$3 =3,Notentabellen!$L$3=2), INDEX(Notentabellen!A:A,MATCH(C:C,Notentabellen!G:G,1)))))))))","v":""}]
["",{"$f":"IF(C27=\"\",\"\",INDEX(Laufliste!B:B,_xlfn.AGGREGATE(15,6,ROW(Laufliste!F:F)/(Laufliste!F:F=C27),COUNTIF($C$4:C27,C27)),1))","v":""},{"$f":"IF(ISERROR(_xlfn.AGGREGATE(14,6,Laufliste!F:F,ROW()-3)),\"\",IF(ROWS($A$4:A27)<=Hilfsregister!$C$2,_xlfn.AGGREGATE(14,6,Laufliste!F:F,ROW()-3),\"\"))","v":""},{"$f":"IF(C27 = \"\", \"\", IF(AND(Notentabellen!$J$3=1,Notentabellen!$L$3=1),INDEX(Notentabellen!A:A,MATCH(C:C,Notentabellen!B:B,1)),IF(AND(Notentabellen!$J$3=1,Notentabellen!$L$3=2),INDEX(Notentabellen!A:A,MATCH(C:C,Notentabellen!C:C,1)),IF(AND(Notentabellen!$J$3=2,Notentabellen!$L$3=1),INDEX(Notentabellen!A:A,MATCH(C:C,Notentabellen!D:D,1)),IF(AND(Notentabellen!$J$3=2,Notentabellen!$L$3=2),INDEX(Notentabellen!A:A,MATCH(C:C,Notentabellen!E:E,1)),IF(AND(Notentabellen!$J$3 =3,Notentabellen!$L$3=1), INDEX(Notentabellen!A:A,MATCH(C:C,Notentabellen!F:F,1)), IF(AND(Notentabellen!$J$3 =3,Notentabellen!$L$3=2), INDEX(Notentabellen!A:A,MATCH(C:C,Notentabellen!G:G,1)))))))))","v":""}]
["",{"$f":"IF(C28=\"\",\"\",INDEX(Laufliste!B:B,_xlfn.AGGREGATE(15,6,ROW(Laufliste!F:F)/(Laufliste!F:F=C28),COUNTIF($C$4:C28,C28)),1))","v":""},{"$f":"IF(ISERROR(_xlfn.AGGREGATE(14,6,Laufliste!F:F,ROW()-3)),\"\",IF(ROWS($A$4:A28)<=Hilfsregister!$C$2,_xlfn.AGGREGATE(14,6,Laufliste!F:F,ROW()-3),\"\"))","v":""},{"$f":"IF(C28 = \"\", \"\", IF(AND(Notentabellen!$J$3=1,Notentabellen!$L$3=1),INDEX(Notentabellen!A:A,MATCH(C:C,Notentabellen!B:B,1)),IF(AND(Notentabellen!$J$3=1,Notentabellen!$L$3=2),INDEX(Notentabellen!A:A,MATCH(C:C,Notentabellen!C:C,1)),IF(AND(Notentabellen!$J$3=2,Notentabellen!$L$3=1),INDEX(Notentabellen!A:A,MATCH(C:C,Notentabellen!D:D,1)),IF(AND(Notentabellen!$J$3=2,Notentabellen!$L$3=2),INDEX(Notentabellen!A:A,MATCH(C:C,Notentabellen!E:E,1)),IF(AND(Notentabellen!$J$3 =3,Notentabellen!$L$3=1), INDEX(Notentabellen!A:A,MATCH(C:C,Notentabellen!F:F,1)), IF(AND(Notentabellen!$J$3 =3,Notentabellen!$L$3=2), INDEX(Notentabellen!A:A,MATCH(C:C,Notentabellen!G:G,1)))))))))","v":""}]
["",{"$f":"IF(C29=\"\",\"\",INDEX(Laufliste!B:B,_xlfn.AGGREGATE(15,6,ROW(Laufliste!F:F)/(Laufliste!F:F=C29),COUNTIF($C$4:C29,C29)),1))","v":""},{"$f":"IF(ISERROR(_xlfn.AGGREGATE(14,6,Laufliste!F:F,ROW()-3)),\"\",IF(ROWS($A$4:A29)<=Hilfsregister!$C$2,_xlfn.AGGREGATE(14,6,Laufliste!F:F,ROW()-3),\"\"))","v":""},{"$f":"IF(C29 = \"\", \"\", IF(AND(Notentabellen!$J$3=1,Notentabellen!$L$3=1),INDEX(Notentabellen!A:A,MATCH(C:C,Notentabellen!B:B,1)),IF(AND(Notentabellen!$J$3=1,Notentabellen!$L$3=2),INDEX(Notentabellen!A:A,MATCH(C:C,Notentabellen!C:C,1)),IF(AND(Notentabellen!$J$3=2,Notentabellen!$L$3=1),INDEX(Notentabellen!A:A,MATCH(C:C,Notentabellen!D:D,1)),IF(AND(Notentabellen!$J$3=2,Notentabellen!$L$3=2),INDEX(Notentabellen!A:A,MATCH(C:C,Notentabellen!E:E,1)),IF(AND(Notentabellen!$J$3 =3,Notentabellen!$L$3=1), INDEX(Notentabellen!A:A,MATCH(C:C,Notentabellen!F:F,1)), IF(AND(Notentabellen!$J$3 =3,Notentabellen!$L$3=2), INDEX(Notentabellen!A:A,MATCH(C:C,Notentabellen!G:G,1)))))))))","v":""}]
["",{"$f":"IF(C30=\"\",\"\",INDEX(Laufliste!B:B,_xlfn.AGGREGATE(15,6,ROW(Laufliste!F:F)/(Laufliste!F:F=C30),COUNTIF($C$4:C30,C30)),1))","v":""},{"$f":"IF(ISERROR(_xlfn.AGGREGATE(14,6,Laufliste!F:F,ROW()-3)),\"\",IF(ROWS($A$4:A30)<=Hilfsregister!$C$2,_xlfn.AGGREGATE(14,6,Laufliste!F:F,ROW()-3),\"\"))","v":""},{"$f":"IF(C30 = \"\", \"\", IF(AND(Notentabellen!$J$3=1,Notentabellen!$L$3=1),INDEX(Notentabellen!A:A,MATCH(C:C,Notentabellen!B:B,1)),IF(AND(Notentabellen!$J$3=1,Notentabellen!$L$3=2),INDEX(Notentabellen!A:A,MATCH(C:C,Notentabellen!C:C,1)),IF(AND(Notentabellen!$J$3=2,Notentabellen!$L$3=1),INDEX(Notentabellen!A:A,MATCH(C:C,Notentabellen!D:D,1)),IF(AND(Notentabellen!$J$3=2,Notentabellen!$L$3=2),INDEX(Notentabellen!A:A,MATCH(C:C,Notentabellen!E:E,1)),IF(AND(Notentabellen!$J$3 =3,Notentabellen!$L$3=1), INDEX(Notentabellen!A:A,MATCH(C:C,Notentabellen!F:F,1)), IF(AND(Notentabellen!$J$3 =3,Notentabellen!$L$3=2), INDEX(Notentabellen!A:A,MATCH(C:C,Notentabellen!G:G,1)))))))))","v":""}]
["",{"$f":"IF(C31=\"\",\"\",INDEX(Laufliste!B:B,_xlfn.AGGREGATE(15,6,ROW(Laufliste!F:F)/(Laufliste!F:F=C31),COUNTIF($C$4:C31,C31)),1))","v":""},{"$f":"IF(ISERROR(_xlfn.AGGREGATE(14,6,Laufliste!F:F,ROW()-3)),\"\",IF(ROWS($A$4:A31)<=Hilfsregister!$C$2,_xlfn.AGGREGATE(14,6,Laufliste!F:F,ROW()-3),\"\"))","v":""},{"$f":"IF(C31 = \"\", \"\", IF(AND(Notentabellen!$J$3=1,Notentabellen!$L$3=1),INDEX(Notentabellen!A:A,MATCH(C:C,Notentabellen!B:B,1)),IF(AND(Notentabellen!$J$3=1,Notentabellen!$L$3=2),INDEX(Notentabellen!A:A,MATCH(C:C,Notentabellen!C:C,1)),IF(AND(Notentabellen!$J$3=2,Notentabellen!$L$3=1),INDEX(Notentabellen!A:A,MATCH(C:C,Notentabellen!D:D,1)),IF(AND(Notentabellen!$J$3=2,Notentabellen!$L$3=2),INDEX(Notentabellen!A:A,MATCH(C:C,Notentabellen!E:E,1)),IF(AND(Notentabellen!$J$3 =3,Notentabellen!$L$3=1), INDEX(Notentabellen!A:A,MATCH(C:C,Notentabellen!F:F,1)), IF(AND(Notentabellen!$J$3 =3,Notentabellen!$L$3=2), INDEX(Notentabellen!A:A,MATCH(C:C,Notentabellen!G:G,1)))))))))","v":""}]
["",{"$f":"IF(C32=\"\",\"\",INDEX(Laufliste!B:B,_xlfn.AGGREGATE(15,6,ROW(Laufliste!F:F)/(Laufliste!F:F=C32),COUNTIF($C$4:C32,C32)),1))","v":""},{"$f":"IF(ISERROR(_xlfn.AGGREGATE(14,6,Laufliste!F:F,ROW()-3)),\"\",IF(ROWS($A$4:A32)<=Hilfsregister!$C$2,_xlfn.AGGREGATE(14,6,Laufliste!F:F,ROW()-3),\"\"))","v":""},{"$f":"IF(C32 = \"\", \"\", IF(AND(Notentabellen!$J$3=1,Notentabellen!$L$3=1),INDEX(Notentabellen!A:A,MATCH(C:C,Notentabellen!B:B,1)),IF(AND(Notentabellen!$J$3=1,Notentabellen!$L$3=2),INDEX(Notentabellen!A:A,MATCH(C:C,Notentabellen!C:C,1)),IF(AND(Notentabellen!$J$3=2,Notentabellen!$L$3=1),INDEX(Notentabellen!A:A,MATCH(C:C,Notentabellen!D:D,1)),IF(AND(Notentabellen!$J$3=2,Notentabellen!$L$3=2),INDEX(Notentabellen!A:A,MATCH(C:C,Notentabellen!E:E,1)),IF(AND(Notentabellen!$J$3 =3,Notentabellen!$L$3=1), INDEX(Notentabellen!A:A,MATCH(C:C,Notentabellen!F:F,1)), IF(AND(Notentabellen!$J$3 =3,Notentabellen!$L$3=2), INDEX(Notentabellen!A:A,MATCH(C:C,Notentabellen!G:G,1)))))))))","v":""}]
["",{"$f":"IF(C33=\"\",\"\",INDEX(Laufliste!B:B,_xlfn.AGGREGATE(15,6,ROW(Laufliste!F:F)/(Laufliste!F:F=C33),COUNTIF($C$4:C33,C33)),1))","v":""},{"$f":"IF(ISERROR(_xlfn.AGGREGATE(14,6,Laufliste!F:F,ROW()-3)),\"\",IF(ROWS($A$4:A33)<=Hilfsregister!$C$2,_xlfn.AGGREGATE(14,6,Laufliste!F:F,ROW()-3),\"\"))","v":""},{"$f":"IF(C33 = \"\", \"\", IF(AND(Notentabellen!$J$3=1,Notentabellen!$L$3=1),INDEX(Notentabellen!A:A,MATCH(C:C,Notentabellen!B:B,1)),IF(AND(Notentabellen!$J$3=1,Notentabellen!$L$3=2),INDEX(Notentabellen!A:A,MATCH(C:C,Notentabellen!C:C,1)),IF(AND(Notentabellen!$J$3=2,Notentabellen!$L$3=1),INDEX(Notentabellen!A:A,MATCH(C:C,Notentabellen!D:D,1)),IF(AND(Notentabellen!$J$3=2,Notentabellen!$L$3=2),INDEX(Notentabellen!A:A,MATCH(C:C,Notentabellen!E:E,1)),IF(AND(Notentabellen!$J$3 =3,Notentabellen!$L$3=1), INDEX(Notentabellen!A:A,MATCH(C:C,Notentabellen!F:F,1)), IF(AND(Notentabellen!$J$3 =3,Notentabellen!$L$3=2), INDEX(Notentabellen!A:A,MATCH(C:C,Notentabellen!G:G,1)))))))))","v":""}]
["",{"$f":"IF(C34=\"\",\"\",INDEX(Laufliste!B:B,_xlfn.AGGREGATE(15,6,ROW(Laufliste!F:F)/(Laufliste!F:F=C34),COUNTIF($C$4:C34,C34)),1))","v":""},{"$f":"IF(ISERROR(_xlfn.AGGREGATE(14,6,Laufliste!F:F,ROW()-3)),\"\",IF(ROWS($A$4:A34)<=Hilfsregister!$C$2,_xlfn.AGGREGATE(14,6,Laufliste!F:F,ROW()-3),\"\"))","v":""},{"$f":"IF(C34 = \"\", \"\", IF(AND(Notentabellen!$J$3=1,Notentabellen!$L$3=1),INDEX(Notentabellen!A:A,MATCH(C:C,Notentabellen!B:B,1)),IF(AND(Notentabellen!$J$3=1,Notentabellen!$L$3=2),INDEX(Notentabellen!A:A,MATCH(C:C,Notentabellen!C:C,1)),IF(AND(Notentabellen!$J$3=2,Notentabellen!$L$3=1),INDEX(Notentabellen!A:A,MATCH(C:C,Notentabellen!D:D,1)),IF(AND(Notentabellen!$J$3=2,Notentabellen!$L$3=2),INDEX(Notentabellen!A:A,MATCH(C:C,Notentabellen!E:E,1)),IF(AND(Notentabellen!$J$3 =3,Notentabellen!$L$3=1), INDEX(Notentabellen!A:A,MATCH(C:C,Notentabellen!F:F,1)), IF(AND(Notentabellen!$J$3 =3,Notentabellen!$L$3=2), INDEX(Notentabellen!A:A,MATCH(C:C,Notentabellen!G:G,1)))))))))","v":""}]
["",{"$f":"IF(C35=\"\",\"\",INDEX(Laufliste!B:B,_xlfn.AGGREGATE(15,6,ROW(Laufliste!F:F)/(Laufliste!F:F=C35),COUNTIF($C$4:C35,C35)),1))","v":""},{"$f":"IF(ISERROR(_xlfn.AGGREGATE(14,6,Laufliste!F:F,ROW()-3)),\"\",IF(ROWS($A$4:A35)<=Hilfsregister!$C$2,_xlfn.AGGREGATE(14,6,Laufliste!F:F,ROW()-3),\"\"))","v":""},{"$f":"IF(C35 = \"\", \"\", IF(AND(Notentabellen!$J$3=1,Notentabellen!$L$3=1),INDEX(Notentabellen!A:A,MATCH(C:C,Notentabellen!B:B,1)),IF(AND(Notentabellen!$J$3=1,Notentabellen!$L$3=2),INDEX(Notentabellen!A:A,MATCH(C:C,Notentabellen!C:C,1)),IF(AND(Notentabellen!$J$3=2,Notentabellen!$L$3=1),INDEX(Notentabellen!A:A,MATCH(C:C,Notentabellen!D:D,1)),IF(AND(Notentabellen!$J$3=2,Notentabellen!$L$3=2),INDEX(Notentabellen!A:A,MATCH(C:C,Notentabellen!E:E,1)),IF(AND(Notentabellen!$J$3 =3,Notentabellen!$L$3=1), INDEX(Notentabellen!A:A,MATCH(C:C,Notentabellen!F:F,1)), IF(AND(Notentabellen!$J$3 =3,Notentabellen!$L$3=2), INDEX(Notentabellen!A:A,MATCH(C:C,Notentabellen!G:G,1)))))))))","v":""}]
["",{"$f":"IF(C36=\"\",\"\",INDEX(Laufliste!B:B,_xlfn.AGGREGATE(15,6,ROW(Laufliste!F:F)/(Laufliste!F:F=C36),COUNTIF($C$4:C36,C36)),1))","v":""},{"$f":"IF(ISERROR(_xlfn.AGGREGATE(14,6,Laufliste!F:F,ROW()-3)),\"\",IF(ROWS($A$4:A36)<=Hilfsregister!$C$2,_xlfn.AGGREGATE(14,6,Laufliste!F:F,ROW()-3),\"\"))","v":""},{"$f":"IF(C36 = \"\", \"\", IF(AND(Notentabellen!$J$3=1,Notentabellen!$L$3=1),INDEX(Notentabellen!A:A,MATCH(C:C,Notentabellen!B:B,1)),IF(AND(Notentabellen!$J$3=1,Notentabellen!$L$3=2),INDEX(Notentabellen!A:A,MATCH(C:C,Notentabellen!C:C,1)),IF(AND(Notentabellen!$J$3=2,Notentabellen!$L$3=1),INDEX(Notentabellen!A:A,MATCH(C:C,Notentabellen!D:D,1)),IF(AND(Notentabellen!$J$3=2,Notentabellen!$L$3=2),INDEX(Notentabellen!A:A,MATCH(C:C,Notentabellen!E:E,1)),IF(AND(Notentabellen!$J$3 =3,Notentabellen!$L$3=1), INDEX(Notentabellen!A:A,MATCH(C:C,Notentabellen!F:F,1)), IF(AND(Notentabellen!$J$3 =3,Notentabellen!$L$3=2), INDEX(Notentabellen!A:A,MATCH(C:C,Notentabellen!G:G,1)))))))))","v":""}]
["",{"$f":"IF(C37=\"\",\"\",INDEX(Laufliste!B:B,_xlfn.AGGREGATE(15,6,ROW(Laufliste!F:F)/(Laufliste!F:F=C37),COUNTIF($C$4:C37,C37)),1))","v":""},{"$f":"IF(ISERROR(_xlfn.AGGREGATE(14,6,Laufliste!F:F,ROW()-3)),\"\",IF(ROWS($A$4:A37)<=Hilfsregister!$C$2,_xlfn.AGGREGATE(14,6,Laufliste!F:F,ROW()-3),\"\"))","v":""},{"$f":"IF(C37 = \"\", \"\", IF(AND(Notentabellen!$J$3=1,Notentabellen!$L$3=1),INDEX(Notentabellen!A:A,MATCH(C:C,Notentabellen!B:B,1)),IF(AND(Notentabellen!$J$3=1,Notentabellen!$L$3=2),INDEX(Notentabellen!A:A,MATCH(C:C,Notentabellen!C:C,1)),IF(AND(Notentabellen!$J$3=2,Notentabellen!$L$3=1),INDEX(Notentabellen!A:A,MATCH(C:C,Notentabellen!D:D,1)),IF(AND(Notentabellen!$J$3=2,Notentabellen!$L$3=2),INDEX(Notentabellen!A:A,MATCH(C:C,Notentabellen!E:E,1)),IF(AND(Notentabellen!$J$3 =3,Notentabellen!$L$3=1), INDEX(Notentabellen!A:A,MATCH(C:C,Notentabellen!F:F,1)), IF(AND(Notentabellen!$J$3 =3,Notentabellen!$L$3=2), INDEX(Notentabellen!A:A,MATCH(C:C,Notentabellen!G:G,1)))))))))","v":""}]
["",{"$f":"IF(C38=\"\",\"\",INDEX(Laufliste!B:B,_xlfn.AGGREGATE(15,6,ROW(Laufliste!F:F)/(Laufliste!F:F=C38),COUNTIF($C$4:C38,C38)),1))","v":""},{"$f":"IF(ISERROR(_xlfn.AGGREGATE(14,6,Laufliste!F:F,ROW()-3)),\"\",IF(ROWS($A$4:A38)<=Hilfsregister!$C$2,_xlfn.AGGREGATE(14,6,Laufliste!F:F,ROW()-3),\"\"))","v":""},{"$f":"IF(C38 = \"\", \"\", IF(AND(Notentabellen!$J$3=1,Notentabellen!$L$3=1),INDEX(Notentabellen!A:A,MATCH(C:C,Notentabellen!B:B,1)),IF(AND(Notentabellen!$J$3=1,Notentabellen!$L$3=2),INDEX(Notentabellen!A:A,MATCH(C:C,Notentabellen!C:C,1)),IF(AND(Notentabellen!$J$3=2,Notentabellen!$L$3=1),INDEX(Notentabellen!A:A,MATCH(C:C,Notentabellen!D:D,1)),IF(AND(Notentabellen!$J$3=2,Notentabellen!$L$3=2),INDEX(Notentabellen!A:A,MATCH(C:C,Notentabellen!E:E,1)),IF(AND(Notentabellen!$J$3 =3,Notentabellen!$L$3=1), INDEX(Notentabellen!A:A,MATCH(C:C,Notentabellen!F:F,1)), IF(AND(Notentabellen!$J$3 =3,Notentabellen!$L$3=2), INDEX(Notentabellen!A:A,MATCH(C:C,Notentabellen!G:G,1)))))))))","v":""}]
["",{"$f":"IF(C39=\"\",\"\",INDEX(Laufliste!B:B,_xlfn.AGGREGATE(15,6,ROW(Laufliste!F:F)/(Laufliste!F:F=C39),COUNTIF($C$4:C39,C39)),1))","v":""},{"$f":"IF(ISERROR(_xlfn.AGGREGATE(14,6,Laufliste!F:F,ROW()-3)),\"\",IF(ROWS($A$4:A39)<=Hilfsregister!$C$2,_xlfn.AGGREGATE(14,6,Laufliste!F:F,ROW()-3),\"\"))","v":""},{"$f":"IF(C39 = \"\", \"\", IF(AND(Notentabellen!$J$3=1,Notentabellen!$L$3=1),INDEX(Notentabellen!A:A,MATCH(C:C,Notentabellen!B:B,1)),IF(AND(Notentabellen!$J$3=1,Notentabellen!$L$3=2),INDEX(Notentabellen!A:A,MATCH(C:C,Notentabellen!C:C,1)),IF(AND(Notentabellen!$J$3=2,Notentabellen!$L$3=1),INDEX(Notentabellen!A:A,MATCH(C:C,Notentabellen!D:D,1)),IF(AND(Notentabellen!$J$3=2,Notentabellen!$L$3=2),INDEX(Notentabellen!A:A,MATCH(C:C,Notentabellen!E:E,1)),IF(AND(Notentabellen!$J$3 =3,Notentabellen!$L$3=1), INDEX(Notentabellen!A:A,MATCH(C:C,Notentabellen!F:F,1)), IF(AND(Notentabellen!$J$3 =3,Notentabellen!$L$3=2), INDEX(Notentabellen!A:A,MATCH(C:C,Notentabellen!G:G,1)))))))))","v":""}]
["",{"$f":"IF(C40=\"\",\"\",INDEX(Laufliste!B:B,_xlfn.AGGREGATE(15,6,ROW(Laufliste!F:F)/(Laufliste!F:F=C40),COUNTIF($C$4:C40,C40)),1))","v":""},{"$f":"IF(ISERROR(_xlfn.AGGREGATE(14,6,Laufliste!F:F,ROW()-3)),\"\",IF(ROWS($A$4:A40)<=Hilfsregister!$C$2,_xlfn.AGGREGATE(14,6,Laufliste!F:F,ROW()-3),\"\"))","v":""},{"$f":"IF(C40 = \"\", \"\", IF(AND(Notentabellen!$J$3=1,Notentabellen!$L$3=1),INDEX(Notentabellen!A:A,MATCH(C:C,Notentabellen!B:B,1)),IF(AND(Notentabellen!$J$3=1,Notentabellen!$L$3=2),INDEX(Notentabellen!A:A,MATCH(C:C,Notentabellen!C:C,1)),IF(AND(Notentabellen!$J$3=2,Notentabellen!$L$3=1),INDEX(Notentabellen!A:A,MATCH(C:C,Notentabellen!D:D,1)),IF(AND(Notentabellen!$J$3=2,Notentabellen!$L$3=2),INDEX(Notentabellen!A:A,MATCH(C:C,Notentabellen!E:E,1)),IF(AND(Notentabellen!$J$3 =3,Notentabellen!$L$3=1), INDEX(Notentabellen!A:A,MATCH(C:C,Notentabellen!F:F,1)), IF(AND(Notentabellen!$J$3 =3,Notentabellen!$L$3=2), INDEX(Notentabellen!A:A,MATCH(C:C,Notentabellen!G:G,1)))))))))","v":""}]
["",{"$f":"IF(C41=\"\",\"\",INDEX(Laufliste!B:B,_xlfn.AGGREGATE(15,6,ROW(Laufliste!F:F)/(Laufliste!F:F=C41),COUNTIF($C$4:C41,C41)),1))","v":""},{"$f":"IF(ISERROR(_xlfn.AGGREGATE(14,6,Laufliste!F:F,ROW()-3)),\"\",IF(ROWS($A$4:A41)<=Hilfsregister!$C$2,_xlfn.AGGREGATE(14,6,Laufliste!F:F,ROW()-3),\"\"))","v":""},{"$f":"IF(C41 = \"\", \"\", IF(AND(Notentabellen!$J$3=1,Notentabellen!$L$3=1),INDEX(Notentabellen!A:A,MATCH(C:C,Notentabellen!B:B,1)),IF(AND(Notentabellen!$J$3=1,Notentabellen!$L$3=2),INDEX(Notentabellen!A:A,MATCH(C:C,Notentabellen!C:C,1)),IF(AND(Notentabellen!$J$3=2,Notentabellen!$L$3=1),INDEX(Notentabellen!A:A,MATCH(C:C,Notentabellen!D:D,1)),IF(AND(Notentabellen!$J$3=2,Notentabellen!$L$3=2),INDEX(Notentabellen!A:A,MATCH(C:C,Notentabellen!E:E,1)),IF(AND(Notentabellen!$J$3 =3,Notentabellen!$L$3=1), INDEX(Notentabellen!A:A,MATCH(C:C,Notentabellen!F:F,1)), IF(AND(Notentabellen!$J$3 =3,Notentabellen!$L$3=2), INDEX(Notentabellen!A:A,MATCH(C:C,Notentabellen!G:G,1)))))))))","v":""}]
["",{"$f":"IF(C42=\"\",\"\",INDEX(Laufliste!B:B,_xlfn.AGGREGATE(15,6,ROW(Laufliste!F:F)/(Laufliste!F:F=C42),COUNTIF($C$4:C42,C42)),1))","v":""},{"$f":"IF(ISERROR(_xlfn.AGGREGATE(14,6,Laufliste!F:F,ROW()-3)),\"\",IF(ROWS($A$4:A42)<=Hilfsregister!$C$2,_xlfn.AGGREGATE(14,6,Laufliste!F:F,ROW()-3),\"\"))","v":""},{"$f":"IF(C42 = \"\", \"\", IF(AND(Notentabellen!$J$3=1,Notentabellen!$L$3=1),INDEX(Notentabellen!A:A,MATCH(C:C,Notentabellen!B:B,1)),IF(AND(Notentabellen!$J$3=1,Notentabellen!$L$3=2),INDEX(Notentabellen!A:A,MATCH(C:C,Notentabellen!C:C,1)),IF(AND(Notentabellen!$J$3=2,Notentabellen!$L$3=1),INDEX(Notentabellen!A:A,MATCH(C:C,Notentabellen!D:D,1)),IF(AND(Notentabellen!$J$3=2,Notentabellen!$L$3=2),INDEX(Notentabellen!A:A,MATCH(C:C,Notentabellen!E:E,1)),IF(AND(Notentabellen!$J$3 =3,Notentabellen!$L$3=1), INDEX(Notentabellen!A:A,MATCH(C:C,Notentabellen!F:F,1)), IF(AND(Notentabellen!$J$3 =3,Notentabellen!$L$3=2), INDEX(Notentabellen!A:A,MATCH(C:C,Notentabellen!G:G,1)))))))))","v":""}]
["",{"$f":"IF(C43=\"\",\"\",INDEX(Laufliste!B:B,_xlfn.AGGREGATE(15,6,ROW(Laufliste!F:F)/(Laufliste!F:F=C43),COUNTIF($C$4:C43,C43)),1))","v":""},{"$f":"IF(ISERROR(_xlfn.AGGREGATE(14,6,Laufliste!F:F,ROW()-3)),\"\",IF(ROWS($A$4:A43)<=Hilfsregister!$C$2,_xlfn.AGGREGATE(14,6,Laufliste!F:F,ROW()-3),\"\"))","v":""},{"$f":"IF(C43 = \"\", \"\", IF(AND(Notentabellen!$J$3=1,Notentabellen!$L$3=1),INDEX(Notentabellen!A:A,MATCH(C:C,Notentabellen!B:B,1)),IF(AND(Notentabellen!$J$3=1,Notentabellen!$L$3=2),INDEX(Notentabellen!A:A,MATCH(C:C,Notentabellen!C:C,1)),IF(AND(Notentabellen!$J$3=2,Notentabellen!$L$3=1),INDEX(Notentabellen!A:A,MATCH(C:C,Notentabellen!D:D,1)),IF(AND(Notentabellen!$J$3=2,Notentabellen!$L$3=2),INDEX(Notentabellen!A:A,MATCH(C:C,Notentabellen!E:E,1)),IF(AND(Notentabellen!$J$3 =3,Notentabellen!$L$3=1), INDEX(Notentabellen!A:A,MATCH(C:C,Notentabellen!F:F,1)), IF(AND(Notentabellen!$J$3 =3,Notentabellen!$L$3=2), INDEX(Notentabellen!A:A,MATCH(C:C,Notentabellen!G:G,1)))))))))","v":""}]
["",{"$f":"IF(C44=\"\",\"\",INDEX(Laufliste!B:B,_xlfn.AGGREGATE(15,6,ROW(Laufliste!F:F)/(Laufliste!F:F=C44),COUNTIF($C$4:C44,C44)),1))","v":""},{"$f":"IF(ISERROR(_xlfn.AGGREGATE(14,6,Laufliste!F:F,ROW()-3)),\"\",IF(ROWS($A$4:A44)<=Hilfsregister!$C$2,_xlfn.AGGREGATE(14,6,Laufliste!F:F,ROW()-3),\"\"))","v":""},{"$f":"IF(C44 = \"\", \"\", IF(AND(Notentabellen!$J$3=1,Notentabellen!$L$3=1),INDEX(Notentabellen!A:A,MATCH(C:C,Notentabellen!B:B,1)),IF(AND(Notentabellen!$J$3=1,Notentabellen!$L$3=2),INDEX(Notentabellen!A:A,MATCH(C:C,Notentabellen!C:C,1)),IF(AND(Notentabellen!$J$3=2,Notentabellen!$L$3=1),INDEX(Notentabellen!A:A,MATCH(C:C,Notentabellen!D:D,1)),IF(AND(Notentabellen!$J$3=2,Notentabellen!$L$3=2),INDEX(Notentabellen!A:A,MATCH(C:C,Notentabellen!E:E,1)),IF(AND(Notentabellen!$J$3 =3,Notentabellen!$L$3=1), INDEX(Notentabellen!A:A,MATCH(C:C,Notentabellen!F:F,1)), IF(AND(Notentabellen!$J$3 =3,Notentabellen!$L$3=2), INDEX(Notentabellen!A:A,MATCH(C:C,Notentabellen!G:G,1)))))))))","v":""}]
["",{"$f":"IF(C45=\"\",\"\",INDEX(Laufliste!B:B,_xlfn.AGGREGATE(15,6,ROW(Laufliste!F:F)/(Laufliste!F:F=C45),COUNTIF($C$4:C45,C45)),1))","v":""},{"$f":"IF(ISERROR(_xlfn.AGGREGATE(14,6,Laufliste!F:F,ROW()-3)),\"\",IF(ROWS($A$4:A45)<=Hilfsregister!$C$2,_xlfn.AGGREGATE(14,6,Laufliste!F:F,ROW()-3),\"\"))","v":""},{"$f":"IF(C45 = \"\", \"\", IF(AND(Notentabellen!$J$3=1,Notentabellen!$L$3=1),INDEX(Notentabellen!A:A,MATCH(C:C,Notentabellen!B:B,1)),IF(AND(Notentabellen!$J$3=1,Notentabellen!$L$3=2),INDEX(Notentabellen!A:A,MATCH(C:C,Notentabellen!C:C,1)),IF(AND(Notentabellen!$J$3=2,Notentabellen!$L$3=1),INDEX(Notentabellen!A:A,MATCH(C:C,Notentabellen!D:D,1)),IF(AND(Notentabellen!$J$3=2,Notentabellen!$L$3=2),INDEX(Notentabellen!A:A,MATCH(C:C,Notentabellen!E:E,1)),IF(AND(Notentabellen!$J$3 =3,Notentabellen!$L$3=1), INDEX(Notentabellen!A:A,MATCH(C:C,Notentabellen!F:F,1)), IF(AND(Notentabellen!$J$3 =3,Notentabellen!$L$3=2), INDEX(Notentabellen!A:A,MATCH(C:C,Notentabellen!G:G,1)))))))))","v":""}]
["",{"$f":"IF(C46=\"\",\"\",INDEX(Laufliste!B:B,_xlfn.AGGREGATE(15,6,ROW(Laufliste!F:F)/(Laufliste!F:F=C46),COUNTIF($C$4:C46,C46)),1))","v":""},{"$f":"IF(ISERROR(_xlfn.AGGREGATE(14,6,Laufliste!F:F,ROW()-3)),\"\",IF(ROWS($A$4:A46)<=Hilfsregister!$C$2,_xlfn.AGGREGATE(14,6,Laufliste!F:F,ROW()-3),\"\"))","v":""},{"$f":"IF(C46 = \"\", \"\", IF(AND(Notentabellen!$J$3=1,Notentabellen!$L$3=1),INDEX(Notentabellen!A:A,MATCH(C:C,Notentabellen!B:B,1)),IF(AND(Notentabellen!$J$3=1,Notentabellen!$L$3=2),INDEX(Notentabellen!A:A,MATCH(C:C,Notentabellen!C:C,1)),IF(AND(Notentabellen!$J$3=2,Notentabellen!$L$3=1),INDEX(Notentabellen!A:A,MATCH(C:C,Notentabellen!D:D,1)),IF(AND(Notentabellen!$J$3=2,Notentabellen!$L$3=2),INDEX(Notentabellen!A:A,MATCH(C:C,Notentabellen!E:E,1)),IF(AND(Notentabellen!$J$3 =3,Notentabellen!$L$3=1), INDEX(Notentabellen!A:A,MATCH(C:C,Notentabellen!F:F,1)), IF(AND(Notentabellen!$J$3 =3,Notentabellen!$L$3=2), INDEX(Notentabellen!A:A,MATCH(C:C,Notentabellen!G:G,1)))))))))","v":""}]
["",{"$f":"IF(C47=\"\",\"\",INDEX(Laufliste!B:B,_xlfn.AGGREGATE(15,6,ROW(Laufliste!F:F)/(Laufliste!F:F=C47),COUNTIF($C$4:C47,C47)),1))","v":""},{"$f":"IF(ISERROR(_xlfn.AGGREGATE(14,6,Laufliste!F:F,ROW()-3)),\"\",IF(ROWS($A$4:A47)<=Hilfsregister!$C$2,_xlfn.AGGREGATE(14,6,Laufliste!F:F,ROW()-3),\"\"))","v":""},{"$f":"IF(C47 = \"\", \"\", IF(AND(Notentabellen!$J$3=1,Notentabellen!$L$3=1),INDEX(Notentabellen!A:A,MATCH(C:C,Notentabellen!B:B,1)),IF(AND(Notentabellen!$J$3=1,Notentabellen!$L$3=2),INDEX(Notentabellen!A:A,MATCH(C:C,Notentabellen!C:C,1)),IF(AND(Notentabellen!$J$3=2,Notentabellen!$L$3=1),INDEX(Notentabellen!A:A,MATCH(C:C,Notentabellen!D:D,1)),IF(AND(Notentabellen!$J$3=2,Notentabellen!$L$3=2),INDEX(Notentabellen!A:A,MATCH(C:C,Notentabellen!E:E,1)),IF(AND(Notentabellen!$J$3 =3,Notentabellen!$L$3=1), INDEX(Notentabellen!A:A,MATCH(C:C,Notentabellen!F:F,1)), IF(AND(Notentabellen!$J$3 =3,Notentabellen!$L$3=2), INDEX(Notentabellen!A:A,MATCH(C:C,Notentabellen!G:G,1)))))))))","v":""}]
["",{"$f":"IF(C48=\"\",\"\",INDEX(Laufliste!B:B,_xlfn.AGGREGATE(15,6,ROW(Laufliste!F:F)/(Laufliste!F:F=C48),COUNTIF($C$4:C48,C48)),1))","v":""},{"$f":"IF(ISERROR(_xlfn.AGGREGATE(14,6,Laufliste!F:F,ROW()-3)),\"\",IF(ROWS($A$4:A48)<=Hilfsregister!$C$2,_xlfn.AGGREGATE(14,6,Laufliste!F:F,ROW()-3),\"\"))","v":""},{"$f":"IF(C48 = \"\", \"\", IF(AND(Notentabellen!$J$3=1,Notentabellen!$L$3=1),INDEX(Notentabellen!A:A,MATCH(C:C,Notentabellen!B:B,1)),IF(AND(Notentabellen!$J$3=1,Notentabellen!$L$3=2),INDEX(Notentabellen!A:A,MATCH(C:C,Notentabellen!C:C,1)),IF(AND(Notentabellen!$J$3=2,Notentabellen!$L$3=1),INDEX(Notentabellen!A:A,MATCH(C:C,Notentabellen!D:D,1)),IF(AND(Notentabellen!$J$3=2,Notentabellen!$L$3=2),INDEX(Notentabellen!A:A,MATCH(C:C,Notentabellen!E:E,1)),IF(AND(Notentabellen!$J$3 =3,Notentabellen!$L$3=1), INDEX(Notentabellen!A:A,MATCH(C:C,Notentabellen!F:F,1)), IF(AND(Notentabellen!$J$3 =3,Notentabellen!$L$3=2), INDEX(Notentabellen!A:A,MATCH(C:C,Notentabellen!G:G,1)))))))))","v":""}]
["",{"$f":"IF(C49=\"\",\"\",INDEX(Laufliste!B:B,_xlfn.AGGREGATE(15,6,ROW(Laufliste!F:F)/(Laufliste!F:F=C49),COUNTIF($C$4:C49,C49)),1))","v":""},{"$f":"IF(ISERROR(_xlfn.AGGREGATE(14,6,Laufliste!F:F,ROW()-3)),\"\",IF(ROWS($A$4:A49)<=Hilfsregister!$C$2,_xlfn.AGGREGATE(14,6,Laufliste!F:F,ROW()-3),\"\"))","v":""},{"$f":"IF(C49 = \"\", \"\", IF(AND(Notentabellen!$J$3=1,Notentabellen!$L$3=1),INDEX(Notentabellen!A:A,MATCH(C:C,Notentabellen!B:B,1)),IF(AND(Notentabellen!$J$3=1,Notentabellen!$L$3=2),INDEX(Notentabellen!A:A,MATCH(C:C,Notentabellen!C:C,1)),IF(AND(Notentabellen!$J$3=2,Notentabellen!$L$3=1),INDEX(Notentabellen!A:A,MATCH(C:C,Notentabellen!D:D,1)),IF(AND(Notentabellen!$J$3=2,Notentabellen!$L$3=2),INDEX(Notentabellen!A:A,MATCH(C:C,Notentabellen!E:E,1)),IF(AND(Notentabellen!$J$3 =3,Notentabellen!$L$3=1), INDEX(Notentabellen!A:A,MATCH(C:C,Notentabellen!F:F,1)), IF(AND(Notentabellen!$J$3 =3,Notentabellen!$L$3=2), INDEX(Notentabellen!A:A,MATCH(C:C,Notentabellen!G:G,1)))))))))","v":""}]
["",{"$f":"IF(C50=\"\",\"\",INDEX(Laufliste!B:B,_xlfn.AGGREGATE(15,6,ROW(Laufliste!F:F)/(Laufliste!F:F=C50),COUNTIF($C$4:C50,C50)),1))","v":""},{"$f":"IF(ISERROR(_xlfn.AGGREGATE(14,6,Laufliste!F:F,ROW()-3)),\"\",IF(ROWS($A$4:A50)<=Hilfsregister!$C$2,_xlfn.AGGREGATE(14,6,Laufliste!F:F,ROW()-3),\"\"))","v":""},{"$f":"IF(C50 = \"\", \"\", IF(AND(Notentabellen!$J$3=1,Notentabellen!$L$3=1),INDEX(Notentabellen!A:A,MATCH(C:C,Notentabellen!B:B,1)),IF(AND(Notentabellen!$J$3=1,Notentabellen!$L$3=2),INDEX(Notentabellen!A:A,MATCH(C:C,Notentabellen!C:C,1)),IF(AND(Notentabellen!$J$3=2,Notentabellen!$L$3=1),INDEX(Notentabellen!A:A,MATCH(C:C,Notentabellen!D:D,1)),IF(AND(Notentabellen!$J$3=2,Notentabellen!$L$3=2),INDEX(Notentabellen!A:A,MATCH(C:C,Notentabellen!E:E,1)),IF(AND(Notentabellen!$J$3 =3,Notentabellen!$L$3=1), INDEX(Notentabellen!A:A,MATCH(C:C,Notentabellen!F:F,1)), IF(AND(Notentabellen!$J$3 =3,Notentabellen!$L$3=2), INDEX(Notentabellen!A:A,MATCH(C:C,Notentabellen!G:G,1)))))))))","v":""}]
["",{"$f":"IF(C51=\"\",\"\",INDEX(Laufliste!B:B,_xlfn.AGGREGATE(15,6,ROW(Laufliste!F:F)/(Laufliste!F:F=C51),COUNTIF($C$4:C51,C51)),1))","v":""},{"$f":"IF(ISERROR(_xlfn.AGGREGATE(14,6,Laufliste!F:F,ROW()-3)),\"\",IF(ROWS($A$4:A51)<=Hilfsregister!$C$2,_xlfn.AGGREGATE(14,6,Laufliste!F:F,ROW()-3),\"\"))","v":""},{"$f":"IF(C51 = \"\", \"\", IF(AND(Notentabellen!$J$3=1,Notentabellen!$L$3=1),INDEX(Notentabellen!A:A,MATCH(C:C,Notentabellen!B:B,1)),IF(AND(Notentabellen!$J$3=1,Notentabellen!$L$3=2),INDEX(Notentabellen!A:A,MATCH(C:C,Notentabellen!C:C,1)),IF(AND(Notentabellen!$J$3=2,Notentabellen!$L$3=1),INDEX(Notentabellen!A:A,MATCH(C:C,Notentabellen!D:D,1)),IF(AND(Notentabellen!$J$3=2,Notentabellen!$L$3=2),INDEX(Notentabellen!A:A,MATCH(C:C,Notentabellen!E:E,1)),IF(AND(Notentabellen!$J$3 =3,Notentabellen!$L$3=1), INDEX(Notentabellen!A:A,MATCH(C:C,Notentabellen!F:F,1)), IF(AND(Notentabellen!$J$3 =3,Notentabellen!$L$3=2), INDEX(Notentabellen!A:A,MATCH(C:C,Notentabellen!G:G,1)))))))))","v":""}]
["",{"$f":"IF(C52=\"\",\"\",INDEX(Laufliste!B:B,_xlfn.AGGREGATE(15,6,ROW(Laufliste!F:F)/(Laufliste!F:F=C52),COUNTIF($C$4:C52,C52)),1))","v":""},{"$f":"IF(ISERROR(_xlfn.AGGREGATE(14,6,Laufliste!F:F,ROW()-3)),\"\",IF(ROWS($A$4:A52)<=Hilfsregister!$C$2,_xlfn.AGGREGATE(14,6,Laufliste!F:F,ROW()-3),\"\"))","v":""},{"$f":"IF(C52 = \"\", \"\", IF(AND(Notentabellen!$J$3=1,Notentabellen!$L$3=1),INDEX(Notentabellen!A:A,MATCH(C:C,Notentabellen!B:B,1)),IF(AND(Notentabellen!$J$3=1,Notentabellen!$L$3=2),INDEX(Notentabellen!A:A,MATCH(C:C,Notentabellen!C:C,1)),IF(AND(Notentabellen!$J$3=2,Notentabellen!$L$3=1),INDEX(Notentabellen!A:A,MATCH(C:C,Notentabellen!D:D,1)),IF(AND(Notentabellen!$J$3=2,Notentabellen!$L$3=2),INDEX(Notentabellen!A:A,MATCH(C:C,Notentabellen!E:E,1)),IF(AND(Notentabellen!$J$3 =3,Notentabellen!$L$3=1), INDEX(Notentabellen!A:A,MATCH(C:C,Notentabellen!F:F,1)), IF(AND(Notentabellen!$J$3 =3,Notentabellen!$L$3=2), INDEX(Notentabellen!A:A,MATCH(C:C,Notentabellen!G:G,1)))))))))","v":""}]
["",{"$f":"IF(C53=\"\",\"\",INDEX(Laufliste!B:B,_xlfn.AGGREGATE(15,6,ROW(Laufliste!F:F)/(Laufliste!F:F=C53),COUNTIF($C$4:C53,C53)),1))","v":""},{"$f":"IF(ISERROR(_xlfn.AGGREGATE(14,6,Laufliste!F:F,ROW()-3)),\"\",IF(ROWS($A$4:A53)<=Hilfsregister!$C$2,_xlfn.AGGREGATE(14,6,Laufliste!F:F,ROW()-3),\"\"))","v":""},{"$f":"IF(C53 = \"\", \"\", IF(AND(Notentabellen!$J$3=1,Notentabellen!$L$3=1),INDEX(Notentabellen!A:A,MATCH(C:C,Notentabellen!B:B,1)),IF(AND(Notentabellen!$J$3=1,Notentabellen!$L$3=2),INDEX(Notentabellen!A:A,MATCH(C:C,Notentabellen!C:C,1)),IF(AND(Notentabellen!$J$3=2,Notentabellen!$L$3=1),INDEX(Notentabellen!A:A,MATCH(C:C,Notentabellen!D:D,1)),IF(AND(Notentabellen!$J$3=2,Notentabellen!$L$3=2),INDEX(Notentabellen!A:A,MATCH(C:C,Notentabellen!E:E,1)),IF(AND(Notentabellen!$J$3 =3,Notentabellen!$L$3=1), INDEX(Notentabellen!A:A,MATCH(C:C,Notentabellen!F:F,1)), IF(AND(Notentabellen!$J$3 =3,Notentabellen!$L$3=2), INDEX(Notentabellen!A:A,MATCH(C:C,Notentabellen!G:G,1)))))))))","v":""}]
["",{"$f":"IF(C54=\"\",\"\",INDEX(Laufliste!B:B,_xlfn.AGGREGATE(15,6,ROW(Laufliste!F:F)/(Laufliste!F:F=C54),COUNTIF($C$4:C54,C54)),1))","v":""},{"$f":"IF(ISERROR(_xlfn.AGGREGATE(14,6,Laufliste!F:F,ROW()-3)),\"\",IF(ROWS($A$4:A54)<=Hilfsregister!$C$2,_xlfn.AGGREGATE(14,6,Laufliste!F:F,ROW()-3),\"\"))","v":""},{"$f":"IF(C54 = \"\", \"\", IF(AND(Notentabellen!$J$3=1,Notentabellen!$L$3=1),INDEX(Notentabellen!A:A,MATCH(C:C,Notentabellen!B:B,1)),IF(AND(Notentabellen!$J$3=1,Notentabellen!$L$3=2),INDEX(Notentabellen!A:A,MATCH(C:C,Notentabellen!C:C,1)),IF(AND(Notentabellen!$J$3=2,Notentabellen!$L$3=1),INDEX(Notentabellen!A:A,MATCH(C:C,Notentabellen!D:D,1)),IF(AND(Notentabellen!$J$3=2,Notentabellen!$L$3=2),INDEX(Notentabellen!A:A,MATCH(C:C,Notentabellen!E:E,1)),IF(AND(Notentabellen!$J$3 =3,Notentabellen!$L$3=1), INDEX(Notentabellen!A:A,MATCH(C:C,Notentabellen!F:F,1)), IF(AND(Notentabellen!$J$3 =3,Notentabellen!$L$3=2), INDEX(Notentabellen!A:A,MATCH(C:C,Notentabellen!G:G,1)))))))))","v":""}]
["",{"$f":"IF(C55=\"\",\"\",INDEX(Laufliste!B:B,_xlfn.AGGREGATE(15,6,ROW(Laufliste!F:F)/(Laufliste!F:F=C55),COUNTIF($C$4:C55,C55)),1))","v":""},{"$f":"IF(ISERROR(_xlfn.AGGREGATE(14,6,Laufliste!F:F,ROW()-3)),\"\",IF(ROWS($A$4:A55)<=Hilfsregister!$C$2,_xlfn.AGGREGATE(14,6,Laufliste!F:F,ROW()-3),\"\"))","v":""},{"$f":"IF(C55 = \"\", \"\", IF(AND(Notentabellen!$J$3=1,Notentabellen!$L$3=1),INDEX(Notentabellen!A:A,MATCH(C:C,Notentabellen!B:B,1)),IF(AND(Notentabellen!$J$3=1,Notentabellen!$L$3=2),INDEX(Notentabellen!A:A,MATCH(C:C,Notentabellen!C:C,1)),IF(AND(Notentabellen!$J$3=2,Notentabellen!$L$3=1),INDEX(Notentabellen!A:A,MATCH(C:C,Notentabellen!D:D,1)),IF(AND(Notentabellen!$J$3=2,Notentabellen!$L$3=2),INDEX(Notentabellen!A:A,MATCH(C:C,Notentabellen!E:E,1)),IF(AND(Notentabellen!$J$3 =3,Notentabellen!$L$3=1), INDEX(Notentabellen!A:A,MATCH(C:C,Notentabellen!F:F,1)), IF(AND(Notentabellen!$J$3 =3,Notentabellen!$L$3=2), INDEX(Notentabellen!A:A,MATCH(C:C,Notentabellen!G:G,1)))))))))","v":""}]
["",{"$f":"IF(C56=\"\",\"\",INDEX(Laufliste!B:B,_xlfn.AGGREGATE(15,6,ROW(Laufliste!F:F)/(Laufliste!F:F=C56),COUNTIF($C$4:C56,C56)),1))","v":""},{"$f":"IF(ISERROR(_xlfn.AGGREGATE(14,6,Laufliste!F:F,ROW()-3)),\"\",IF(ROWS($A$4:A56)<=Hilfsregister!$C$2,_xlfn.AGGREGATE(14,6,Laufliste!F:F,ROW()-3),\"\"))","v":""},{"$f":"IF(C56 = \"\", \"\", IF(AND(Notentabellen!$J$3=1,Notentabellen!$L$3=1),INDEX(Notentabellen!A:A,MATCH(C:C,Notentabellen!B:B,1)),IF(AND(Notentabellen!$J$3=1,Notentabellen!$L$3=2),INDEX(Notentabellen!A:A,MATCH(C:C,Notentabellen!C:C,1)),IF(AND(Notentabellen!$J$3=2,Notentabellen!$L$3=1),INDEX(Notentabellen!A:A,MATCH(C:C,Notentabellen!D:D,1)),IF(AND(Notentabellen!$J$3=2,Notentabellen!$L$3=2),INDEX(Notentabellen!A:A,MATCH(C:C,Notentabellen!E:E,1)),IF(AND(Notentabellen!$J$3 =3,Notentabellen!$L$3=1), INDEX(Notentabellen!A:A,MATCH(C:C,Notentabellen!F:F,1)), IF(AND(Notentabellen!$J$3 =3,Notentabellen!$L$3=2), INDEX(Notentabellen!A:A,MATCH(C:C,Notentabellen!G:G,1)))))))))","v":""}]
["",{"$f":"IF(C57=\"\",\"\",INDEX(Laufliste!B:B,_xlfn.AGGREGATE(15,6,ROW(Laufliste!F:F)/(Laufliste!F:F=C57),COUNTIF($C$4:C57,C57)),1))","v":""},{"$f":"IF(ISERROR(_xlfn.AGGREGATE(14,6,Laufliste!F:F,ROW()-3)),\"\",IF(ROWS($A$4:A57)<=Hilfsregister!$C$2,_xlfn.AGGREGATE(14,6,Laufliste!F:F,ROW()-3),\"\"))","v":""},{"$f":"IF(C57 = \"\", \"\", IF(AND(Notentabellen!$J$3=1,Notentabellen!$L$3=1),INDEX(Notentabellen!A:A,MATCH(C:C,Notentabellen!B:B,1)),IF(AND(Notentabellen!$J$3=1,Notentabellen!$L$3=2),INDEX(Notentabellen!A:A,MATCH(C:C,Notentabellen!C:C,1)),IF(AND(Notentabellen!$J$3=2,Notentabellen!$L$3=1),INDEX(Notentabellen!A:A,MATCH(C:C,Notentabellen!D:D,1)),IF(AND(Notentabellen!$J$3=2,Notentabellen!$L$3=2),INDEX(Notentabellen!A:A,MATCH(C:C,Notentabellen!E:E,1)),IF(AND(Notentabellen!$J$3 =3,Notentabellen!$L$3=1), INDEX(Notentabellen!A:A,MATCH(C:C,Notentabellen!F:F,1)), IF(AND(Notentabellen!$J$3 =3,Notentabellen!$L$3=2), INDEX(Notentabellen!A:A,MATCH(C:C,Notentabellen!G:G,1)))))))))","v":""}]
["",{"$f":"IF(C58=\"\",\"\",INDEX(Laufliste!B:B,_xlfn.AGGREGATE(15,6,ROW(Laufliste!F:F)/(Laufliste!F:F=C58),COUNTIF($C$4:C58,C58)),1))","v":""},{"$f":"IF(ISERROR(_xlfn.AGGREGATE(14,6,Laufliste!F:F,ROW()-3)),\"\",IF(ROWS($A$4:A58)<=Hilfsregister!$C$2,_xlfn.AGGREGATE(14,6,Laufliste!F:F,ROW()-3),\"\"))","v":""},{"$f":"IF(C58 = \"\", \"\", IF(AND(Notentabellen!$J$3=1,Notentabellen!$L$3=1),INDEX(Notentabellen!A:A,MATCH(C:C,Notentabellen!B:B,1)),IF(AND(Notentabellen!$J$3=1,Notentabellen!$L$3=2),INDEX(Notentabellen!A:A,MATCH(C:C,Notentabellen!C:C,1)),IF(AND(Notentabellen!$J$3=2,Notentabellen!$L$3=1),INDEX(Notentabellen!A:A,MATCH(C:C,Notentabellen!D:D,1)),IF(AND(Notentabellen!$J$3=2,Notentabellen!$L$3=2),INDEX(Notentabellen!A:A,MATCH(C:C,Notentabellen!E:E,1)),IF(AND(Notentabellen!$J$3 =3,Notentabellen!$L$3=1), INDEX(Notentabellen!A:A,MATCH(C:C,Notentabellen!F:F,1)), IF(AND(Notentabellen!$J$3 =3,Notentabellen!$L$3=2), INDEX(Notentabellen!A:A,MATCH(C:C,Notentabellen!G:G,1)))))))))","v":""}]
["",{"$f":"IF(C59=\"\",\"\",INDEX(Laufliste!B:B,_xlfn.AGGREGATE(15,6,ROW(Laufliste!F:F)/(Laufliste!F:F=C59),COUNTIF($C$4:C59,C59)),1))","v":""},{"$f":"IF(ISERROR(_xlfn.AGGREGATE(14,6,Laufliste!F:F,ROW()-3)),\"\",IF(ROWS($A$4:A59)<=Hilfsregister!$C$2,_xlfn.AGGREGATE(14,6,Laufliste!F:F,ROW()-3),\"\"))","v":""},{"$f":"IF(C59 = \"\", \"\", IF(AND(Notentabellen!$J$3=1,Notentabellen!$L$3=1),INDEX(Notentabellen!A:A,MATCH(C:C,Notentabellen!B:B,1)),IF(AND(Notentabellen!$J$3=1,Notentabellen!$L$3=2),INDEX(Notentabellen!A:A,MATCH(C:C,Notentabellen!C:C,1)),IF(AND(Notentabellen!$J$3=2,Notentabellen!$L$3=1),INDEX(Notentabellen!A:A,MATCH(C:C,Notentabellen!D:D,1)),IF(AND(Notentabellen!$J$3=2,Notentabellen!$L$3=2),INDEX(Notentabellen!A:A,MATCH(C:C,Notentabellen!E:E,1)),IF(AND(Notentabellen!$J$3 =3,Notentabellen!$L$3=1), INDEX(Notentabellen!A:A,MATCH(C:C,Notentabellen!F:F,1)), IF(AND(Notentabellen!$J$3 =3,Notentabellen!$L$3=2), INDEX(Notentabellen!A:A,MATCH(C:C,Notentabellen!G:G,1)))))))))","v":""}]
["",{"$f":"IF(C60=\"\",\"\",INDEX(Laufliste!B:B,_xlfn.AGGREGATE(15,6,ROW(Laufliste!F:F)/(Laufliste!F:F=C60),COUNTIF($C$4:C60,C60)),1))","v":""},{"$f":"IF(ISERROR(_xlfn.AGGREGATE(14,6,Laufliste!F:F,ROW()-3)),\"\",IF(ROWS($A$4:A60)<=Hilfsregister!$C$2,_xlfn.AGGREGATE(14,6,Laufliste!F:F,ROW()-3),\"\"))","v":""},{"$f":"IF(C60 = \"\", \"\", IF(AND(Notentabellen!$J$3=1,Notentabellen!$L$3=1),INDEX(Notentabellen!A:A,MATCH(C:C,Notentabellen!B:B,1)),IF(AND(Notentabellen!$J$3=1,Notentabellen!$L$3=2),INDEX(Notentabellen!A:A,MATCH(C:C,Notentabellen!C:C,1)),IF(AND(Notentabellen!$J$3=2,Notentabellen!$L$3=1),INDEX(Notentabellen!A:A,MATCH(C:C,Notentabellen!D:D,1)),IF(AND(Notentabellen!$J$3=2,Notentabellen!$L$3=2),INDEX(Notentabellen!A:A,MATCH(C:C,Notentabellen!E:E,1)),IF(AND(Notentabellen!$J$3 =3,Notentabellen!$L$3=1), INDEX(Notentabellen!A:A,MATCH(C:C,Notentabellen!F:F,1)), IF(AND(Notentabellen!$J$3 =3,Notentabellen!$L$3=2), INDEX(Notentabellen!A:A,MATCH(C:C,Notentabellen!G:G,1)))))))))","v":""}]
["",{"$f":"IF(C61=\"\",\"\",INDEX(Laufliste!B:B,_xlfn.AGGREGATE(15,6,ROW(Laufliste!F:F)/(Laufliste!F:F=C61),COUNTIF($C$4:C61,C61)),1))","v":""},{"$f":"IF(ISERROR(_xlfn.AGGREGATE(14,6,Laufliste!F:F,ROW()-3)),\"\",IF(ROWS($A$4:A61)<=Hilfsregister!$C$2,_xlfn.AGGREGATE(14,6,Laufliste!F:F,ROW()-3),\"\"))","v":""},{"$f":"IF(C61 = \"\", \"\", IF(AND(Notentabellen!$J$3=1,Notentabellen!$L$3=1),INDEX(Notentabellen!A:A,MATCH(C:C,Notentabellen!B:B,1)),IF(AND(Notentabellen!$J$3=1,Notentabellen!$L$3=2),INDEX(Notentabellen!A:A,MATCH(C:C,Notentabellen!C:C,1)),IF(AND(Notentabellen!$J$3=2,Notentabellen!$L$3=1),INDEX(Notentabellen!A:A,MATCH(C:C,Notentabellen!D:D,1)),IF(AND(Notentabellen!$J$3=2,Notentabellen!$L$3=2),INDEX(Notentabellen!A:A,MATCH(C:C,Notentabellen!E:E,1)),IF(AND(Notentabellen!$J$3 =3,Notentabellen!$L$3=1), INDEX(Notentabellen!A:A,MATCH(C:C,Notentabellen!F:F,1)), IF(AND(Notentabellen!$J$3 =3,Notentabellen!$L$3=2), INDEX(Notentabellen!A:A,MATCH(C:C,Notentabellen!G:G,1)))))))))","v":""}]
["",{"$f":"IF(C62=\"\",\"\",INDEX(Laufliste!B:B,_xlfn.AGGREGATE(15,6,ROW(Laufliste!F:F)/(Laufliste!F:F=C62),COUNTIF($C$4:C62,C62)),1))","v":""},{"$f":"IF(ISERROR(_xlfn.AGGREGATE(14,6,Laufliste!F:F,ROW()-3)),\"\",IF(ROWS($A$4:A62)<=Hilfsregister!$C$2,_xlfn.AGGREGATE(14,6,Laufliste!F:F,ROW()-3),\"\"))","v":""},{"$f":"IF(C62 = \"\", \"\", IF(AND(Notentabellen!$J$3=1,Notentabellen!$L$3=1),INDEX(Notentabellen!A:A,MATCH(C:C,Notentabellen!B:B,1)),IF(AND(Notentabellen!$J$3=1,Notentabellen!$L$3=2),INDEX(Notentabellen!A:A,MATCH(C:C,Notentabellen!C:C,1)),IF(AND(Notentabellen!$J$3=2,Notentabellen!$L$3=1),INDEX(Notentabellen!A:A,MATCH(C:C,Notentabellen!D:D,1)),IF(AND(Notentabellen!$J$3=2,Notentabellen!$L$3=2),INDEX(Notentabellen!A:A,MATCH(C:C,Notentabellen!E:E,1)),IF(AND(Notentabellen!$J$3 =3,Notentabellen!$L$3=1), INDEX(Notentabellen!A:A,MATCH(C:C,Notentabellen!F:F,1)), IF(AND(Notentabellen!$J$3 =3,Notentabellen!$L$3=2), INDEX(Notentabellen!A:A,MATCH(C:C,Notentabellen!G:G,1)))))))))","v":""}]
["",{"$f":"IF(C63=\"\",\"\",INDEX(Laufliste!B:B,_xlfn.AGGREGATE(15,6,ROW(Laufliste!F:F)/(Laufliste!F:F=C63),COUNTIF($C$4:C63,C63)),1))","v":""},{"$f":"IF(ISERROR(_xlfn.AGGREGATE(14,6,Laufliste!F:F,ROW()-3)),\"\",IF(ROWS($A$4:A63)<=Hilfsregister!$C$2,_xlfn.AGGREGATE(14,6,Laufliste!F:F,ROW()-3),\"\"))","v":""},{"$f":"IF(C63 = \"\", \"\", IF(AND(Notentabellen!$J$3=1,Notentabellen!$L$3=1),INDEX(Notentabellen!A:A,MATCH(C:C,Notentabellen!B:B,1)),IF(AND(Notentabellen!$J$3=1,Notentabellen!$L$3=2),INDEX(Notentabellen!A:A,MATCH(C:C,Notentabellen!C:C,1)),IF(AND(Notentabellen!$J$3=2,Notentabellen!$L$3=1),INDEX(Notentabellen!A:A,MATCH(C:C,Notentabellen!D:D,1)),IF(AND(Notentabellen!$J$3=2,Notentabellen!$L$3=2),INDEX(Notentabellen!A:A,MATCH(C:C,Notentabellen!E:E,1)),IF(AND(Notentabellen!$J$3 =3,Notentabellen!$L$3=1), INDEX(Notentabellen!A:A,MATCH(C:C,Notentabellen!F:F,1)), IF(AND(Notentabellen!$J$3 =3,Notentabellen!$L$3=2), INDEX(Notentabellen!A:A,MATCH(C:C,Notentabellen!G:G,1)))))))))","v":""}]
["",{"$f":"IF(C64=\"\",\"\",INDEX(Laufliste!B:B,_xlfn.AGGREGATE(15,6,ROW(Laufliste!F:F)/(Laufliste!F:F=C64),COUNTIF($C$4:C64,C64)),1))","v":""},{"$f":"IF(ISERROR(_xlfn.AGGREGATE(14,6,Laufliste!F:F,ROW()-3)),\"\",IF(ROWS($A$4:A64)<=Hilfsregister!$C$2,_xlfn.AGGREGATE(14,6,Laufliste!F:F,ROW()-3),\"\"))","v":""},{"$f":"IF(C64 = \"\", \"\", IF(AND(Notentabellen!$J$3=1,Notentabellen!$L$3=1),INDEX(Notentabellen!A:A,MATCH(C:C,Notentabellen!B:B,1)),IF(AND(Notentabellen!$J$3=1,Notentabellen!$L$3=2),INDEX(Notentabellen!A:A,MATCH(C:C,Notentabellen!C:C,1)),IF(AND(Notentabellen!$J$3=2,Notentabellen!$L$3=1),INDEX(Notentabellen!A:A,MATCH(C:C,Notentabellen!D:D,1)),IF(AND(Notentabellen!$J$3=2,Notentabellen!$L$3=2),INDEX(Notentabellen!A:A,MATCH(C:C,Notentabellen!E:E,1)),IF(AND(Notentabellen!$J$3 =3,Notentabellen!$L$3=1), INDEX(Notentabellen!A:A,MATCH(C:C,Notentabellen!F:F,1)), IF(AND(Notentabellen!$J$3 =3,Notentabellen!$L$3=2), INDEX(Notentabellen!A:A,MATCH(C:C,Notentabellen!G:G,1)))))))))","v":""}]
["",{"$f":"IF(C65=\"\",\"\",INDEX(Laufliste!B:B,_xlfn.AGGREGATE(15,6,ROW(Laufliste!F:F)/(Laufliste!F:F=C65),COUNTIF($C$4:C65,C65)),1))","v":""},{"$f":"IF(ISERROR(_xlfn.AGGREGATE(14,6,Laufliste!F:F,ROW()-3)),\"\",IF(ROWS($A$4:A65)<=Hilfsregister!$C$2,_xlfn.AGGREGATE(14,6,Laufliste!F:F,ROW()-3),\"\"))","v":""},{"$f":"IF(C65 = \"\", \"\", IF(AND(Notentabellen!$J$3=1,Notentabellen!$L$3=1),INDEX(Notentabellen!A:A,MATCH(C:C,Notentabellen!B:B,1)),IF(AND(Notentabellen!$J$3=1,Notentabellen!$L$3=2),INDEX(Notentabellen!A:A,MATCH(C:C,Notentabellen!C:C,1)),IF(AND(Notentabellen!$J$3=2,Notentabellen!$L$3=1),INDEX(Notentabellen!A:A,MATCH(C:C,Notentabellen!D:D,1)),IF(AND(Notentabellen!$J$3=2,Notentabellen!$L$3=2),INDEX(Notentabellen!A:A,MATCH(C:C,Notentabellen!E:E,1)),IF(AND(Notentabellen!$J$3 =3,Notentabellen!$L$3=1), INDEX(Notentabellen!A:A,MATCH(C:C,Notentabellen!F:F,1)), IF(AND(Notentabellen!$J$3 =3,Notentabellen!$L$3=2), INDEX(Notentabellen!A:A,MATCH(C:C,Notentabellen!G:G,1)))))))))","v":""}]
["",{"$f":"IF(C66=\"\",\"\",INDEX(Laufliste!B:B,_xlfn.AGGREGATE(15,6,ROW(Laufliste!F:F)/(Laufliste!F:F=C66),COUNTIF($C$4:C66,C66)),1))","v":""},{"$f":"IF(ISERROR(_xlfn.AGGREGATE(14,6,Laufliste!F:F,ROW()-3)),\"\",IF(ROWS($A$4:A66)<=Hilfsregister!$C$2,_xlfn.AGGREGATE(14,6,Laufliste!F:F,ROW()-3),\"\"))","v":""},{"$f":"IF(C66 = \"\", \"\", IF(AND(Notentabellen!$J$3=1,Notentabellen!$L$3=1),INDEX(Notentabellen!A:A,MATCH(C:C,Notentabellen!B:B,1)),IF(AND(Notentabellen!$J$3=1,Notentabellen!$L$3=2),INDEX(Notentabellen!A:A,MATCH(C:C,Notentabellen!C:C,1)),IF(AND(Notentabellen!$J$3=2,Notentabellen!$L$3=1),INDEX(Notentabellen!A:A,MATCH(C:C,Notentabellen!D:D,1)),IF(AND(Notentabellen!$J$3=2,Notentabellen!$L$3=2),INDEX(Notentabellen!A:A,MATCH(C:C,Notentabellen!E:E,1)),IF(AND(Notentabellen!$J$3 =3,Notentabellen!$L$3=1), INDEX(Notentabellen!A:A,MATCH(C:C,Notentabellen!F:F,1)), IF(AND(Notentabellen!$J$3 =3,Notentabellen!$L$3=2), INDEX(Notentabellen!A:A,MATCH(C:C,Notentabellen!G:G,1)))))))))","v":""}]
["",{"$f":"IF(C67=\"\",\"\",INDEX(Laufliste!B:B,_xlfn.AGGREGATE(15,6,ROW(Laufliste!F:F)/(Laufliste!F:F=C67),COUNTIF($C$4:C67,C67)),1))","v":""},{"$f":"IF(ISERROR(_xlfn.AGGREGATE(14,6,Laufliste!F:F,ROW()-3)),\"\",IF(ROWS($A$4:A67)<=Hilfsregister!$C$2,_xlfn.AGGREGATE(14,6,Laufliste!F:F,ROW()-3),\"\"))","v":""},{"$f":"IF(C67 = \"\", \"\", IF(AND(Notentabellen!$J$3=1,Notentabellen!$L$3=1),INDEX(Notentabellen!A:A,MATCH(C:C,Notentabellen!B:B,1)),IF(AND(Notentabellen!$J$3=1,Notentabellen!$L$3=2),INDEX(Notentabellen!A:A,MATCH(C:C,Notentabellen!C:C,1)),IF(AND(Notentabellen!$J$3=2,Notentabellen!$L$3=1),INDEX(Notentabellen!A:A,MATCH(C:C,Notentabellen!D:D,1)),IF(AND(Notentabellen!$J$3=2,Notentabellen!$L$3=2),INDEX(Notentabellen!A:A,MATCH(C:C,Notentabellen!E:E,1)),IF(AND(Notentabellen!$J$3 =3,Notentabellen!$L$3=1), INDEX(Notentabellen!A:A,MATCH(C:C,Notentabellen!F:F,1)), IF(AND(Notentabellen!$J$3 =3,Notentabellen!$L$3=2), INDEX(Notentabellen!A:A,MATCH(C:C,Notentabellen!G:G,1)))))))))","v":""}]
["",{"$f":"IF(C68=\"\",\"\",INDEX(Laufliste!B:B,_xlfn.AGGREGATE(15,6,ROW(Laufliste!F:F)/(Laufliste!F:F=C68),COUNTIF($C$4:C68,C68)),1))","v":""},{"$f":"IF(ISERROR(_xlfn.AGGREGATE(14,6,Laufliste!F:F,ROW()-3)),\"\",IF(ROWS($A$4:A68)<=Hilfsregister!$C$2,_xlfn.AGGREGATE(14,6,Laufliste!F:F,ROW()-3),\"\"))","v":""},{"$f":"IF(C68 = \"\", \"\", IF(AND(Notentabellen!$J$3=1,Notentabellen!$L$3=1),INDEX(Notentabellen!A:A,MATCH(C:C,Notentabellen!B:B,1)),IF(AND(Notentabellen!$J$3=1,Notentabellen!$L$3=2),INDEX(Notentabellen!A:A,MATCH(C:C,Notentabellen!C:C,1)),IF(AND(Notentabellen!$J$3=2,Notentabellen!$L$3=1),INDEX(Notentabellen!A:A,MATCH(C:C,Notentabellen!D:D,1)),IF(AND(Notentabellen!$J$3=2,Notentabellen!$L$3=2),INDEX(Notentabellen!A:A,MATCH(C:C,Notentabellen!E:E,1)),IF(AND(Notentabellen!$J$3 =3,Notentabellen!$L$3=1), INDEX(Notentabellen!A:A,MATCH(C:C,Notentabellen!F:F,1)), IF(AND(Notentabellen!$J$3 =3,Notentabellen!$L$3=2), INDEX(Notentabellen!A:A,MATCH(C:C,Notentabellen!G:G,1)))))))))","v":""}]
[{"$f":"IF(C69=\"\",\"\",_xlfn.RANK.EQ(C69,C:C,0))","v":""},{"$f":"IF(C69=\"\",\"\",INDEX(Laufliste!B:B,_xlfn.AGGREGATE(15,6,ROW(Laufliste!F:F)/(Laufliste!F:F=C69),COUNTIF($C$4:C69,C69)),1))","v":""},{"$f":"IF(ISERROR(_xlfn.AGGREGATE(14,6,Laufliste!F:F,ROW()-3)),\"\",IF(ROWS($A$4:A69)<=Hilfsregister!$C$2,_xlfn.AGGREGATE(14,6,Laufliste!F:F,ROW()-3),\"\"))","v":""},{"$f":"IF(C69 = \"\", \"\", IF(AND(Notentabellen!$J$3=1,Notentabellen!$L$3=1),INDEX(Notentabellen!A:A,MATCH(C:C,Notentabellen!B:B,1)),IF(AND(Notentabellen!$J$3=1,Notentabellen!$L$3=2),INDEX(Notentabellen!A:A,MATCH(C:C,Notentabellen!C:C,1)),IF(AND(Notentabellen!$J$3=2,Notentabellen!$L$3=1),INDEX(Notentabellen!A:A,MATCH(C:C,Notentabellen!D:D,1)),IF(AND(Notentabellen!$J$3=2,Notentabellen!$L$3=2),INDEX(Notentabellen!A:A,MATCH(C:C,Notentabellen!E:E,1)),IF(AND(Notentabellen!$J$3 =3,Notentabellen!$L$3=1), INDEX(Notentabellen!A:A,MATCH(C:C,Notentabellen!F:F,1)), IF(AND(Notentabellen!$J$3 =3,Notentabellen!$L$3=2), INDEX(Notentabellen!A:A,MATCH(C:C,Notentabellen!G:G,1)))))))))","v":""}]
["",{"$f":"IF(C70=\"\",\"\",INDEX(Laufliste!B:B,_xlfn.AGGREGATE(15,6,ROW(Laufliste!F:F)/(Laufliste!F:F=C70),COUNTIF($C$4:C70,C70)),1))","v":""},{"$f":"IF(ISERROR(_xlfn.AGGREGATE(14,6,Laufliste!F:F,ROW()-3)),\"\",IF(ROWS($A$4:A70)<=Hilfsregister!$C$2,_xlfn.AGGREGATE(14,6,Laufliste!F:F,ROW()-3),\"\"))","v":""},{"$f":"IF(C70 = \"\", \"\", IF(AND(Notentabellen!$J$3=1,Notentabellen!$L$3=1),INDEX(Notentabellen!A:A,MATCH(C:C,Notentabellen!B:B,1)),IF(AND(Notentabellen!$J$3=1,Notentabellen!$L$3=2),INDEX(Notentabellen!A:A,MATCH(C:C,Notentabellen!C:C,1)),IF(AND(Notentabellen!$J$3=2,Notentabellen!$L$3=1),INDEX(Notentabellen!A:A,MATCH(C:C,Notentabellen!D:D,1)),IF(AND(Notentabellen!$J$3=2,Notentabellen!$L$3=2),INDEX(Notentabellen!A:A,MATCH(C:C,Notentabellen!E:E,1)),IF(AND(Notentabellen!$J$3 =3,Notentabellen!$L$3=1), INDEX(Notentabellen!A:A,MATCH(C:C,Notentabellen!F:F,1)), IF(AND(Notentabellen!$J$3 =3,Notentabellen!$L$3=2), INDEX(Notentabellen!A:A,MATCH(C:C,Notentabellen!G:G,1)))))))))","v":""}]
["",{"$f":"IF(C71=\"\",\"\",INDEX(Laufliste!B:B,_xlfn.AGGREGATE(15,6,ROW(Laufliste!F:F)/(Laufliste!F:F=C71),COUNTIF($C$4:C71,C71)),1))","v":""},{"$f":"IF(ISERROR(_xlfn.AGGREGATE(14,6,Laufliste!F:F,ROW()-3)),\"\",IF(ROWS($A$4:A71)<=Hilfsregister!$C$2,_xlfn.AGGREGATE(14,6,Laufliste!F:F,ROW()-3),\"\"))","v":""},{"$f":"IF(C71 = \"\", \"\", IF(AND(Notentabellen!$J$3=1,Notentabellen!$L$3=1),INDEX(Notentabellen!A:A,MATCH(C:C,Notentabellen!B:B,1)),IF(AND(Notentabellen!$J$3=1,Notentabellen!$L$3=2),INDEX(Notentabellen!A:A,MATCH(C:C,Notentabellen!C:C,1)),IF(AND(Notentabellen!$J$3=2,Notentabellen!$L$3=1),INDEX(Notentabellen!A:A,MATCH(C:C,Notentabellen!D:D,1)),IF(AND(Notentabellen!$J$3=2,Notentabellen!$L$3=2),INDEX(Notentabellen!A:A,MATCH(C:C,Notentabellen!E:E,1)),IF(AND(Notentabellen!$J$3 =3,Notentabellen!$L$3=1), INDEX(Notentabellen!A:A,MATCH(C:C,Notentabellen!F:F,1)), IF(AND(Notentabellen!$J$3 =3,Notentabellen!$L$3=2), INDEX(Notentabellen!A:A,MATCH(C:C,Notentabellen!G:G,1)))))))))","v":""}]
["",{"$f":"IF(C72=\"\",\"\",INDEX(Laufliste!B:B,_xlfn.AGGREGATE(15,6,ROW(Laufliste!F:F)/(Laufliste!F:F=C72),COUNTIF($C$4:C72,C72)),1))","v":""},{"$f":"IF(ISERROR(_xlfn.AGGREGATE(14,6,Laufliste!F:F,ROW()-3)),\"\",IF(ROWS($A$4:A72)<=Hilfsregister!$C$2,_xlfn.AGGREGATE(14,6,Laufliste!F:F,ROW()-3),\"\"))","v":""},{"$f":"IF(C72 = \"\", \"\", IF(AND(Notentabellen!$J$3=1,Notentabellen!$L$3=1),INDEX(Notentabellen!A:A,MATCH(C:C,Notentabellen!B:B,1)),IF(AND(Notentabellen!$J$3=1,Notentabellen!$L$3=2),INDEX(Notentabellen!A:A,MATCH(C:C,Notentabellen!C:C,1)),IF(AND(Notentabellen!$J$3=2,Notentabellen!$L$3=1),INDEX(Notentabellen!A:A,MATCH(C:C,Notentabellen!D:D,1)),IF(AND(Notentabellen!$J$3=2,Notentabellen!$L$3=2),INDEX(Notentabellen!A:A,MATCH(C:C,Notentabellen!E:E,1)),IF(AND(Notentabellen!$J$3 =3,Notentabellen!$L$3=1), INDEX(Notentabellen!A:A,MATCH(C:C,Notentabellen!F:F,1)), IF(AND(Notentabellen!$J$3 =3,Notentabellen!$L$3=2), INDEX(Notentabellen!A:A,MATCH(C:C,Notentabellen!G:G,1)))))))))","v":""}]
["",{"$f":"IF(C73=\"\",\"\",INDEX(Laufliste!B:B,_xlfn.AGGREGATE(15,6,ROW(Laufliste!F:F)/(Laufliste!F:F=C73),COUNTIF($C$4:C73,C73)),1))","v":""},{"$f":"IF(ISERROR(_xlfn.AGGREGATE(14,6,Laufliste!F:F,ROW()-3)),\"\",IF(ROWS($A$4:A73)<=Hilfsregister!$C$2,_xlfn.AGGREGATE(14,6,Laufliste!F:F,ROW()-3),\"\"))","v":""},{"$f":"IF(C73 = \"\", \"\", IF(AND(Notentabellen!$J$3=1,Notentabellen!$L$3=1),INDEX(Notentabellen!A:A,MATCH(C:C,Notentabellen!B:B,1)),IF(AND(Notentabellen!$J$3=1,Notentabellen!$L$3=2),INDEX(Notentabellen!A:A,MATCH(C:C,Notentabellen!C:C,1)),IF(AND(Notentabellen!$J$3=2,Notentabellen!$L$3=1),INDEX(Notentabellen!A:A,MATCH(C:C,Notentabellen!D:D,1)),IF(AND(Notentabellen!$J$3=2,Notentabellen!$L$3=2),INDEX(Notentabellen!A:A,MATCH(C:C,Notentabellen!E:E,1)),IF(AND(Notentabellen!$J$3 =3,Notentabellen!$L$3=1), INDEX(Notentabellen!A:A,MATCH(C:C,Notentabellen!F:F,1)), IF(AND(Notentabellen!$J$3 =3,Notentabellen!$L$3=2), INDEX(Notentabellen!A:A,MATCH(C:C,Notentabellen!G:G,1)))))))))","v":""}]
["",{"$f":"IF(C74=\"\",\"\",INDEX(Laufliste!B:B,_xlfn.AGGREGATE(15,6,ROW(Laufliste!F:F)/(Laufliste!F:F=C74),COUNTIF($C$4:C74,C74)),1))","v":""},{"$f":"IF(ISERROR(_xlfn.AGGREGATE(14,6,Laufliste!F:F,ROW()-3)),\"\",IF(ROWS($A$4:A74)<=Hilfsregister!$C$2,_xlfn.AGGREGATE(14,6,Laufliste!F:F,ROW()-3),\"\"))","v":""},{"$f":"IF(C74 = \"\", \"\", IF(AND(Notentabellen!$J$3=1,Notentabellen!$L$3=1),INDEX(Notentabellen!A:A,MATCH(C:C,Notentabellen!B:B,1)),IF(AND(Notentabellen!$J$3=1,Notentabellen!$L$3=2),INDEX(Notentabellen!A:A,MATCH(C:C,Notentabellen!C:C,1)),IF(AND(Notentabellen!$J$3=2,Notentabellen!$L$3=1),INDEX(Notentabellen!A:A,MATCH(C:C,Notentabellen!D:D,1)),IF(AND(Notentabellen!$J$3=2,Notentabellen!$L$3=2),INDEX(Notentabellen!A:A,MATCH(C:C,Notentabellen!E:E,1)),IF(AND(Notentabellen!$J$3 =3,Notentabellen!$L$3=1), INDEX(Notentabellen!A:A,MATCH(C:C,Notentabellen!F:F,1)), IF(AND(Notentabellen!$J$3 =3,Notentabellen!$L$3=2), INDEX(Notentabellen!A:A,MATCH(C:C,Notentabellen!G:G,1)))))))))","v":""}]
["",{"$f":"IF(C75=\"\",\"\",INDEX(Laufliste!B:B,_xlfn.AGGREGATE(15,6,ROW(Laufliste!F:F)/(Laufliste!F:F=C75),COUNTIF($C$4:C75,C75)),1))","v":""},{"$f":"IF(ISERROR(_xlfn.AGGREGATE(14,6,Laufliste!F:F,ROW()-3)),\"\",IF(ROWS($A$4:A75)<=Hilfsregister!$C$2,_xlfn.AGGREGATE(14,6,Laufliste!F:F,ROW()-3),\"\"))","v":""},{"$f":"IF(C75 = \"\", \"\", IF(AND(Notentabellen!$J$3=1,Notentabellen!$L$3=1),INDEX(Notentabellen!A:A,MATCH(C:C,Notentabellen!B:B,1)),IF(AND(Notentabellen!$J$3=1,Notentabellen!$L$3=2),INDEX(Notentabellen!A:A,MATCH(C:C,Notentabellen!C:C,1)),IF(AND(Notentabellen!$J$3=2,Notentabellen!$L$3=1),INDEX(Notentabellen!A:A,MATCH(C:C,Notentabellen!D:D,1)),IF(AND(Notentabellen!$J$3=2,Notentabellen!$L$3=2),INDEX(Notentabellen!A:A,MATCH(C:C,Notentabellen!E:E,1)),IF(AND(Notentabellen!$J$3 =3,Notentabellen!$L$3=1), INDEX(Notentabellen!A:A,MATCH(C:C,Notentabellen!F:F,1)), IF(AND(Notentabellen!$J$3 =3,Notentabellen!$L$3=2), INDEX(Notentabellen!A:A,MATCH(C:C,Notentabellen!G:G,1)))))))))","v":""}]
["",{"$f":"IF(C76=\"\",\"\",INDEX(Laufliste!B:B,_xlfn.AGGREGATE(15,6,ROW(Laufliste!F:F)/(Laufliste!F:F=C76),COUNTIF($C$4:C76,C76)),1))","v":""},{"$f":"IF(ISERROR(_xlfn.AGGREGATE(14,6,Laufliste!F:F,ROW()-3)),\"\",IF(ROWS($A$4:A76)<=Hilfsregister!$C$2,_xlfn.AGGREGATE(14,6,Laufliste!F:F,ROW()-3),\"\"))","v":""},{"$f":"IF(C76 = \"\", \"\", IF(AND(Notentabellen!$J$3=1,Notentabellen!$L$3=1),INDEX(Notentabellen!A:A,MATCH(C:C,Notentabellen!B:B,1)),IF(AND(Notentabellen!$J$3=1,Notentabellen!$L$3=2),INDEX(Notentabellen!A:A,MATCH(C:C,Notentabellen!C:C,1)),IF(AND(Notentabellen!$J$3=2,Notentabellen!$L$3=1),INDEX(Notentabellen!A:A,MATCH(C:C,Notentabellen!D:D,1)),IF(AND(Notentabellen!$J$3=2,Notentabellen!$L$3=2),INDEX(Notentabellen!A:A,MATCH(C:C,Notentabellen!E:E,1)),IF(AND(Notentabellen!$J$3 =3,Notentabellen!$L$3=1), INDEX(Notentabellen!A:A,MATCH(C:C,Notentabellen!F:F,1)), IF(AND(Notentabellen!$J$3 =3,Notentabellen!$L$3=2), INDEX(Notentabellen!A:A,MATCH(C:C,Notentabellen!G:G,1)))))))))","v":""}]
["",{"$f":"IF(C77=\"\",\"\",INDEX(Laufliste!B:B,_xlfn.AGGREGATE(15,6,ROW(Laufliste!F:F)/(Laufliste!F:F=C77),COUNTIF($C$4:C77,C77)),1))","v":""},{"$f":"IF(ISERROR(_xlfn.AGGREGATE(14,6,Laufliste!F:F,ROW()-3)),\"\",IF(ROWS($A$4:A77)<=Hilfsregister!$C$2,_xlfn.AGGREGATE(14,6,Laufliste!F:F,ROW()-3),\"\"))","v":""},{"$f":"IF(C77 = \"\", \"\", IF(AND(Notentabellen!$J$3=1,Notentabellen!$L$3=1),INDEX(Notentabellen!A:A,MATCH(C:C,Notentabellen!B:B,1)),IF(AND(Notentabellen!$J$3=1,Notentabellen!$L$3=2),INDEX(Notentabellen!A:A,MATCH(C:C,Notentabellen!C:C,1)),IF(AND(Notentabellen!$J$3=2,Notentabellen!$L$3=1),INDEX(Notentabellen!A:A,MATCH(C:C,Notentabellen!D:D,1)),IF(AND(Notentabellen!$J$3=2,Notentabellen!$L$3=2),INDEX(Notentabellen!A:A,MATCH(C:C,Notentabellen!E:E,1)),IF(AND(Notentabellen!$J$3 =3,Notentabellen!$L$3=1), INDEX(Notentabellen!A:A,MATCH(C:C,Notentabellen!F:F,1)), IF(AND(Notentabellen!$J$3 =3,Notentabellen!$L$3=2), INDEX(Notentabellen!A:A,MATCH(C:C,Notentabellen!G:G,1)))))))))","v":""}]
["",{"$f":"IF(C78=\"\",\"\",INDEX(Laufliste!B:B,_xlfn.AGGREGATE(15,6,ROW(Laufliste!F:F)/(Laufliste!F:F=C78),COUNTIF($C$4:C78,C78)),1))","v":""},{"$f":"IF(ISERROR(_xlfn.AGGREGATE(14,6,Laufliste!F:F,ROW()-3)),\"\",IF(ROWS($A$4:A78)<=Hilfsregister!$C$2,_xlfn.AGGREGATE(14,6,Laufliste!F:F,ROW()-3),\"\"))","v":""},{"$f":"IF(C78 = \"\", \"\", IF(AND(Notentabellen!$J$3=1,Notentabellen!$L$3=1),INDEX(Notentabellen!A:A,MATCH(C:C,Notentabellen!B:B,1)),IF(AND(Notentabellen!$J$3=1,Notentabellen!$L$3=2),INDEX(Notentabellen!A:A,MATCH(C:C,Notentabellen!C:C,1)),IF(AND(Notentabellen!$J$3=2,Notentabellen!$L$3=1),INDEX(Notentabellen!A:A,MATCH(C:C,Notentabellen!D:D,1)),IF(AND(Notentabellen!$J$3=2,Notentabellen!$L$3=2),INDEX(Notentabellen!A:A,MATCH(C:C,Notentabellen!E:E,1)),IF(AND(Notentabellen!$J$3 =3,Notentabellen!$L$3=1), INDEX(Notentabellen!A:A,MATCH(C:C,Notentabellen!F:F,1)), IF(AND(Notentabellen!$J$3 =3,Notentabellen!$L$3=2), INDEX(Notentabellen!A:A,MATCH(C:C,Notentabellen!G:G,1)))))))))","v":""}]
["",{"$f":"IF(C79=\"\",\"\",INDEX(Laufliste!B:B,_xlfn.AGGREGATE(15,6,ROW(Laufliste!F:F)/(Laufliste!F:F=C79),COUNTIF($C$4:C79,C79)),1))","v":""},{"$f":"IF(ISERROR(_xlfn.AGGREGATE(14,6,Laufliste!F:F,ROW()-3)),\"\",IF(ROWS($A$4:A79)<=Hilfsregister!$C$2,_xlfn.AGGREGATE(14,6,Laufliste!F:F,ROW()-3),\"\"))","v":""},{"$f":"IF(C79 = \"\", \"\", IF(AND(Notentabellen!$J$3=1,Notentabellen!$L$3=1),INDEX(Notentabellen!A:A,MATCH(C:C,Notentabellen!B:B,1)),IF(AND(Notentabellen!$J$3=1,Notentabellen!$L$3=2),INDEX(Notentabellen!A:A,MATCH(C:C,Notentabellen!C:C,1)),IF(AND(Notentabellen!$J$3=2,Notentabellen!$L$3=1),INDEX(Notentabellen!A:A,MATCH(C:C,Notentabellen!D:D,1)),IF(AND(Notentabellen!$J$3=2,Notentabellen!$L$3=2),INDEX(Notentabellen!A:A,MATCH(C:C,Notentabellen!E:E,1)),IF(AND(Notentabellen!$J$3 =3,Notentabellen!$L$3=1), INDEX(Notentabellen!A:A,MATCH(C:C,Notentabellen!F:F,1)), IF(AND(Notentabellen!$J$3 =3,Notentabellen!$L$3=2), INDEX(Notentabellen!A:A,MATCH(C:C,Notentabellen!G:G,1)))))))))","v":""}]
["",{"$f":"IF(C80=\"\",\"\",INDEX(Laufliste!B:B,_xlfn.AGGREGATE(15,6,ROW(Laufliste!F:F)/(Laufliste!F:F=C80),COUNTIF($C$4:C80,C80)),1))","v":""},{"$f":"IF(ISERROR(_xlfn.AGGREGATE(14,6,Laufliste!F:F,ROW()-3)),\"\",IF(ROWS($A$4:A80)<=Hilfsregister!$C$2,_xlfn.AGGREGATE(14,6,Laufliste!F:F,ROW()-3),\"\"))","v":""},{"$f":"IF(C80 = \"\", \"\", IF(AND(Notentabellen!$J$3=1,Notentabellen!$L$3=1),INDEX(Notentabellen!A:A,MATCH(C:C,Notentabellen!B:B,1)),IF(AND(Notentabellen!$J$3=1,Notentabellen!$L$3=2),INDEX(Notentabellen!A:A,MATCH(C:C,Notentabellen!C:C,1)),IF(AND(Notentabellen!$J$3=2,Notentabellen!$L$3=1),INDEX(Notentabellen!A:A,MATCH(C:C,Notentabellen!D:D,1)),IF(AND(Notentabellen!$J$3=2,Notentabellen!$L$3=2),INDEX(Notentabellen!A:A,MATCH(C:C,Notentabellen!E:E,1)),IF(AND(Notentabellen!$J$3 =3,Notentabellen!$L$3=1), INDEX(Notentabellen!A:A,MATCH(C:C,Notentabellen!F:F,1)), IF(AND(Notentabellen!$J$3 =3,Notentabellen!$L$3=2), INDEX(Notentabellen!A:A,MATCH(C:C,Notentabellen!G:G,1)))))))))","v":""}]
["",{"$f":"IF(C81=\"\",\"\",INDEX(Laufliste!B:B,_xlfn.AGGREGATE(15,6,ROW(Laufliste!F:F)/(Laufliste!F:F=C81),COUNTIF($C$4:C81,C81)),1))","v":""},{"$f":"IF(ISERROR(_xlfn.AGGREGATE(14,6,Laufliste!F:F,ROW()-3)),\"\",IF(ROWS($A$4:A81)<=Hilfsregister!$C$2,_xlfn.AGGREGATE(14,6,Laufliste!F:F,ROW()-3),\"\"))","v":""},{"$f":"IF(C81 = \"\", \"\", IF(AND(Notentabellen!$J$3=1,Notentabellen!$L$3=1),INDEX(Notentabellen!A:A,MATCH(C:C,Notentabellen!B:B,1)),IF(AND(Notentabellen!$J$3=1,Notentabellen!$L$3=2),INDEX(Notentabellen!A:A,MATCH(C:C,Notentabellen!C:C,1)),IF(AND(Notentabellen!$J$3=2,Notentabellen!$L$3=1),INDEX(Notentabellen!A:A,MATCH(C:C,Notentabellen!D:D,1)),IF(AND(Notentabellen!$J$3=2,Notentabellen!$L$3=2),INDEX(Notentabellen!A:A,MATCH(C:C,Notentabellen!E:E,1)),IF(AND(Notentabellen!$J$3 =3,Notentabellen!$L$3=1), INDEX(Notentabellen!A:A,MATCH(C:C,Notentabellen!F:F,1)), IF(AND(Notentabellen!$J$3 =3,Notentabellen!$L$3=2), INDEX(Notentabellen!A:A,MATCH(C:C,Notentabellen!G:G,1)))))))))","v":""}]
["",{"$f":"IF(C82=\"\",\"\",INDEX(Laufliste!B:B,_xlfn.AGGREGATE(15,6,ROW(Laufliste!F:F)/(Laufliste!F:F=C82),COUNTIF($C$4:C82,C82)),1))","v":""},{"$f":"IF(ISERROR(_xlfn.AGGREGATE(14,6,Laufliste!F:F,ROW()-3)),\"\",IF(ROWS($A$4:A82)<=Hilfsregister!$C$2,_xlfn.AGGREGATE(14,6,Laufliste!F:F,ROW()-3),\"\"))","v":""},{"$f":"IF(C82 = \"\", \"\", IF(AND(Notentabellen!$J$3=1,Notentabellen!$L$3=1),INDEX(Notentabellen!A:A,MATCH(C:C,Notentabellen!B:B,1)),IF(AND(Notentabellen!$J$3=1,Notentabellen!$L$3=2),INDEX(Notentabellen!A:A,MATCH(C:C,Notentabellen!C:C,1)),IF(AND(Notentabellen!$J$3=2,Notentabellen!$L$3=1),INDEX(Notentabellen!A:A,MATCH(C:C,Notentabellen!D:D,1)),IF(AND(Notentabellen!$J$3=2,Notentabellen!$L$3=2),INDEX(Notentabellen!A:A,MATCH(C:C,Notentabellen!E:E,1)),IF(AND(Notentabellen!$J$3 =3,Notentabellen!$L$3=1), INDEX(Notentabellen!A:A,MATCH(C:C,Notentabellen!F:F,1)), IF(AND(Notentabellen!$J$3 =3,Notentabellen!$L$3=2), INDEX(Notentabellen!A:A,MATCH(C:C,Notentabellen!G:G,1)))))))))","v":""}]
["",{"$f":"IF(C83=\"\",\"\",INDEX(Laufliste!B:B,_xlfn.AGGREGATE(15,6,ROW(Laufliste!F:F)/(Laufliste!F:F=C83),COUNTIF($C$4:C83,C83)),1))","v":""},{"$f":"IF(ISERROR(_xlfn.AGGREGATE(14,6,Laufliste!F:F,ROW()-3)),\"\",IF(ROWS($A$4:A83)<=Hilfsregister!$C$2,_xlfn.AGGREGATE(14,6,Laufliste!F:F,ROW()-3),\"\"))","v":""},{"$f":"IF(C83 = \"\", \"\", IF(AND(Notentabellen!$J$3=1,Notentabellen!$L$3=1),INDEX(Notentabellen!A:A,MATCH(C:C,Notentabellen!B:B,1)),IF(AND(Notentabellen!$J$3=1,Notentabellen!$L$3=2),INDEX(Notentabellen!A:A,MATCH(C:C,Notentabellen!C:C,1)),IF(AND(Notentabellen!$J$3=2,Notentabellen!$L$3=1),INDEX(Notentabellen!A:A,MATCH(C:C,Notentabellen!D:D,1)),IF(AND(Notentabellen!$J$3=2,Notentabellen!$L$3=2),INDEX(Notentabellen!A:A,MATCH(C:C,Notentabellen!E:E,1)),IF(AND(Notentabellen!$J$3 =3,Notentabellen!$L$3=1), INDEX(Notentabellen!A:A,MATCH(C:C,Notentabellen!F:F,1)), IF(AND(Notentabellen!$J$3 =3,Notentabellen!$L$3=2), INDEX(Notentabellen!A:A,MATCH(C:C,Notentabellen!G:G,1)))))))))","v":""}]
["",{"$f":"IF(C84=\"\",\"\",INDEX(Laufliste!B:B,_xlfn.AGGREGATE(15,6,ROW(Laufliste!F:F)/(Laufliste!F:F=C84),COUNTIF($C$4:C84,C84)),1))","v":""},{"$f":"IF(ISERROR(_xlfn.AGGREGATE(14,6,Laufliste!F:F,ROW()-3)),\"\",IF(ROWS($A$4:A84)<=Hilfsregister!$C$2,_xlfn.AGGREGATE(14,6,Laufliste!F:F,ROW()-3),\"\"))","v":""},{"$f":"IF(C84 = \"\", \"\", IF(AND(Notentabellen!$J$3=1,Notentabellen!$L$3=1),INDEX(Notentabellen!A:A,MATCH(C:C,Notentabellen!B:B,1)),IF(AND(Notentabellen!$J$3=1,Notentabellen!$L$3=2),INDEX(Notentabellen!A:A,MATCH(C:C,Notentabellen!C:C,1)),IF(AND(Notentabellen!$J$3=2,Notentabellen!$L$3=1),INDEX(Notentabellen!A:A,MATCH(C:C,Notentabellen!D:D,1)),IF(AND(Notentabellen!$J$3=2,Notentabellen!$L$3=2),INDEX(Notentabellen!A:A,MATCH(C:C,Notentabellen!E:E,1)),IF(AND(Notentabellen!$J$3 =3,Notentabellen!$L$3=1), INDEX(Notentabellen!A:A,MATCH(C:C,Notentabellen!F:F,1)), IF(AND(Notentabellen!$J$3 =3,Notentabellen!$L$3=2), INDEX(Notentabellen!A:A,MATCH(C:C,Notentabellen!G:G,1)))))))))","v":""}]
["",{"$f":"IF(C85=\"\",\"\",INDEX(Laufliste!B:B,_xlfn.AGGREGATE(15,6,ROW(Laufliste!F:F)/(Laufliste!F:F=C85),COUNTIF($C$4:C85,C85)),1))","v":""},{"$f":"IF(ISERROR(_xlfn.AGGREGATE(14,6,Laufliste!F:F,ROW()-3)),\"\",IF(ROWS($A$4:A85)<=Hilfsregister!$C$2,_xlfn.AGGREGATE(14,6,Laufliste!F:F,ROW()-3),\"\"))","v":""},{"$f":"IF(C85 = \"\", \"\", IF(AND(Notentabellen!$J$3=1,Notentabellen!$L$3=1),INDEX(Notentabellen!A:A,MATCH(C:C,Notentabellen!B:B,1)),IF(AND(Notentabellen!$J$3=1,Notentabellen!$L$3=2),INDEX(Notentabellen!A:A,MATCH(C:C,Notentabellen!C:C,1)),IF(AND(Notentabellen!$J$3=2,Notentabellen!$L$3=1),INDEX(Notentabellen!A:A,MATCH(C:C,Notentabellen!D:D,1)),IF(AND(Notentabellen!$J$3=2,Notentabellen!$L$3=2),INDEX(Notentabellen!A:A,MATCH(C:C,Notentabellen!E:E,1)),IF(AND(Notentabellen!$J$3 =3,Notentabellen!$L$3=1), INDEX(Notentabellen!A:A,MATCH(C:C,Notentabellen!F:F,1)), IF(AND(Notentabellen!$J$3 =3,Notentabellen!$L$3=2), INDEX(Notentabellen!A:A,MATCH(C:C,Notentabellen!G:G,1)))))))))","v":""}]
["",{"$f":"IF(C86=\"\",\"\",INDEX(Laufliste!B:B,_xlfn.AGGREGATE(15,6,ROW(Laufliste!F:F)/(Laufliste!F:F=C86),COUNTIF($C$4:C86,C86)),1))","v":""},{"$f":"IF(ISERROR(_xlfn.AGGREGATE(14,6,Laufliste!F:F,ROW()-3)),\"\",IF(ROWS($A$4:A86)<=Hilfsregister!$C$2,_xlfn.AGGREGATE(14,6,Laufliste!F:F,ROW()-3),\"\"))","v":""},{"$f":"IF(C86 = \"\", \"\", IF(AND(Notentabellen!$J$3=1,Notentabellen!$L$3=1),INDEX(Notentabellen!A:A,MATCH(C:C,Notentabellen!B:B,1)),IF(AND(Notentabellen!$J$3=1,Notentabellen!$L$3=2),INDEX(Notentabellen!A:A,MATCH(C:C,Notentabellen!C:C,1)),IF(AND(Notentabellen!$J$3=2,Notentabellen!$L$3=1),INDEX(Notentabellen!A:A,MATCH(C:C,Notentabellen!D:D,1)),IF(AND(Notentabellen!$J$3=2,Notentabellen!$L$3=2),INDEX(Notentabellen!A:A,MATCH(C:C,Notentabellen!E:E,1)),IF(AND(Notentabellen!$J$3 =3,Notentabellen!$L$3=1), INDEX(Notentabellen!A:A,MATCH(C:C,Notentabellen!F:F,1)), IF(AND(Notentabellen!$J$3 =3,Notentabellen!$L$3=2), INDEX(Notentabellen!A:A,MATCH(C:C,Notentabellen!G:G,1)))))))))","v":""}]
["",{"$f":"IF(C87=\"\",\"\",INDEX(Laufliste!B:B,_xlfn.AGGREGATE(15,6,ROW(Laufliste!F:F)/(Laufliste!F:F=C87),COUNTIF($C$4:C87,C87)),1))","v":""},{"$f":"IF(ISERROR(_xlfn.AGGREGATE(14,6,Laufliste!F:F,ROW()-3)),\"\",IF(ROWS($A$4:A87)<=Hilfsregister!$C$2,_xlfn.AGGREGATE(14,6,Laufliste!F:F,ROW()-3),\"\"))","v":""},{"$f":"IF(C87 = \"\", \"\", IF(AND(Notentabellen!$J$3=1,Notentabellen!$L$3=1),INDEX(Notentabellen!A:A,MATCH(C:C,Notentabellen!B:B,1)),IF(AND(Notentabellen!$J$3=1,Notentabellen!$L$3=2),INDEX(Notentabellen!A:A,MATCH(C:C,Notentabellen!C:C,1)),IF(AND(Notentabellen!$J$3=2,Notentabellen!$L$3=1),INDEX(Notentabellen!A:A,MATCH(C:C,Notentabellen!D:D,1)),IF(AND(Notentabellen!$J$3=2,Notentabellen!$L$3=2),INDEX(Notentabellen!A:A,MATCH(C:C,Notentabellen!E:E,1)),IF(AND(Notentabellen!$J$3 =3,Notentabellen!$L$3=1), INDEX(Notentabellen!A:A,MATCH(C:C,Notentabellen!F:F,1)), IF(AND(Notentabellen!$J$3 =3,Notentabellen!$L$3=2), INDEX(Notentabellen!A:A,MATCH(C:C,Notentabellen!G:G,1)))))))))","v":""}]
["",{"$f":"IF(C88=\"\",\"\",INDEX(Laufliste!B:B,_xlfn.AGGREGATE(15,6,ROW(Laufliste!F:F)/(Laufliste!F:F=C88),COUNTIF($C$4:C88,C88)),1))","v":""},{"$f":"IF(ISERROR(_xlfn.AGGREGATE(14,6,Laufliste!F:F,ROW()-3)),\"\",IF(ROWS($A$4:A88)<=Hilfsregister!$C$2,_xlfn.AGGREGATE(14,6,Laufliste!F:F,ROW()-3),\"\"))","v":""},{"$f":"IF(C88 = \"\", \"\", IF(AND(Notentabellen!$J$3=1,Notentabellen!$L$3=1),INDEX(Notentabellen!A:A,MATCH(C:C,Notentabellen!B:B,1)),IF(AND(Notentabellen!$J$3=1,Notentabellen!$L$3=2),INDEX(Notentabellen!A:A,MATCH(C:C,Notentabellen!C:C,1)),IF(AND(Notentabellen!$J$3=2,Notentabellen!$L$3=1),INDEX(Notentabellen!A:A,MATCH(C:C,Notentabellen!D:D,1)),IF(AND(Notentabellen!$J$3=2,Notentabellen!$L$3=2),INDEX(Notentabellen!A:A,MATCH(C:C,Notentabellen!E:E,1)),IF(AND(Notentabellen!$J$3 =3,Notentabellen!$L$3=1), INDEX(Notentabellen!A:A,MATCH(C:C,Notentabellen!F:F,1)), IF(AND(Notentabellen!$J$3 =3,Notentabellen!$L$3=2), INDEX(Notentabellen!A:A,MATCH(C:C,Notentabellen!G:G,1)))))))))","v":""}]
["",{"$f":"IF(C89=\"\",\"\",INDEX(Laufliste!B:B,_xlfn.AGGREGATE(15,6,ROW(Laufliste!F:F)/(Laufliste!F:F=C89),COUNTIF($C$4:C89,C89)),1))","v":""},{"$f":"IF(ISERROR(_xlfn.AGGREGATE(14,6,Laufliste!F:F,ROW()-3)),\"\",IF(ROWS($A$4:A89)<=Hilfsregister!$C$2,_xlfn.AGGREGATE(14,6,Laufliste!F:F,ROW()-3),\"\"))","v":""},{"$f":"IF(C89 = \"\", \"\", IF(AND(Notentabellen!$J$3=1,Notentabellen!$L$3=1),INDEX(Notentabellen!A:A,MATCH(C:C,Notentabellen!B:B,1)),IF(AND(Notentabellen!$J$3=1,Notentabellen!$L$3=2),INDEX(Notentabellen!A:A,MATCH(C:C,Notentabellen!C:C,1)),IF(AND(Notentabellen!$J$3=2,Notentabellen!$L$3=1),INDEX(Notentabellen!A:A,MATCH(C:C,Notentabellen!D:D,1)),IF(AND(Notentabellen!$J$3=2,Notentabellen!$L$3=2),INDEX(Notentabellen!A:A,MATCH(C:C,Notentabellen!E:E,1)),IF(AND(Notentabellen!$J$3 =3,Notentabellen!$L$3=1), INDEX(Notentabellen!A:A,MATCH(C:C,Notentabellen!F:F,1)), IF(AND(Notentabellen!$J$3 =3,Notentabellen!$L$3=2), INDEX(Notentabellen!A:A,MATCH(C:C,Notentabellen!G:G,1)))))))))","v":""}]
["",{"$f":"IF(C90=\"\",\"\",INDEX(Laufliste!B:B,_xlfn.AGGREGATE(15,6,ROW(Laufliste!F:F)/(Laufliste!F:F=C90),COUNTIF($C$4:C90,C90)),1))","v":""},{"$f":"IF(ISERROR(_xlfn.AGGREGATE(14,6,Laufliste!F:F,ROW()-3)),\"\",IF(ROWS($A$4:A90)<=Hilfsregister!$C$2,_xlfn.AGGREGATE(14,6,Laufliste!F:F,ROW()-3),\"\"))","v":""},{"$f":"IF(C90 = \"\", \"\", IF(AND(Notentabellen!$J$3=1,Notentabellen!$L$3=1),INDEX(Notentabellen!A:A,MATCH(C:C,Notentabellen!B:B,1)),IF(AND(Notentabellen!$J$3=1,Notentabellen!$L$3=2),INDEX(Notentabellen!A:A,MATCH(C:C,Notentabellen!C:C,1)),IF(AND(Notentabellen!$J$3=2,Notentabellen!$L$3=1),INDEX(Notentabellen!A:A,MATCH(C:C,Notentabellen!D:D,1)),IF(AND(Notentabellen!$J$3=2,Notentabellen!$L$3=2),INDEX(Notentabellen!A:A,MATCH(C:C,Notentabellen!E:E,1)),IF(AND(Notentabellen!$J$3 =3,Notentabellen!$L$3=1), INDEX(Notentabellen!A:A,MATCH(C:C,Notentabellen!F:F,1)), IF(AND(Notentabellen!$J$3 =3,Notentabellen!$L$3=2), INDEX(Notentabellen!A:A,MATCH(C:C,Notentabellen!G:G,1)))))))))","v":""}]
["",{"$f":"IF(C91=\"\",\"\",INDEX(Laufliste!B:B,_xlfn.AGGREGATE(15,6,ROW(Laufliste!F:F)/(Laufliste!F:F=C91),COUNTIF($C$4:C91,C91)),1))","v":""},{"$f":"IF(ISERROR(_xlfn.AGGREGATE(14,6,Laufliste!F:F,ROW()-3)),\"\",IF(ROWS($A$4:A91)<=Hilfsregister!$C$2,_xlfn.AGGREGATE(14,6,Laufliste!F:F,ROW()-3),\"\"))","v":""},{"$f":"IF(C91 = \"\", \"\", IF(AND(Notentabellen!$J$3=1,Notentabellen!$L$3=1),INDEX(Notentabellen!A:A,MATCH(C:C,Notentabellen!B:B,1)),IF(AND(Notentabellen!$J$3=1,Notentabellen!$L$3=2),INDEX(Notentabellen!A:A,MATCH(C:C,Notentabellen!C:C,1)),IF(AND(Notentabellen!$J$3=2,Notentabellen!$L$3=1),INDEX(Notentabellen!A:A,MATCH(C:C,Notentabellen!D:D,1)),IF(AND(Notentabellen!$J$3=2,Notentabellen!$L$3=2),INDEX(Notentabellen!A:A,MATCH(C:C,Notentabellen!E:E,1)),IF(AND(Notentabellen!$J$3 =3,Notentabellen!$L$3=1), INDEX(Notentabellen!A:A,MATCH(C:C,Notentabellen!F:F,1)), IF(AND(Notentabellen!$J$3 =3,Notentabellen!$L$3=2), INDEX(Notentabellen!A:A,MATCH(C:C,Notentabellen!G:G,1)))))))))","v":""}]
["",{"$f":"IF(C92=\"\",\"\",INDEX(Laufliste!B:B,_xlfn.AGGREGATE(15,6,ROW(Laufliste!F:F)/(Laufliste!F:F=C92),COUNTIF($C$4:C92,C92)),1))","v":""},{"$f":"IF(ISERROR(_xlfn.AGGREGATE(14,6,Laufliste!F:F,ROW()-3)),\"\",IF(ROWS($A$4:A92)<=Hilfsregister!$C$2,_xlfn.AGGREGATE(14,6,Laufliste!F:F,ROW()-3),\"\"))","v":""},{"$f":"IF(C92 = \"\", \"\", IF(AND(Notentabellen!$J$3=1,Notentabellen!$L$3=1),INDEX(Notentabellen!A:A,MATCH(C:C,Notentabellen!B:B,1)),IF(AND(Notentabellen!$J$3=1,Notentabellen!$L$3=2),INDEX(Notentabellen!A:A,MATCH(C:C,Notentabellen!C:C,1)),IF(AND(Notentabellen!$J$3=2,Notentabellen!$L$3=1),INDEX(Notentabellen!A:A,MATCH(C:C,Notentabellen!D:D,1)),IF(AND(Notentabellen!$J$3=2,Notentabellen!$L$3=2),INDEX(Notentabellen!A:A,MATCH(C:C,Notentabellen!E:E,1)),IF(AND(Notentabellen!$J$3 =3,Notentabellen!$L$3=1), INDEX(Notentabellen!A:A,MATCH(C:C,Notentabellen!F:F,1)), IF(AND(Notentabellen!$J$3 =3,Notentabellen!$L$3=2), INDEX(Notentabellen!A:A,MATCH(C:C,Notentabellen!G:G,1)))))))))","v":""}]
["",{"$f":"IF(C93=\"\",\"\",INDEX(Laufliste!B:B,_xlfn.AGGREGATE(15,6,ROW(Laufliste!F:F)/(Laufliste!F:F=C93),COUNTIF($C$4:C93,C93)),1))","v":""},{"$f":"IF(ISERROR(_xlfn.AGGREGATE(14,6,Laufliste!F:F,ROW()-3)),\"\",IF(ROWS($A$4:A93)<=Hilfsregister!$C$2,_xlfn.AGGREGATE(14,6,Laufliste!F:F,ROW()-3),\"\"))","v":""},{"$f":"IF(C93 = \"\", \"\", IF(AND(Notentabellen!$J$3=1,Notentabellen!$L$3=1),INDEX(Notentabellen!A:A,MATCH(C:C,Notentabellen!B:B,1)),IF(AND(Notentabellen!$J$3=1,Notentabellen!$L$3=2),INDEX(Notentabellen!A:A,MATCH(C:C,Notentabellen!C:C,1)),IF(AND(Notentabellen!$J$3=2,Notentabellen!$L$3=1),INDEX(Notentabellen!A:A,MATCH(C:C,Notentabellen!D:D,1)),IF(AND(Notentabellen!$J$3=2,Notentabellen!$L$3=2),INDEX(Notentabellen!A:A,MATCH(C:C,Notentabellen!E:E,1)),IF(AND(Notentabellen!$J$3 =3,Notentabellen!$L$3=1), INDEX(Notentabellen!A:A,MATCH(C:C,Notentabellen!F:F,1)), IF(AND(Notentabellen!$J$3 =3,Notentabellen!$L$3=2), INDEX(Notentabellen!A:A,MATCH(C:C,Notentabellen!G:G,1)))))))))","v":""}]
["",{"$f":"IF(C94=\"\",\"\",INDEX(Laufliste!B:B,_xlfn.AGGREGATE(15,6,ROW(Laufliste!F:F)/(Laufliste!F:F=C94),COUNTIF($C$4:C94,C94)),1))","v":""},{"$f":"IF(ISERROR(_xlfn.AGGREGATE(14,6,Laufliste!F:F,ROW()-3)),\"\",IF(ROWS($A$4:A94)<=Hilfsregister!$C$2,_xlfn.AGGREGATE(14,6,Laufliste!F:F,ROW()-3),\"\"))","v":""},{"$f":"IF(C94 = \"\", \"\", IF(AND(Notentabellen!$J$3=1,Notentabellen!$L$3=1),INDEX(Notentabellen!A:A,MATCH(C:C,Notentabellen!B:B,1)),IF(AND(Notentabellen!$J$3=1,Notentabellen!$L$3=2),INDEX(Notentabellen!A:A,MATCH(C:C,Notentabellen!C:C,1)),IF(AND(Notentabellen!$J$3=2,Notentabellen!$L$3=1),INDEX(Notentabellen!A:A,MATCH(C:C,Notentabellen!D:D,1)),IF(AND(Notentabellen!$J$3=2,Notentabellen!$L$3=2),INDEX(Notentabellen!A:A,MATCH(C:C,Notentabellen!E:E,1)),IF(AND(Notentabellen!$J$3 =3,Notentabellen!$L$3=1), INDEX(Notentabellen!A:A,MATCH(C:C,Notentabellen!F:F,1)), IF(AND(Notentabellen!$J$3 =3,Notentabellen!$L$3=2), INDEX(Notentabellen!A:A,MATCH(C:C,Notentabellen!G:G,1)))))))))","v":""}]
["",{"$f":"IF(C95=\"\",\"\",INDEX(Laufliste!B:B,_xlfn.AGGREGATE(15,6,ROW(Laufliste!F:F)/(Laufliste!F:F=C95),COUNTIF($C$4:C95,C95)),1))","v":""},{"$f":"IF(ISERROR(_xlfn.AGGREGATE(14,6,Laufliste!F:F,ROW()-3)),\"\",IF(ROWS($A$4:A95)<=Hilfsregister!$C$2,_xlfn.AGGREGATE(14,6,Laufliste!F:F,ROW()-3),\"\"))","v":""},{"$f":"IF(C95 = \"\", \"\", IF(AND(Notentabellen!$J$3=1,Notentabellen!$L$3=1),INDEX(Notentabellen!A:A,MATCH(C:C,Notentabellen!B:B,1)),IF(AND(Notentabellen!$J$3=1,Notentabellen!$L$3=2),INDEX(Notentabellen!A:A,MATCH(C:C,Notentabellen!C:C,1)),IF(AND(Notentabellen!$J$3=2,Notentabellen!$L$3=1),INDEX(Notentabellen!A:A,MATCH(C:C,Notentabellen!D:D,1)),IF(AND(Notentabellen!$J$3=2,Notentabellen!$L$3=2),INDEX(Notentabellen!A:A,MATCH(C:C,Notentabellen!E:E,1)),IF(AND(Notentabellen!$J$3 =3,Notentabellen!$L$3=1), INDEX(Notentabellen!A:A,MATCH(C:C,Notentabellen!F:F,1)), IF(AND(Notentabellen!$J$3 =3,Notentabellen!$L$3=2), INDEX(Notentabellen!A:A,MATCH(C:C,Notentabellen!G:G,1)))))))))","v":""}]
["",{"$f":"IF(C96=\"\",\"\",INDEX(Laufliste!B:B,_xlfn.AGGREGATE(15,6,ROW(Laufliste!F:F)/(Laufliste!F:F=C96),COUNTIF($C$4:C96,C96)),1))","v":""},{"$f":"IF(ISERROR(_xlfn.AGGREGATE(14,6,Laufliste!F:F,ROW()-3)),\"\",IF(ROWS($A$4:A96)<=Hilfsregister!$C$2,_xlfn.AGGREGATE(14,6,Laufliste!F:F,ROW()-3),\"\"))","v":""},{"$f":"IF(C96 = \"\", \"\", IF(AND(Notentabellen!$J$3=1,Notentabellen!$L$3=1),INDEX(Notentabellen!A:A,MATCH(C:C,Notentabellen!B:B,1)),IF(AND(Notentabellen!$J$3=1,Notentabellen!$L$3=2),INDEX(Notentabellen!A:A,MATCH(C:C,Notentabellen!C:C,1)),IF(AND(Notentabellen!$J$3=2,Notentabellen!$L$3=1),INDEX(Notentabellen!A:A,MATCH(C:C,Notentabellen!D:D,1)),IF(AND(Notentabellen!$J$3=2,Notentabellen!$L$3=2),INDEX(Notentabellen!A:A,MATCH(C:C,Notentabellen!E:E,1)),IF(AND(Notentabellen!$J$3 =3,Notentabellen!$L$3=1), INDEX(Notentabellen!A:A,MATCH(C:C,Notentabellen!F:F,1)), IF(AND(Notentabellen!$J$3 =3,Notentabellen!$L$3=2), INDEX(Notentabellen!A:A,MATCH(C:C,Notentabellen!G:G,1)))))))))","v":""}]
["",{"$f":"IF(C97=\"\",\"\",INDEX(Laufliste!B:B,_xlfn.AGGREGATE(15,6,ROW(Laufliste!F:F)/(Laufliste!F:F=C97),COUNTIF($C$4:C97,C97)),1))","v":""},{"$f":"IF(ISERROR(_xlfn.AGGREGATE(14,6,Laufliste!F:F,ROW()-3)),\"\",IF(ROWS($A$4:A97)<=Hilfsregister!$C$2,_xlfn.AGGREGATE(14,6,Laufliste!F:F,ROW()-3),\"\"))","v":""},{"$f":"IF(C97 = \"\", \"\", IF(AND(Notentabellen!$J$3=1,Notentabellen!$L$3=1),INDEX(Notentabellen!A:A,MATCH(C:C,Notentabellen!B:B,1)),IF(AND(Notentabellen!$J$3=1,Notentabellen!$L$3=2),INDEX(Notentabellen!A:A,MATCH(C:C,Notentabellen!C:C,1)),IF(AND(Notentabellen!$J$3=2,Notentabellen!$L$3=1),INDEX(Notentabellen!A:A,MATCH(C:C,Notentabellen!D:D,1)),IF(AND(Notentabellen!$J$3=2,Notentabellen!$L$3=2),INDEX(Notentabellen!A:A,MATCH(C:C,Notentabellen!E:E,1)),IF(AND(Notentabellen!$J$3 =3,Notentabellen!$L$3=1), INDEX(Notentabellen!A:A,MATCH(C:C,Notentabellen!F:F,1)), IF(AND(Notentabellen!$J$3 =3,Notentabellen!$L$3=2), INDEX(Notentabellen!A:A,MATCH(C:C,Notentabellen!G:G,1)))))))))","v":""}]
["",{"$f":"IF(C98=\"\",\"\",INDEX(Laufliste!B:B,_xlfn.AGGREGATE(15,6,ROW(Laufliste!F:F)/(Laufliste!F:F=C98),COUNTIF($C$4:C98,C98)),1))","v":""},{"$f":"IF(ISERROR(_xlfn.AGGREGATE(14,6,Laufliste!F:F,ROW()-3)),\"\",IF(ROWS($A$4:A98)<=Hilfsregister!$C$2,_xlfn.AGGREGATE(14,6,Laufliste!F:F,ROW()-3),\"\"))","v":""},{"$f":"IF(C98 = \"\", \"\", IF(AND(Notentabellen!$J$3=1,Notentabellen!$L$3=1),INDEX(Notentabellen!A:A,MATCH(C:C,Notentabellen!B:B,1)),IF(AND(Notentabellen!$J$3=1,Notentabellen!$L$3=2),INDEX(Notentabellen!A:A,MATCH(C:C,Notentabellen!C:C,1)),IF(AND(Notentabellen!$J$3=2,Notentabellen!$L$3=1),INDEX(Notentabellen!A:A,MATCH(C:C,Notentabellen!D:D,1)),IF(AND(Notentabellen!$J$3=2,Notentabellen!$L$3=2),INDEX(Notentabellen!A:A,MATCH(C:C,Notentabellen!E:E,1)),IF(AND(Notentabellen!$J$3 =3,Notentabellen!$L$3=1), INDEX(Notentabellen!A:A,MATCH(C:C,Notentabellen!F:F,1)), IF(AND(Notentabellen!$J$3 =3,Notentabellen!$L$3=2), INDEX(Notentabellen!A:A,MATCH(C:C,Notentabellen!G:G,1)))))))))","v":""}]
["",{"$f":"IF(C99=\"\",\"\",INDEX(Laufliste!B:B,_xlfn.AGGREGATE(15,6,ROW(Laufliste!F:F)/(Laufliste!F:F=C99),COUNTIF($C$4:C99,C99)),1))","v":""},{"$f":"IF(ISERROR(_xlfn.AGGREGATE(14,6,Laufliste!F:F,ROW()-3)),\"\",IF(ROWS($A$4:A99)<=Hilfsregister!$C$2,_xlfn.AGGREGATE(14,6,Laufliste!F:F,ROW()-3),\"\"))","v":""},{"$f":"IF(C99 = \"\", \"\", IF(AND(Notentabellen!$J$3=1,Notentabellen!$L$3=1),INDEX(Notentabellen!A:A,MATCH(C:C,Notentabellen!B:B,1)),IF(AND(Notentabellen!$J$3=1,Notentabellen!$L$3=2),INDEX(Notentabellen!A:A,MATCH(C:C,Notentabellen!C:C,1)),IF(AND(Notentabellen!$J$3=2,Notentabellen!$L$3=1),INDEX(Notentabellen!A:A,MATCH(C:C,Notentabellen!D:D,1)),IF(AND(Notentabellen!$J$3=2,Notentabellen!$L$3=2),INDEX(Notentabellen!A:A,MATCH(C:C,Notentabellen!E:E,1)),IF(AND(Notentabellen!$J$3 =3,Notentabellen!$L$3=1), INDEX(Notentabellen!A:A,MATCH(C:C,Notentabellen!F:F,1)), IF(AND(Notentabellen!$J$3 =3,Notentabellen!$L$3=2), INDEX(Notentabellen!A:A,MATCH(C:C,Notentabellen!G:G,1)))))))))","v":""}]
["",{"$f":"IF(C100=\"\",\"\",INDEX(Laufliste!B:B,_xlfn.AGGREGATE(15,6,ROW(Laufliste!F:F)/(Laufliste!F:F=C100),COUNTIF($C$4:C100,C100)),1))","v":""},{"$f":"IF(ISERROR(_xlfn.AGGREGATE(14,6,Laufliste!F:F,ROW()-3)),\"\",IF(ROWS($A$4:A100)<=Hilfsregister!$C$2,_xlfn.AGGREGATE(14,6,Laufliste!F:F,ROW()-3),\"\"))","v":""},{"$f":"IF(C100 = \"\", \"\", IF(AND(Notentabellen!$J$3=1,Notentabellen!$L$3=1),INDEX(Notentabellen!A:A,MATCH(C:C,Notentabellen!B:B,1)),IF(AND(Notentabellen!$J$3=1,Notentabellen!$L$3=2),INDEX(Notentabellen!A:A,MATCH(C:C,Notentabellen!C:C,1)),IF(AND(Notentabellen!$J$3=2,Notentabellen!$L$3=1),INDEX(Notentabellen!A:A,MATCH(C:C,Notentabellen!D:D,1)),IF(AND(Notentabellen!$J$3=2,Notentabellen!$L$3=2),INDEX(Notentabellen!A:A,MATCH(C:C,Notentabellen!E:E,1)),IF(AND(Notentabellen!$J$3 =3,Notentabellen!$L$3=1), INDEX(Notentabellen!A:A,MATCH(C:C,Notentabellen!F:F,1)), IF(AND(Notentabellen!$J$3 =3,Notentabellen!$L$3=2), INDEX(Notentabellen!A:A,MATCH(C:C,Notentabellen!G:G,1)))))))))","v":""}]
[{"$f":"IF(C101=\"\",\"\",_xlfn.RANK.EQ(C101,C:C,1))","v":""}," ",""]
[""," ",""]
[""," ",""]

{"sheet":"Notentabellen","index":3,"n_rows":54,"n_cols":12,"rows_kept":54,"merged":[[0,0,0,6]]}
["Notentabellen\nerstellt von Roman Marxer (romanmarxer@hotmail.com)  "]
["Note","Strecke Knaben 1. Sek","Strecke Mädchen 1. Sek","Strecke Jungs 2. Sek","Strecke Mädchen 2. Sek","Strecke Jungs 3. Sek","Strecke Mädchen 3. Sek",null,"Hilfsfelder"]
[0.9999999999999,0,0,0,0,0,0,null,"Sekundarstufe 1",1,"Jungs",1]
[0.9999999999999,1630,1630,1660,1660,1660,1660,null,"Sekundarstufe 2",null,"Mädchen"]
[1.09999999999991,1650,1650,1680,1680,1680,1680,null,"Sekundarstufe 3"]
[1.19999999999992,1670,1670,1700,1700,1700,1700]
[1.29999999999993,1690,1690,1720,1720,1720,1720]
[1.39999999999994,1710,1710,1740,1740,1740,1740]
[1.49999999999995,1730,1730,1760,1760,1760,1760]
[1.59999999999996,1750,1750,1780,1780,1780,1780]
[1.69999999999997,1770,1770,1800,1800,1800,1800]
[1.79999999999998,1790,1790,1820,1820,1820,1820]
[1.89999999999999,1810,1810,1840,1840,1840,1840]
[2,1830,1830,1860,1860,1860,1860]
[2.10000000000001,1850,1850,1880,1880,1880,1880]
[2.20000000000001,1870,1870,1900,1900,1910,1910]
[2.30000000000001,1890,1890,1920,1920,1940,1940]
[2.40000000000001,1910,1910,1940,1940,1970,1970]
[2.50000000000001,1930,1930,1960,1960,2000,2000]
[2.60000000000001,1950,1950,1980,1980,2030,2030]
[2.70000000000001,1970,1970,2000,2000,2060,2060]
[2.80000000000001,1990,1990,2020,2020,2090,2090]
[2.90000000000001,2010,2010,2040,2040,2120,2120]
[3.00000000000001,2030,2030,2060,2060,2150,2150]
[3.10000000000001,2050,2050,2080,2080,2180,2180]
[3.20000000000001,2080,2080,2110,2110,2210,2210]
[3.30000000000001,2100,2100,2130,2130,2240,2240]
[3.40000000000001,2130,2130,2160,2160,2270,2270]
[3.50000000000001,2150,2150,2180,2180,2300,2300]
[3.60000000000001,2180,2180,2210,2210,2330,2330]
[3.70000000000001,2200,2200,2230,2230,2360,2360]
[3.80000000000001,2230,2230,2260,2260,2390,2390]
[3.90000000000001,2250,2250,2280,2280,2420,2420]
[4.00000000000001,2280,2280,2310,2310,2450,2450]
[4.10000000000001,2300,2300,2340,2340,2480,2480]
[4.20000000000001,2330,2330,2370,2370,2510,2510]
[4.30000000000001,2350,2350,2400,2400,2540,2540]
[4.40000000000001,2380,2380,2430,2430,2570,2570]
[4.50000000000001,2400,2400,2460,2460,2600,2600]
[4.6,2430,2430,2490,2490,2630,2630]
[4.7,2450,2450,2520,2520,2660,2660]
[4.8,2480,2480,2550,2550,2690,2690]
[4.9,2500,2500,2580,2580,2720,2720]
[5,2530,2530,2610,2610,2750,2750]
[5.1,2570,2570,2650,2650,2780,2780]
[5.2,2600,2600,2680,2680,2810,2810]
[5.3,2640,2640,2720,2720,2840,2840]
[5.4,2670,2670,2750,2750,2870,2870]
[5.5,2710,2710,2790,2790,2900,2900]
[5.6,2740,2740,2820,2820,2930,2930]
[5.7,2780,2780,2860,2860,2960,2960]
[5.8,2810,2810,2890,2890,2990,2990]
[5.9,2850,2850,2930,2930,3020,3020]
[6,2880,2880,2960,2960,3050,3050]

{"sheet":"Hilfsregister","index":4,"n_rows":12,"n_cols":3,"rows_kept":12,"hidden":true}
[null,"Ausgabe:","Umrechung Ausgabe in Top"]
["Top 5",3,{"$f":"IF(B2<=10,B2*5,100)","v":15}]
["Top 10"]
["Top 15"]
["Top 20"]
["Top 25"]
["Top 30"]
["Top 35"]
["Top 40"]
["Top 45"]
["Top 50"]
["Alle"]